Transaction Date,Local Authority Department,Beneficiary,Purpose of Expenditure,Amount (excluding VAT),Non Recoverable VAT,Merchant Category
 01-06-2022,Adults,Marlow,Residential Placements - Private Contractors Payment,2018.48,0.00,COMMERCIAL SUPPLIER 
 01-06-2022,Adults,Marlow,Residential Placements - Private Contractors Payment,6360.56,0.00,COMMERCIAL SUPPLIER 
 01-06-2022,Adults,Hospiva Care & Associates Agency Ltd_a,Home Care - Private Contractors Payment,678.63,0.00,COMMERCIAL SUPPLIER 
 01-06-2022,Adults,Hospiva Care & Associates Agency Ltd_a,Home Care - Private Contractors Payment,555.96,0.00,COMMERCIAL SUPPLIER 
 01-06-2022,Adults,Hospiva Care & Associates Agency Ltd_a,Home Care - Private Contractors Payment,555.30,0.00,COMMERCIAL SUPPLIER 
 01-06-2022,Adults,Hospiva Care & Associates Agency Ltd_a,Home Care - Private Contractors Payment,551.04,0.00,COMMERCIAL SUPPLIER 
 01-06-2022,Adults,Hospiva Care & Associates Agency Ltd_a,Home Care - Private Contractors Payment,551.04,0.00,COMMERCIAL SUPPLIER 
 01-06-2022,Adults,Hospiva Care & Associates Agency Ltd_a,Home Care - Private Contractors Payment,554.32,0.00,COMMERCIAL SUPPLIER 
 01-06-2022,Adults,Hospiva Care & Associates Agency Ltd_a,Home Care - Private Contractors Payment,554.32,0.00,COMMERCIAL SUPPLIER 
 01-06-2022,Adults,Hospiva Care & Associates Agency Ltd_a,Home Care - Private Contractors Payment,688.47,0.00,COMMERCIAL SUPPLIER 
 01-06-2022,Adults,Hospiva Care & Associates Agency Ltd_a,Home Care - Private Contractors Payment,626.81,0.00,COMMERCIAL SUPPLIER 
 01-06-2022,Adults,Hospiva Care & Associates Agency Ltd_a,Home Care - Private Contractors Payment,632.71,0.00,COMMERCIAL SUPPLIER 
 01-06-2022,Adults,Hospiva Care & Associates Agency Ltd_a,Home Care - Private Contractors Payment,621.56,0.00,COMMERCIAL SUPPLIER 
 01-06-2022,Adults,Hospiva Care & Associates Agency Ltd_a,Home Care - Private Contractors Payment,621.56,0.00,COMMERCIAL SUPPLIER 
 01-06-2022,Adults,Hospiva Care & Associates Agency Ltd_a,Home Care - Private Contractors Payment,686.83,0.00,COMMERCIAL SUPPLIER 
 01-06-2022,Adults,Hospiva Care & Associates Agency Ltd_a,Home Care - Private Contractors Payment,688.14,0.00,COMMERCIAL SUPPLIER 
 01-06-2022,Adults,Consensus Support Services Ltd - Southwold House,Residential Placements - Private Contractors Payment,8396.44,0.00,COMMERCIAL SUPPLIER 
 01-06-2022,Adults,Consensus Support Services Ltd - Rowan House,Residential Placements - Private Contractors Payment,8540.92,0.00,COMMERCIAL SUPPLIER 
 01-06-2022,Adults,Home Sweet Home Care Ltd,Home Care - Private Contractors Payment,521.52,0.00,COMMERCIAL SUPPLIER 
 01-06-2022,Adults,Home Sweet Home Care Ltd,Home Care - Private Contractors Payment,521.52,0.00,COMMERCIAL SUPPLIER 
 01-06-2022,Adults,Home Sweet Home Care Ltd,Home Care - Private Contractors Payment,530.70,0.00,COMMERCIAL SUPPLIER 
 01-06-2022,Adults,Home Sweet Home Care Ltd,Home Care - Private Contractors Payment,530.70,0.00,COMMERCIAL SUPPLIER 
 01-06-2022,Adults,Home Sweet Home Care Ltd,Home Care - Private Contractors Payment,557.60,0.00,COMMERCIAL SUPPLIER 
 01-06-2022,Adults,Home Sweet Home Care Ltd,Home Care - Private Contractors Payment,557.60,0.00,COMMERCIAL SUPPLIER 
 01-06-2022,Adults,Home Sweet Home Care Ltd,Home Care - Private Contractors Payment,551.04,0.00,COMMERCIAL SUPPLIER 
 01-06-2022,Adults,Home Sweet Home Care Ltd,Home Care - Private Contractors Payment,551.04,0.00,COMMERCIAL SUPPLIER 
 01-06-2022,Adults,Home Sweet Home Care Ltd,Home Care - Private Contractors Payment,504.14,0.00,COMMERCIAL SUPPLIER 
 01-06-2022,Adults,Home Sweet Home Care Ltd,Home Care - Private Contractors Payment,507.74,0.00,COMMERCIAL SUPPLIER 
 01-06-2022,Adults,Home Sweet Home Care Ltd,Home Care - Private Contractors Payment,541.86,0.00,COMMERCIAL SUPPLIER 
 01-06-2022,Adults,Home Sweet Home Care Ltd,Home Care - Private Contractors Payment,572.36,0.00,COMMERCIAL SUPPLIER 
 01-06-2022,Adults,Home Sweet Home Care Ltd,Home Care - Private Contractors Payment,574.00,0.00,COMMERCIAL SUPPLIER 
 01-06-2022,Adults,Home Sweet Home Care Ltd,Home Care - Private Contractors Payment,637.30,0.00,COMMERCIAL SUPPLIER 
 01-06-2022,Adults,Home Sweet Home Care Ltd,Home Care - Private Contractors Payment,637.63,0.00,COMMERCIAL SUPPLIER 
 01-06-2022,Adults,Home Sweet Home Care Ltd,Home Care - Private Contractors Payment,551.04,0.00,COMMERCIAL SUPPLIER 
 01-06-2022,Adults,Home Sweet Home Care Ltd,Home Care - Private Contractors Payment,688.80,0.00,COMMERCIAL SUPPLIER 
 01-06-2022,Adults,Home Sweet Home Care Ltd,Home Care - Private Contractors Payment,688.80,0.00,COMMERCIAL SUPPLIER 
 01-06-2022,Adults,Home Sweet Home Care Ltd,Home Care - Private Contractors Payment,787.20,0.00,COMMERCIAL SUPPLIER 
 01-06-2022,Adults,Home Sweet Home Care Ltd,Home Care - Private Contractors Payment,798.02,0.00,COMMERCIAL SUPPLIER 
 01-06-2022,Adults,Home Sweet Home Care Ltd,Home Care - Private Contractors Payment,833.12,0.00,COMMERCIAL SUPPLIER 
 01-06-2022,Adults,Home Sweet Home Care Ltd,Home Care - Private Contractors Payment,834.10,0.00,COMMERCIAL SUPPLIER 
 01-06-2022,Adults,Home Sweet Home Care Ltd,Home Care - Private Contractors Payment,551.70,0.00,COMMERCIAL SUPPLIER 
 01-06-2022,Adults,Home Sweet Home Care Ltd,Home Care - Private Contractors Payment,555.96,0.00,COMMERCIAL SUPPLIER 
 01-06-2022,Adults,Home Sweet Home Care Ltd,Home Care - Private Contractors Payment,551.70,0.00,COMMERCIAL SUPPLIER 
 01-06-2022,Adults,Home Sweet Home Care Ltd,Home Care - Private Contractors Payment,528.74,0.00,COMMERCIAL SUPPLIER 
 01-06-2022,Adults,Home Sweet Home Care Ltd,Home Care - Private Contractors Payment,551.04,0.00,COMMERCIAL SUPPLIER 
 01-06-2022,Adults,Home Sweet Home Care Ltd,Home Care - Private Contractors Payment,588.10,0.00,COMMERCIAL SUPPLIER 
 01-06-2022,Adults,Home Sweet Home Care Ltd,Home Care - Private Contractors Payment,542.18,0.00,COMMERCIAL SUPPLIER 
 01-06-2022,Adults,Home Sweet Home Care Ltd,Home Care - Private Contractors Payment,599.58,0.00,COMMERCIAL SUPPLIER 
 01-06-2022,Adults,Home Sweet Home Care Ltd,Home Care - Private Contractors Payment,626.81,0.00,COMMERCIAL SUPPLIER 
 01-06-2022,Adults,Home Sweet Home Care Ltd,Home Care - Private Contractors Payment,538.25,0.00,COMMERCIAL SUPPLIER 
 01-06-2022,Adults,Home Sweet Home Care Ltd,Home Care - Private Contractors Payment,522.18,0.00,COMMERCIAL SUPPLIER 
 01-06-2022,Adults,Home Sweet Home Care Ltd,Home Care - Private Contractors Payment,578.92,0.00,COMMERCIAL SUPPLIER 
 01-06-2022,Adults,Home Sweet Home Care Ltd,Home Care - Private Contractors Payment,888.55,0.00,COMMERCIAL SUPPLIER 
 01-06-2022,Adults,Home Sweet Home Care Ltd,Home Care - Private Contractors Payment,877.07,0.00,COMMERCIAL SUPPLIER 
 01-06-2022,Adults,Home Sweet Home Care Ltd,Home Care - Private Contractors Payment,881.99,0.00,COMMERCIAL SUPPLIER 
 01-06-2022,Adults,Home Sweet Home Care Ltd,Home Care - Private Contractors Payment,551.04,0.00,COMMERCIAL SUPPLIER 
 01-06-2022,Adults,Home Sweet Home Care Ltd,Home Care - Private Contractors Payment,551.04,0.00,COMMERCIAL SUPPLIER 
 01-06-2022,Adults,Home Sweet Home Care Ltd,Home Care - Private Contractors Payment,530.70,0.00,COMMERCIAL SUPPLIER 
 01-06-2022,Adults,Home Sweet Home Care Ltd,Home Care - Private Contractors Payment,538.25,0.00,COMMERCIAL SUPPLIER 
 01-06-2022,Adults,Home Sweet Home Care Ltd,Home Care - Private Contractors Payment,990.23,0.00,COMMERCIAL SUPPLIER 
 01-06-2022,Adults,Home Sweet Home Care Ltd,Home Care - Private Contractors Payment,1007.29,0.00,COMMERCIAL SUPPLIER 
 01-06-2022,Adults,Home Sweet Home Care Ltd,Home Care - Private Contractors Payment,544.15,0.00,COMMERCIAL SUPPLIER 
 01-06-2022,Adults,Home Sweet Home Care Ltd,Home Care - Private Contractors Payment,553.66,0.00,COMMERCIAL SUPPLIER 
 01-06-2022,Adults,Home Sweet Home Care Ltd,Home Care - Private Contractors Payment,551.04,0.00,COMMERCIAL SUPPLIER 
 01-06-2022,Adults,Home Sweet Home Care Ltd,Home Care - Private Contractors Payment,551.04,0.00,COMMERCIAL SUPPLIER 
 01-06-2022,Adults,Home Sweet Home Care Ltd,Home Care - Private Contractors Payment,554.65,0.00,COMMERCIAL SUPPLIER 
 01-06-2022,Adults,Home Sweet Home Care Ltd,Home Care - Private Contractors Payment,553.99,0.00,COMMERCIAL SUPPLIER 
 01-06-2022,Adults,Home Sweet Home Care Ltd,Home Care - Private Contractors Payment,552.35,0.00,COMMERCIAL SUPPLIER 
 01-06-2022,Adults,Home Sweet Home Care Ltd,Home Care - Private Contractors Payment,551.04,0.00,COMMERCIAL SUPPLIER 
 01-06-2022,Adults,Home Sweet Home Care Ltd,Home Care - Private Contractors Payment,551.04,0.00,COMMERCIAL SUPPLIER 
 01-06-2022,Adults,Home Sweet Home Care Ltd,Home Care - Private Contractors Payment,551.04,0.00,COMMERCIAL SUPPLIER 
 01-06-2022,Adults,Home Sweet Home Care Ltd,Home Care - Private Contractors Payment,510.70,0.00,COMMERCIAL SUPPLIER 
 01-06-2022,Adults,Home Sweet Home Care Ltd,Home Care - Private Contractors Payment,520.21,0.00,COMMERCIAL SUPPLIER 
 01-06-2022,Adults,Home Sweet Home Care Ltd,Home Care - Private Contractors Payment,938.74,0.00,COMMERCIAL SUPPLIER 
 01-06-2022,Adults,Home Sweet Home Care Ltd,Home Care - Private Contractors Payment,917.74,0.00,COMMERCIAL SUPPLIER 
 01-06-2022,Adults,Home Sweet Home Care Ltd,Home Care - Private Contractors Payment,520.21,0.00,COMMERCIAL SUPPLIER 
 01-06-2022,Adults,Home Sweet Home Care Ltd,Home Care - Private Contractors Payment,551.04,0.00,COMMERCIAL SUPPLIER 
 01-06-2022,Adults,Home Sweet Home Care Ltd,Home Care - Private Contractors Payment,551.04,0.00,COMMERCIAL SUPPLIER 
 01-06-2022,Adults,Home Sweet Home Care Ltd,Home Care - Private Contractors Payment,527.75,0.00,COMMERCIAL SUPPLIER 
 01-06-2022,Adults,Home Sweet Home Care Ltd,Home Care - Private Contractors Payment,527.75,0.00,COMMERCIAL SUPPLIER 
 01-06-2022,Adults,Home Sweet Home Care Ltd,Home Care - Private Contractors Payment,558.26,0.00,COMMERCIAL SUPPLIER 
 01-06-2022,Adults,Home Sweet Home Care Ltd,Home Care - Private Contractors Payment,560.88,0.00,COMMERCIAL SUPPLIER 
 01-06-2022,Adults,Home Sweet Home Care Ltd,Home Care - Private Contractors Payment,529.06,0.00,COMMERCIAL SUPPLIER 
 01-06-2022,Adults,Home Sweet Home Care Ltd,Home Care - Private Contractors Payment,561.86,0.00,COMMERCIAL SUPPLIER 
 01-06-2022,Adults,Home Sweet Home Care Ltd,Home Care - Private Contractors Payment,551.04,0.00,COMMERCIAL SUPPLIER 
 01-06-2022,Adults,Home Sweet Home Care Ltd,Home Care - Private Contractors Payment,551.04,0.00,COMMERCIAL SUPPLIER 
 01-06-2022,Adults,Home Sweet Home Care Ltd,Home Care - Private Contractors Payment,871.82,0.00,COMMERCIAL SUPPLIER 
 01-06-2022,Adults,Home Sweet Home Care Ltd,Home Care - Private Contractors Payment,533.33,0.00,COMMERCIAL SUPPLIER 
 01-06-2022,Adults,Home Sweet Home Care Ltd,Home Care - Private Contractors Payment,533.33,0.00,COMMERCIAL SUPPLIER 
 01-06-2022,Adults,Home Sweet Home Care Ltd,Home Care - Private Contractors Payment,582.20,0.00,COMMERCIAL SUPPLIER 
 01-06-2022,Adults,Home Sweet Home Care Ltd,Home Care - Private Contractors Payment,582.86,0.00,COMMERCIAL SUPPLIER 
 01-06-2022,Adults,Home Sweet Home Care Ltd,Home Care - Private Contractors Payment,924.96,0.00,COMMERCIAL SUPPLIER 
 01-06-2022,Adults,Home Sweet Home Care Ltd,Home Care - Private Contractors Payment,535.95,0.00,COMMERCIAL SUPPLIER 
 01-06-2022,Adults,Home Sweet Home Care Ltd,Home Care - Private Contractors Payment,535.95,0.00,COMMERCIAL SUPPLIER 
 01-06-2022,Adults,Home Sweet Home Care Ltd,Home Care - Private Contractors Payment,551.04,0.00,COMMERCIAL SUPPLIER 
 01-06-2022,Adults,Home Sweet Home Care Ltd,Home Care - Private Contractors Payment,551.04,0.00,COMMERCIAL SUPPLIER 
 01-06-2022,Adults,Home Sweet Home Care Ltd,Home Care - Private Contractors Payment,554.65,0.00,COMMERCIAL SUPPLIER 
 01-06-2022,Adults,Home Sweet Home Care Ltd,Home Care - Private Contractors Payment,551.04,0.00,COMMERCIAL SUPPLIER 
 01-06-2022,Adults,Home Sweet Home Care Ltd,Home Care - Private Contractors Payment,531.36,0.00,COMMERCIAL SUPPLIER 
 01-06-2022,Adults,Home Sweet Home Care Ltd,Home Care - Private Contractors Payment,529.06,0.00,COMMERCIAL SUPPLIER 
 01-06-2022,Adults,Home Sweet Home Care Ltd,Home Care - Private Contractors Payment,551.04,0.00,COMMERCIAL SUPPLIER 
 01-06-2022,Adults,Home Sweet Home Care Ltd,Home Care - Private Contractors Payment,519.55,0.00,COMMERCIAL SUPPLIER 
 01-06-2022,Adults,Home Sweet Home Care Ltd,Home Care - Private Contractors Payment,520.21,0.00,COMMERCIAL SUPPLIER 
 01-06-2022,Adults,Home Sweet Home Care Ltd,Home Care - Private Contractors Payment,511.68,0.00,COMMERCIAL SUPPLIER 
 01-06-2022,Adults,Home Sweet Home Care Ltd,Home Care - Private Contractors Payment,590.40,0.00,COMMERCIAL SUPPLIER 
 01-06-2022,Adults,Home Sweet Home Care Ltd,Home Care - Private Contractors Payment,553.99,0.00,COMMERCIAL SUPPLIER 
 01-06-2022,Adults,Home Sweet Home Care Ltd,Home Care - Private Contractors Payment,558.26,0.00,COMMERCIAL SUPPLIER 
 01-06-2022,Adults,Home Sweet Home Care Ltd,Home Care - Private Contractors Payment,551.04,0.00,COMMERCIAL SUPPLIER 
 01-06-2022,Adults,Home Sweet Home Care Ltd,Home Care - Private Contractors Payment,3584.00,0.00,COMMERCIAL SUPPLIER 
 01-06-2022,Adults,Home Sweet Home Care Ltd,Home Care - Private Contractors Payment,1640.98,0.00,COMMERCIAL SUPPLIER 
 01-06-2022,Adults,Home Sweet Home Care Ltd,Home Care - Private Contractors Payment,1382.19,0.00,COMMERCIAL SUPPLIER 
 01-06-2022,Adults,Home Sweet Home Care Ltd,Home Care - Private Contractors Payment,1121.10,0.00,COMMERCIAL SUPPLIER 
 01-06-2022,Adults,Home Sweet Home Care Ltd,Home Care - Private Contractors Payment,562.52,0.00,COMMERCIAL SUPPLIER 
 01-06-2022,Adults,Home Sweet Home Care Ltd,Home Care - Private Contractors Payment,566.78,0.00,COMMERCIAL SUPPLIER 
 01-06-2022,Adults,Home Sweet Home Care Ltd,Home Care - Private Contractors Payment,1133.24,0.00,COMMERCIAL SUPPLIER 
 01-06-2022,Adults,Home Sweet Home Care Ltd,Home Care - Private Contractors Payment,506.10,0.00,COMMERCIAL SUPPLIER 
 01-06-2022,Adults,Matrix SCM Ltd,Agency Staff,505.75,0.00,COMMERCIAL SUPPLIER 
 01-06-2022,Adults,Matrix SCM Ltd,Agency Staff,833.19,0.00,COMMERCIAL SUPPLIER 
 01-06-2022,Adults,Matrix SCM Ltd,Agency Staff,844.93,0.00,COMMERCIAL SUPPLIER 
 01-06-2022,Adults,Matrix SCM Ltd,Agency Staff,622.08,0.00,COMMERCIAL SUPPLIER 
 01-06-2022,Adults,Matrix SCM Ltd,Agency Staff,657.73,0.00,COMMERCIAL SUPPLIER 
 01-06-2022,Adults,Matrix SCM Ltd,Agency Staff,520.45,0.00,COMMERCIAL SUPPLIER 
 01-06-2022,Adults,Matrix SCM Ltd,Agency Staff,1394.66,0.00,COMMERCIAL SUPPLIER 
 01-06-2022,Adults,Matrix SCM Ltd,Agency Staff,1394.66,0.00,COMMERCIAL SUPPLIER 
 01-06-2022,Adults,Matrix SCM Ltd,Agency Staff,1207.46,0.00,COMMERCIAL SUPPLIER 
 01-06-2022,Adults,Matrix SCM Ltd,Agency Staff,882.42,0.00,COMMERCIAL SUPPLIER 
 01-06-2022,Adults,Matrix SCM Ltd,Agency Staff,759.85,0.00,COMMERCIAL SUPPLIER 
 01-06-2022,Adults,Matrix SCM Ltd,Agency Staff,795.96,0.00,COMMERCIAL SUPPLIER 
 01-06-2022,Adults,Matrix SCM Ltd,Agency Staff,2718.88,0.00,COMMERCIAL SUPPLIER 
 01-06-2022,Adults,Matrix SCM Ltd,Agency Staff,1067.71,0.00,COMMERCIAL SUPPLIER 
 01-06-2022,Adults,Matrix SCM Ltd,Agency Staff,762.65,0.00,COMMERCIAL SUPPLIER 
 01-06-2022,Adults,Matrix SCM Ltd,Agency Staff,809.28,0.00,COMMERCIAL SUPPLIER 
 01-06-2022,Adults,Matrix SCM Ltd,Agency Staff,759.85,0.00,COMMERCIAL SUPPLIER 
 01-06-2022,Adults,Matrix SCM Ltd,Agency Staff,1082.80,0.00,COMMERCIAL SUPPLIER 
 01-06-2022,Adults,Matrix SCM Ltd,Agency Staff,973.60,0.00,COMMERCIAL SUPPLIER 
 01-06-2022,Adults,Matrix SCM Ltd,Agency Staff,2777.70,0.00,COMMERCIAL SUPPLIER 
 01-06-2022,Adults,Matrix SCM Ltd,Agency Staff,2546.80,0.00,COMMERCIAL SUPPLIER 
 01-06-2022,Adults,Matrix SCM Ltd,Agency Staff,885.60,0.00,COMMERCIAL SUPPLIER 
 01-06-2022,Adults,Matrix SCM Ltd,Agency Staff,725.06,0.00,COMMERCIAL SUPPLIER 
 01-06-2022,Adults,Matrix SCM Ltd,Agency Staff,725.06,0.00,COMMERCIAL SUPPLIER 
 01-06-2022,Adults,Matrix SCM Ltd,Agency Staff,1241.28,0.00,COMMERCIAL SUPPLIER 
 01-06-2022,Adults,Matrix SCM Ltd,Agency Staff,1181.54,0.00,COMMERCIAL SUPPLIER 
 01-06-2022,Adults,Matrix SCM Ltd,Agency Staff,1241.28,0.00,COMMERCIAL SUPPLIER 
 01-06-2022,Adults,Matrix SCM Ltd,Agency Staff,1357.57,0.00,COMMERCIAL SUPPLIER 
 01-06-2022,Adults,Matrix SCM Ltd,Agency Staff,1244.51,0.00,COMMERCIAL SUPPLIER 
 01-06-2022,Adults,Matrix SCM Ltd,Agency Staff,777.42,0.00,COMMERCIAL SUPPLIER 
 01-06-2022,Adults,Matrix SCM Ltd,Agency Staff,1253.15,0.00,COMMERCIAL SUPPLIER 
 01-06-2022,Adults,Matrix SCM Ltd,Agency Staff,1118.67,0.00,COMMERCIAL SUPPLIER 
 01-06-2022,Adults,Matrix SCM Ltd,Agency Staff,1181.54,0.00,COMMERCIAL SUPPLIER 
 01-06-2022,Adults,Matrix SCM Ltd,Agency Staff,1241.28,0.00,COMMERCIAL SUPPLIER 
 01-06-2022,Adults,Matrix SCM Ltd,Agency Staff,728.29,0.00,COMMERCIAL SUPPLIER 
 01-06-2022,Adults,Matrix SCM Ltd,Agency Staff,1241.28,0.00,COMMERCIAL SUPPLIER 
 01-06-2022,Adults,Matrix SCM Ltd,Agency Staff,1241.28,0.00,COMMERCIAL SUPPLIER 
 01-06-2022,Adults,Matrix SCM Ltd,Agency Staff,728.29,0.00,COMMERCIAL SUPPLIER 
 01-06-2022,Adults,Matrix SCM Ltd,Agency Staff,1181.18,0.00,COMMERCIAL SUPPLIER 
 01-06-2022,Adults,Matrix SCM Ltd,Agency Staff,1254.24,0.00,COMMERCIAL SUPPLIER 
 01-06-2022,Adults,Matrix SCM Ltd,Agency Staff,1469.18,0.00,COMMERCIAL SUPPLIER 
 01-06-2022,Adults,Matrix SCM Ltd,Agency Staff,825.54,0.00,COMMERCIAL SUPPLIER 
 01-06-2022,Adults,Matrix SCM Ltd,Agency Staff,1207.44,0.00,COMMERCIAL SUPPLIER 
 01-06-2022,Adults,Matrix SCM Ltd,Agency Staff,1282.34,0.00,COMMERCIAL SUPPLIER 
 01-06-2022,Adults,Matrix SCM Ltd,Agency Staff,1253.15,0.00,COMMERCIAL SUPPLIER 
 01-06-2022,Adults,Matrix SCM Ltd,Agency Staff,1175.04,0.00,COMMERCIAL SUPPLIER 
 01-06-2022,Adults,Matrix SCM Ltd,Agency Staff,1282.34,0.00,COMMERCIAL SUPPLIER 
 01-06-2022,Adults,Matrix SCM Ltd,Agency Staff,757.99,0.00,COMMERCIAL SUPPLIER 
 01-06-2022,Adults,Matrix SCM Ltd,Agency Staff,1284.13,0.00,COMMERCIAL SUPPLIER 
 01-06-2022,Adults,Matrix SCM Ltd,Agency Staff,1473.12,0.00,COMMERCIAL SUPPLIER 
 01-06-2022,Adults,Matrix SCM Ltd,Agency Staff,844.58,0.00,COMMERCIAL SUPPLIER 
 01-06-2022,Adults,Matrix SCM Ltd,Agency Staff,880.88,0.00,COMMERCIAL SUPPLIER 
 01-06-2022,Adults,Matrix SCM Ltd,Agency Staff,752.06,0.00,COMMERCIAL SUPPLIER 
 01-06-2022,Adults,Matrix SCM Ltd,Agency Staff,1176.83,0.00,COMMERCIAL SUPPLIER 
 01-06-2022,Adults,Matrix SCM Ltd,Agency Staff,1295.70,0.00,COMMERCIAL SUPPLIER 
 01-06-2022,Adults,Matrix SCM Ltd,Agency Staff,1181.15,0.00,COMMERCIAL SUPPLIER 
 01-06-2022,Adults,Matrix SCM Ltd,Agency Staff,1282.32,0.00,COMMERCIAL SUPPLIER 
 01-06-2022,Adults,Matrix SCM Ltd,Agency Staff,1290.24,0.00,COMMERCIAL SUPPLIER 
 01-06-2022,Adults,Matrix SCM Ltd,Agency Staff,1169.28,0.00,COMMERCIAL SUPPLIER 
 01-06-2022,Adults,Matrix SCM Ltd,Agency Staff,1181.54,0.00,COMMERCIAL SUPPLIER 
 01-06-2022,Adults,Matrix SCM Ltd,Agency Staff,520.66,0.00,COMMERCIAL SUPPLIER 
 01-06-2022,Adults,Matrix SCM Ltd,Agency Staff,1181.52,0.00,COMMERCIAL SUPPLIER 
 02-06-2022,Adults,Gims Care Solution Ltd_a,Home Care - Private Contractors Payment,669.12,0.00,NON COMMERCIAL SUPPLIER 
 02-06-2022,Adults,Gims Care Solution Ltd_a,Home Care - Private Contractors Payment,669.12,0.00,NON COMMERCIAL SUPPLIER 
 02-06-2022,Adults,Gims Care Solution Ltd_a,Home Care - Private Contractors Payment,1102.08,0.00,NON COMMERCIAL SUPPLIER 
 02-06-2022,Adults,Gims Care Solution Ltd_a,Home Care - Private Contractors Payment,1102.08,0.00,NON COMMERCIAL SUPPLIER 
 02-06-2022,Adults,Gims Care Solution Ltd_a,Home Care - Private Contractors Payment,1653.12,0.00,NON COMMERCIAL SUPPLIER 
 02-06-2022,Adults,Gims Care Solution Ltd_a,Home Care - Private Contractors Payment,1653.12,0.00,NON COMMERCIAL SUPPLIER 
 02-06-2022,Adults,Gims Care Solution Ltd_a,Home Care - Private Contractors Payment,7440.00,0.00,NON COMMERCIAL SUPPLIER 
 02-06-2022,Adults,REMARK LTD,Home Care - Private Contractors Payment,590.40,0.00,COMMERCIAL SUPPLIER 
 02-06-2022,Adults,Sesnha Care ,Home Care - Private Contractors Payment,1054.80,0.00,INDIVIDUALS 
 05-06-2022,Adults,Home Support Services (Havering & Essex) Ltd,Home Care - Private Contractors Payment,552.35,0.00,COMMERCIAL SUPPLIER 
 05-06-2022,Adults,Home Support Services (Havering & Essex) Ltd,Home Care - Private Contractors Payment,554.32,0.00,COMMERCIAL SUPPLIER 
 05-06-2022,Adults,Home Support Services (Havering & Essex) Ltd,Home Care - Private Contractors Payment,551.04,0.00,COMMERCIAL SUPPLIER 
 05-06-2022,Adults,Home Support Services (Havering & Essex) Ltd,Home Care - Private Contractors Payment,507.74,0.00,COMMERCIAL SUPPLIER 
 05-06-2022,Adults,Home Support Services (Havering & Essex) Ltd,Home Care - Private Contractors Payment,553.01,0.00,COMMERCIAL SUPPLIER 
 05-06-2022,Adults,Home Support Services (Havering & Essex) Ltd,Home Care - Private Contractors Payment,553.34,0.00,COMMERCIAL SUPPLIER 
 05-06-2022,Adults,Home Support Services (Havering & Essex) Ltd,Home Care - Private Contractors Payment,533.00,0.00,COMMERCIAL SUPPLIER 
 05-06-2022,Adults,Home Support Services (Havering & Essex) Ltd,Home Care - Private Contractors Payment,623.86,0.00,COMMERCIAL SUPPLIER 
 05-06-2022,Adults,Home Support Services (Havering & Essex) Ltd,Home Care - Private Contractors Payment,551.37,0.00,COMMERCIAL SUPPLIER 
 05-06-2022,Adults,Home Support Services (Havering & Essex) Ltd,Home Care - Private Contractors Payment,516.27,0.00,COMMERCIAL SUPPLIER 
 05-06-2022,Adults,Home Support Services (Havering & Essex) Ltd,Home Care - Private Contractors Payment,551.04,0.00,COMMERCIAL SUPPLIER 
 05-06-2022,Adults,Home Support Services (Havering & Essex) Ltd,Home Care - Private Contractors Payment,551.04,0.00,COMMERCIAL SUPPLIER 
 05-06-2022,Adults,Home Support Services (Havering & Essex) Ltd,Home Care - Private Contractors Payment,551.37,0.00,COMMERCIAL SUPPLIER 
 05-06-2022,Adults,Home Support Services (Havering & Essex) Ltd,Home Care - Private Contractors Payment,514.62,0.00,COMMERCIAL SUPPLIER 
 05-06-2022,Adults,Home Support Services (Havering & Essex) Ltd,Home Care - Private Contractors Payment,856.08,0.00,COMMERCIAL SUPPLIER 
 05-06-2022,Adults,Home Support Services (Havering & Essex) Ltd,Home Care - Private Contractors Payment,533.00,0.00,COMMERCIAL SUPPLIER 
 05-06-2022,Adults,Home Support Services (Havering & Essex) Ltd,Home Care - Private Contractors Payment,563.18,0.00,COMMERCIAL SUPPLIER 
 05-06-2022,Adults,Home Support Services (Havering & Essex) Ltd,Home Care - Private Contractors Payment,512.01,0.00,COMMERCIAL SUPPLIER 
 05-06-2022,Adults,Home Support Services (Havering & Essex) Ltd,Home Care - Private Contractors Payment,512.34,0.00,COMMERCIAL SUPPLIER 
 05-06-2022,Adults,Home Support Services (Havering & Essex) Ltd,Home Care - Private Contractors Payment,571.38,0.00,COMMERCIAL SUPPLIER 
 05-06-2022,Adults,Home Support Services (Havering & Essex) Ltd,Home Care - Private Contractors Payment,551.04,0.00,COMMERCIAL SUPPLIER 
 05-06-2022,Adults,Home Support Services (Havering & Essex) Ltd,Home Care - Private Contractors Payment,544.15,0.00,COMMERCIAL SUPPLIER 
 05-06-2022,Adults,Home Support Services (Havering & Essex) Ltd,Home Care - Private Contractors Payment,520.21,0.00,COMMERCIAL SUPPLIER 
 05-06-2022,Adults,Home Support Services (Havering & Essex) Ltd,Home Care - Private Contractors Payment,553.01,0.00,COMMERCIAL SUPPLIER 
 05-06-2022,Adults,Home Support Services (Havering & Essex) Ltd,Home Care - Private Contractors Payment,514.63,0.00,COMMERCIAL SUPPLIER 
 05-06-2022,Adults,Home Support Services (Havering & Essex) Ltd,Home Care - Private Contractors Payment,556.62,0.00,COMMERCIAL SUPPLIER 
 05-06-2022,Adults,Home Support Services (Havering & Essex) Ltd,Home Care - Private Contractors Payment,629.76,0.00,COMMERCIAL SUPPLIER 
 05-06-2022,Adults,Home Support Services (Havering & Essex) Ltd,Home Care - Private Contractors Payment,555.63,0.00,COMMERCIAL SUPPLIER 
 05-06-2022,Adults,Home Support Services (Havering & Essex) Ltd,Home Care - Private Contractors Payment,578.92,0.00,COMMERCIAL SUPPLIER 
 05-06-2022,Adults,Home Support Services (Havering & Essex) Ltd,Home Care - Private Contractors Payment,552.68,0.00,COMMERCIAL SUPPLIER 
 05-06-2022,Adults,Home Support Services (Havering & Essex) Ltd,Home Care - Private Contractors Payment,539.87,0.00,COMMERCIAL SUPPLIER 
 05-06-2022,Adults,Home Support Services (Havering & Essex) Ltd,Home Care - Private Contractors Payment,551.04,0.00,COMMERCIAL SUPPLIER 
 05-06-2022,Adults,Home Support Services (Havering & Essex) Ltd,Home Care - Private Contractors Payment,551.04,0.00,COMMERCIAL SUPPLIER 
 05-06-2022,Adults,Home Support Services (Havering & Essex) Ltd,Home Care - Private Contractors Payment,551.04,0.00,COMMERCIAL SUPPLIER 
 05-06-2022,Adults,Home Support Services (Havering & Essex) Ltd,Home Care - Private Contractors Payment,551.04,0.00,COMMERCIAL SUPPLIER 
 05-06-2022,Adults,Home Support Services (Havering & Essex) Ltd,Home Care - Private Contractors Payment,885.60,0.00,COMMERCIAL SUPPLIER 
 05-06-2022,Adults,Home Support Services (Havering & Essex) Ltd,Home Care - Private Contractors Payment,521.52,0.00,COMMERCIAL SUPPLIER 
 05-06-2022,Adults,Home Support Services (Havering & Essex) Ltd,Home Care - Private Contractors Payment,580.56,0.00,COMMERCIAL SUPPLIER 
 05-06-2022,Adults,Home Support Services (Havering & Essex) Ltd,Home Care - Private Contractors Payment,551.04,0.00,COMMERCIAL SUPPLIER 
 05-06-2022,Adults,Home Support Services (Havering & Essex) Ltd,Home Care - Private Contractors Payment,551.04,0.00,COMMERCIAL SUPPLIER 
 05-06-2022,Adults,Home Support Services (Havering & Essex) Ltd,Home Care - Private Contractors Payment,549.40,0.00,COMMERCIAL SUPPLIER 
 05-06-2022,Adults,Home Support Services (Havering & Essex) Ltd,Home Care - Private Contractors Payment,587.78,0.00,COMMERCIAL SUPPLIER 
 05-06-2022,Adults,Home Support Services (Havering & Essex) Ltd,Home Care - Private Contractors Payment,635.34,0.00,COMMERCIAL SUPPLIER 
 05-06-2022,Adults,Home Support Services (Havering & Essex) Ltd,Home Care - Private Contractors Payment,560.88,0.00,COMMERCIAL SUPPLIER 
 05-06-2022,Adults,Home Support Services (Havering & Essex) Ltd,Home Care - Private Contractors Payment,551.04,0.00,COMMERCIAL SUPPLIER 
 05-06-2022,Adults,Home Support Services (Havering & Essex) Ltd,Home Care - Private Contractors Payment,563.50,0.00,COMMERCIAL SUPPLIER 
 05-06-2022,Adults,Home Support Services (Havering & Essex) Ltd,Home Care - Private Contractors Payment,551.04,0.00,COMMERCIAL SUPPLIER 
 05-06-2022,Adults,Home Support Services (Havering & Essex) Ltd,Home Care - Private Contractors Payment,551.04,0.00,COMMERCIAL SUPPLIER 
 05-06-2022,Adults,Home Support Services (Havering & Essex) Ltd,Home Care - Private Contractors Payment,885.60,0.00,COMMERCIAL SUPPLIER 
 05-06-2022,Adults,Home Support Services (Havering & Essex) Ltd,Home Care - Private Contractors Payment,593.35,0.00,COMMERCIAL SUPPLIER 
 05-06-2022,Adults,Home Support Services (Havering & Essex) Ltd,Home Care - Private Contractors Payment,551.04,0.00,COMMERCIAL SUPPLIER 
 05-06-2022,Adults,Home Support Services (Havering & Essex) Ltd,Home Care - Private Contractors Payment,551.04,0.00,COMMERCIAL SUPPLIER 
 05-06-2022,Adults,Home Support Services (Havering & Essex) Ltd,Home Care - Private Contractors Payment,531.36,0.00,COMMERCIAL SUPPLIER 
 05-06-2022,Adults,Home Support Services (Havering & Essex) Ltd,Home Care - Private Contractors Payment,531.36,0.00,COMMERCIAL SUPPLIER 
 05-06-2022,Adults,Optimal Care Services Ltd,Supported Other Accommodation - Private Contractors Payment,3853.28,0.00,COMMERCIAL SUPPLIER 
 05-06-2022,Adults,Optimal Care Services Ltd,Supported Other Accommodation - Private Contractors Payment,6191.84,0.00,COMMERCIAL SUPPLIER 
 05-06-2022,Adults,Optimal Care Services Ltd,Supported Other Accommodation - Private Contractors Payment,7532.48,0.00,COMMERCIAL SUPPLIER 
 06-06-2022,Adults,Quality Healthcare Solutions Ltd t/a Kare Plus Romford,Home Care - Private Contractors Payment,533.98,0.00,COMMERCIAL SUPPLIER 
 06-06-2022,Adults,Quality Healthcare Solutions Ltd t/a Kare Plus Romford,Home Care - Private Contractors Payment,1487.81,0.00,COMMERCIAL SUPPLIER 
 06-06-2022,Adults,Quality Healthcare Solutions Ltd t/a Kare Plus Romford,Home Care - Private Contractors Payment,554.98,0.00,COMMERCIAL SUPPLIER 
 06-06-2022,Adults,Quality Healthcare Solutions Ltd t/a Kare Plus Romford,Home Care - Private Contractors Payment,567.77,0.00,COMMERCIAL SUPPLIER 
 06-06-2022,Adults,Quality Healthcare Solutions Ltd t/a Kare Plus Romford,Home Care - Private Contractors Payment,611.06,0.00,COMMERCIAL SUPPLIER 
 06-06-2022,Adults,Quality Healthcare Solutions Ltd t/a Kare Plus Romford,Home Care - Private Contractors Payment,613.03,0.00,COMMERCIAL SUPPLIER 
 06-06-2022,Adults,Quality Healthcare Solutions Ltd t/a Kare Plus Romford,Home Care - Private Contractors Payment,570.39,0.00,COMMERCIAL SUPPLIER 
 06-06-2022,Adults,Quality Healthcare Solutions Ltd t/a Kare Plus Romford,Home Care - Private Contractors Payment,766.21,0.00,COMMERCIAL SUPPLIER 
 06-06-2022,Adults,Quality Healthcare Solutions Ltd t/a Kare Plus Romford,Home Care - Private Contractors Payment,830.82,0.00,COMMERCIAL SUPPLIER 
 06-06-2022,Adults,Bluebird Care Havering,Home Care - Private Contractors Payment,2450.00,0.00,COMMERCIAL SUPPLIER 
 06-06-2022,Adults,London Borough of Barking & Dagenham_a,Daycare - Private Contractors Payment,3420.00,0.00,LOCAL AUTHORITY SERVICES 
 06-06-2022,Adults,London Borough of Barking & Dagenham_a,Daycare - Private Contractors Payment,3420.00,0.00,LOCAL AUTHORITY SERVICES 
 06-06-2022,Adults,London Borough of Barking & Dagenham_a,Daycare - Private Contractors Payment,3420.00,0.00,LOCAL AUTHORITY SERVICES 
 06-06-2022,Adults,London Borough of Barking & Dagenham_a,Daycare - Private Contractors Payment,2160.00,0.00,LOCAL AUTHORITY SERVICES 
 06-06-2022,Adults,London Borough of Barking & Dagenham_a,Daycare - Private Contractors Payment,3420.00,0.00,LOCAL AUTHORITY SERVICES 
 06-06-2022,Adults,London Borough of Barking & Dagenham_a,Daycare - Private Contractors Payment,1440.00,0.00,LOCAL AUTHORITY SERVICES 
 06-06-2022,Adults,London Borough of Barking & Dagenham_a,Daycare - Private Contractors Payment,1980.00,0.00,LOCAL AUTHORITY SERVICES 
 06-06-2022,Adults,Spring Consult UK Ltd,Home Care - Private Contractors Payment,3857.28,0.00,COMMERCIAL SUPPLIER 
 06-06-2022,Adults,Spring Consult UK Ltd,Home Care - Private Contractors Payment,3857.28,0.00,COMMERCIAL SUPPLIER 
 06-06-2022,Adults,North London Community Care Agency,Home Care - Private Contractors Payment,551.04,0.00,COMMERCIAL SUPPLIER 
 06-06-2022,Adults,North London Community Care Agency,Home Care - Private Contractors Payment,551.04,0.00,COMMERCIAL SUPPLIER 
 06-06-2022,Adults,North London Community Care Agency,Home Care - Private Contractors Payment,551.04,0.00,COMMERCIAL SUPPLIER 
 06-06-2022,Adults,North London Community Care Agency,Home Care - Private Contractors Payment,551.04,0.00,COMMERCIAL SUPPLIER 
 07-06-2022,Adults,Treal Care Limited,Home Care - Private Contractors Payment,1163.25,0.00,COMMERCIAL SUPPLIER 
 07-06-2022,Adults,Treal Care Limited,Home Care - Private Contractors Payment,1057.50,0.00,COMMERCIAL SUPPLIER 
 07-06-2022,Adults,Treal Care Limited,Home Care - Private Contractors Payment,634.50,0.00,COMMERCIAL SUPPLIER 
 07-06-2022,Adults,Romford Private Hire Ltd,Client Transport,2870.00,0.00,COMMERCIAL SUPPLIER 
 07-06-2022,Adults,Romford Private Hire Ltd,Client Transport,3255.00,0.00,COMMERCIAL SUPPLIER 
 07-06-2022,Adults,Teebollz Consulting Ltd,"Purchase - Equipment, Furniture And Materials",1500.00,0.00,COMMERCIAL SUPPLIER 
 07-06-2022,Adults,Lodge Group Care UK Ltd,Home Care - Private Contractors Payment,826.56,0.00,COMMERCIAL SUPPLIER 
 07-06-2022,Adults,Lodge Group Care UK Ltd,Home Care - Private Contractors Payment,551.04,0.00,COMMERCIAL SUPPLIER 
 07-06-2022,Adults,Lodge Group Care UK Ltd,Home Care - Private Contractors Payment,531.36,0.00,COMMERCIAL SUPPLIER 
 07-06-2022,Adults,Lodge Group Care UK Ltd,Home Care - Private Contractors Payment,865.92,0.00,COMMERCIAL SUPPLIER 
 07-06-2022,Adults,Lodge Group Care UK Ltd,Home Care - Private Contractors Payment,577.94,0.00,COMMERCIAL SUPPLIER 
 07-06-2022,Adults,Lodge Group Care UK Ltd,Home Care - Private Contractors Payment,1002.37,0.00,COMMERCIAL SUPPLIER 
 07-06-2022,Adults,Lodge Group Care UK Ltd,Home Care - Private Contractors Payment,826.56,0.00,COMMERCIAL SUPPLIER 
 07-06-2022,Adults,Lodge Group Care UK Ltd,Home Care - Private Contractors Payment,620.25,0.00,COMMERCIAL SUPPLIER 
 07-06-2022,Adults,Lodge Group Care UK Ltd,Home Care - Private Contractors Payment,551.04,0.00,COMMERCIAL SUPPLIER 
 07-06-2022,Adults,Lodge Group Care UK Ltd,Home Care - Private Contractors Payment,551.04,0.00,COMMERCIAL SUPPLIER 
 07-06-2022,Adults,Lodge Group Care UK Ltd,Home Care - Private Contractors Payment,532.67,0.00,COMMERCIAL SUPPLIER 
 07-06-2022,Adults,Lodge Group Care UK Ltd,Home Care - Private Contractors Payment,576.30,0.00,COMMERCIAL SUPPLIER 
 07-06-2022,Adults,Lodge Group Care UK Ltd,Home Care - Private Contractors Payment,530.38,0.00,COMMERCIAL SUPPLIER 
 07-06-2022,Adults,Lodge Group Care UK Ltd,Home Care - Private Contractors Payment,551.04,0.00,COMMERCIAL SUPPLIER 
 07-06-2022,Adults,Lodge Group Care UK Ltd,Home Care - Private Contractors Payment,551.70,0.00,COMMERCIAL SUPPLIER 
 07-06-2022,Adults,Lodge Group Care UK Ltd,Home Care - Private Contractors Payment,944.64,0.00,COMMERCIAL SUPPLIER 
 07-06-2022,Adults,Lodge Group Care UK Ltd,Home Care - Private Contractors Payment,559.90,0.00,COMMERCIAL SUPPLIER 
 07-06-2022,Adults,Lodge Group Care UK Ltd,Home Care - Private Contractors Payment,552.68,0.00,COMMERCIAL SUPPLIER 
 07-06-2022,Adults,Lodge Group Care UK Ltd,Home Care - Private Contractors Payment,551.04,0.00,COMMERCIAL SUPPLIER 
 07-06-2022,Adults,Lodge Group Care UK Ltd,Home Care - Private Contractors Payment,500.54,0.00,COMMERCIAL SUPPLIER 
 07-06-2022,Adults,Lodge Group Care UK Ltd,Home Care - Private Contractors Payment,554.65,0.00,COMMERCIAL SUPPLIER 
 07-06-2022,Adults,Lodge Group Care UK Ltd,Home Care - Private Contractors Payment,628.78,0.00,COMMERCIAL SUPPLIER 
 07-06-2022,Adults,Lodge Group Care UK Ltd,Home Care - Private Contractors Payment,583.18,0.00,COMMERCIAL SUPPLIER 
 07-06-2022,Adults,Lodge Group Care UK Ltd,Home Care - Private Contractors Payment,629.43,0.00,COMMERCIAL SUPPLIER 
 07-06-2022,Adults,Lodge Group Care UK Ltd,Home Care - Private Contractors Payment,551.04,0.00,COMMERCIAL SUPPLIER 
 07-06-2022,Adults,Lodge Group Care UK Ltd,Home Care - Private Contractors Payment,640.91,0.00,COMMERCIAL SUPPLIER 
 07-06-2022,Adults,Lodge Group Care UK Ltd,Home Care - Private Contractors Payment,574.98,0.00,COMMERCIAL SUPPLIER 
 07-06-2022,Adults,Lodge Group Care UK Ltd,Home Care - Private Contractors Payment,590.08,0.00,COMMERCIAL SUPPLIER 
 07-06-2022,Adults,Lodge Group Care UK Ltd,Home Care - Private Contractors Payment,612.70,0.00,COMMERCIAL SUPPLIER 
 07-06-2022,Adults,Lodge Group Care UK Ltd,Home Care - Private Contractors Payment,549.40,0.00,COMMERCIAL SUPPLIER 
 07-06-2022,Adults,Lodge Group Care UK Ltd,Home Care - Private Contractors Payment,740.62,0.00,COMMERCIAL SUPPLIER 
 07-06-2022,Adults,Lodge Group Care UK Ltd,Home Care - Private Contractors Payment,549.73,0.00,COMMERCIAL SUPPLIER 
 07-06-2022,Adults,Lodge Group Care UK Ltd,Home Care - Private Contractors Payment,653.05,0.00,COMMERCIAL SUPPLIER 
 07-06-2022,Adults,Lodge Group Care UK Ltd,Home Care - Private Contractors Payment,554.98,0.00,COMMERCIAL SUPPLIER 
 07-06-2022,Adults,Lodge Group Care UK Ltd,Home Care - Private Contractors Payment,555.63,0.00,COMMERCIAL SUPPLIER 
 07-06-2022,Adults,Lodge Group Care UK Ltd,Home Care - Private Contractors Payment,556.94,0.00,COMMERCIAL SUPPLIER 
 07-06-2022,Adults,Lodge Group Care UK Ltd,Home Care - Private Contractors Payment,788.18,0.00,COMMERCIAL SUPPLIER 
 07-06-2022,Adults,Lodge Group Care UK Ltd,Home Care - Private Contractors Payment,551.70,0.00,COMMERCIAL SUPPLIER 
 07-06-2022,Adults,Lodge Group Care UK Ltd,Home Care - Private Contractors Payment,672.40,0.00,COMMERCIAL SUPPLIER 
 07-06-2022,Adults,Lodge Group Care UK Ltd,Home Care - Private Contractors Payment,669.12,0.00,COMMERCIAL SUPPLIER 
 07-06-2022,Adults,Lodge Group Care UK Ltd,Home Care - Private Contractors Payment,569.74,0.00,COMMERCIAL SUPPLIER 
 07-06-2022,Adults,Lodge Group Care UK Ltd,Home Care - Private Contractors Payment,643.22,0.00,COMMERCIAL SUPPLIER 
 07-06-2022,Adults,Lodge Group Care UK Ltd,Home Care - Private Contractors Payment,560.88,0.00,COMMERCIAL SUPPLIER 
 07-06-2022,Adults,Lodge Group Care UK Ltd,Home Care - Private Contractors Payment,560.88,0.00,COMMERCIAL SUPPLIER 
 07-06-2022,Adults,Lodge Group Care UK Ltd,Home Care - Private Contractors Payment,595.31,0.00,COMMERCIAL SUPPLIER 
 07-06-2022,Adults,Lodge Group Care UK Ltd,Home Care - Private Contractors Payment,551.04,0.00,COMMERCIAL SUPPLIER 
 07-06-2022,Adults,Lodge Group Care UK Ltd,Home Care - Private Contractors Payment,551.04,0.00,COMMERCIAL SUPPLIER 
 07-06-2022,Adults,Lodge Group Care UK Ltd,Home Care - Private Contractors Payment,580.56,0.00,COMMERCIAL SUPPLIER 
 07-06-2022,Adults,Lodge Group Care UK Ltd,Home Care - Private Contractors Payment,600.24,0.00,COMMERCIAL SUPPLIER 
 07-06-2022,Adults,Lodge Group Care UK Ltd,Home Care - Private Contractors Payment,580.24,0.00,COMMERCIAL SUPPLIER 
 07-06-2022,Adults,Lodge Group Care UK Ltd,Home Care - Private Contractors Payment,614.34,0.00,COMMERCIAL SUPPLIER 
 07-06-2022,Adults,Lodge Group Care UK Ltd,Home Care - Private Contractors Payment,732.75,0.00,COMMERCIAL SUPPLIER 
 07-06-2022,Adults,Lodge Group Care UK Ltd,Home Care - Private Contractors Payment,538.91,0.00,COMMERCIAL SUPPLIER 
 07-06-2022,Adults,Lodge Group Care UK Ltd,Home Care - Private Contractors Payment,546.12,0.00,COMMERCIAL SUPPLIER 
 07-06-2022,Adults,Lodge Group Care UK Ltd,Home Care - Private Contractors Payment,548.74,0.00,COMMERCIAL SUPPLIER 
 07-06-2022,Adults,Lodge Group Care UK Ltd,Home Care - Private Contractors Payment,564.49,0.00,COMMERCIAL SUPPLIER 
 07-06-2022,Adults,Lodge Group Care UK Ltd,Home Care - Private Contractors Payment,551.37,0.00,COMMERCIAL SUPPLIER 
 07-06-2022,Adults,Lodge Group Care UK Ltd,Home Care - Private Contractors Payment,672.07,0.00,COMMERCIAL SUPPLIER 
 07-06-2022,Adults,Lodge Group Care UK Ltd,Home Care - Private Contractors Payment,613.03,0.00,COMMERCIAL SUPPLIER 
 07-06-2022,Adults,Lodge Group Care UK Ltd,Home Care - Private Contractors Payment,553.01,0.00,COMMERCIAL SUPPLIER 
 07-06-2022,Adults,Lodge Group Care UK Ltd,Home Care - Private Contractors Payment,685.52,0.00,COMMERCIAL SUPPLIER 
 07-06-2022,Adults,Lodge Group Care UK Ltd,Home Care - Private Contractors Payment,757.35,0.00,COMMERCIAL SUPPLIER 
 07-06-2022,Adults,Lodge Group Care UK Ltd,Home Care - Private Contractors Payment,614.34,0.00,COMMERCIAL SUPPLIER 
 07-06-2022,Adults,Lodge Group Care UK Ltd,Home Care - Private Contractors Payment,621.89,0.00,COMMERCIAL SUPPLIER 
 07-06-2022,Adults,Lodge Group Care UK Ltd,Home Care - Private Contractors Payment,596.30,0.00,COMMERCIAL SUPPLIER 
 07-06-2022,Adults,Lodge Group Care UK Ltd,Home Care - Private Contractors Payment,553.99,0.00,COMMERCIAL SUPPLIER 
 07-06-2022,Adults,Lodge Group Care UK Ltd,Home Care - Private Contractors Payment,629.76,0.00,COMMERCIAL SUPPLIER 
 07-06-2022,Adults,Lodge Group Care UK Ltd,Home Care - Private Contractors Payment,551.04,0.00,COMMERCIAL SUPPLIER 
 07-06-2022,Adults,Lodge Group Care UK Ltd,Home Care - Private Contractors Payment,599.58,0.00,COMMERCIAL SUPPLIER 
 07-06-2022,Adults,Lodge Group Care UK Ltd,Home Care - Private Contractors Payment,602.86,0.00,COMMERCIAL SUPPLIER 
 07-06-2022,Adults,Lodge Group Care UK Ltd,Home Care - Private Contractors Payment,554.65,0.00,COMMERCIAL SUPPLIER 
 07-06-2022,Adults,Lodge Group Care UK Ltd,Home Care - Private Contractors Payment,573.34,0.00,COMMERCIAL SUPPLIER 
 07-06-2022,Adults,Lodge Group Care UK Ltd,Home Care - Private Contractors Payment,573.67,0.00,COMMERCIAL SUPPLIER 
 07-06-2022,Adults,Lodge Group Care UK Ltd,Home Care - Private Contractors Payment,551.04,0.00,COMMERCIAL SUPPLIER 
 07-06-2022,Adults,Lodge Group Care UK Ltd,Home Care - Private Contractors Payment,530.04,0.00,COMMERCIAL SUPPLIER 
 07-06-2022,Adults,Lodge Group Care UK Ltd,Home Care - Private Contractors Payment,551.04,0.00,COMMERCIAL SUPPLIER 
 07-06-2022,Adults,Lodge Group Care UK Ltd,Home Care - Private Contractors Payment,589.74,0.00,COMMERCIAL SUPPLIER 
 07-06-2022,Adults,Lodge Group Care UK Ltd,Home Care - Private Contractors Payment,524.14,0.00,COMMERCIAL SUPPLIER 
 07-06-2022,Adults,Lodge Group Care UK Ltd,Home Care - Private Contractors Payment,574.00,0.00,COMMERCIAL SUPPLIER 
 07-06-2022,Adults,Lodge Group Care UK Ltd,Home Care - Private Contractors Payment,574.98,0.00,COMMERCIAL SUPPLIER 
 07-06-2022,Adults,Lodge Group Care UK Ltd,Home Care - Private Contractors Payment,608.11,0.00,COMMERCIAL SUPPLIER 
 07-06-2022,Adults,Lodge Group Care UK Ltd,Home Care - Private Contractors Payment,644.52,0.00,COMMERCIAL SUPPLIER 
 07-06-2022,Adults,Lodge Group Care UK Ltd,Home Care - Private Contractors Payment,701.26,0.00,COMMERCIAL SUPPLIER 
 07-06-2022,Adults,Lodge Group Care UK Ltd,Home Care - Private Contractors Payment,574.98,0.00,COMMERCIAL SUPPLIER 
 07-06-2022,Adults,Lodge Group Care UK Ltd,Home Care - Private Contractors Payment,574.98,0.00,COMMERCIAL SUPPLIER 
 07-06-2022,Adults,Lodge Group Care UK Ltd,Home Care - Private Contractors Payment,690.45,0.00,COMMERCIAL SUPPLIER 
 07-06-2022,Adults,Lodge Group Care UK Ltd,Home Care - Private Contractors Payment,531.36,0.00,COMMERCIAL SUPPLIER 
 07-06-2022,Adults,Lodge Group Care UK Ltd,Home Care - Private Contractors Payment,556.94,0.00,COMMERCIAL SUPPLIER 
 07-06-2022,Adults,Dignified Homecare,Home Care - Private Contractors Payment,1312.00,0.00,COMMERCIAL SUPPLIER 
 08-06-2022,Adults,London Care Plc_a,Home Care - Private Contractors Payment,691.42,0.00,COMMERCIAL SUPPLIER 
 08-06-2022,Adults,London Care Plc_a,Home Care - Private Contractors Payment,590.73,0.00,COMMERCIAL SUPPLIER 
 08-06-2022,Adults,London Care Plc_a,Home Care - Private Contractors Payment,569.08,0.00,COMMERCIAL SUPPLIER 
 08-06-2022,Adults,London Care Plc_a,Home Care - Private Contractors Payment,600.57,0.00,COMMERCIAL SUPPLIER 
 08-06-2022,Adults,London Care Plc_a,Home Care - Private Contractors Payment,557.93,0.00,COMMERCIAL SUPPLIER 
 08-06-2022,Adults,London Care Plc_a,Home Care - Private Contractors Payment,583.51,0.00,COMMERCIAL SUPPLIER 
 08-06-2022,Adults,London Care Plc_a,Home Care - Private Contractors Payment,686.50,0.00,COMMERCIAL SUPPLIER 
 08-06-2022,Adults,London Care Plc_a,Home Care - Private Contractors Payment,772.77,0.00,COMMERCIAL SUPPLIER 
 08-06-2022,Adults,London Care Plc_a,Home Care - Private Contractors Payment,748.50,0.00,COMMERCIAL SUPPLIER 
 08-06-2022,Adults,London Care Plc_a,Home Care - Private Contractors Payment,811.14,0.00,COMMERCIAL SUPPLIER 
 08-06-2022,Adults,London Care Plc_a,Home Care - Private Contractors Payment,787.20,0.00,COMMERCIAL SUPPLIER 
 08-06-2022,Adults,London Care Plc_a,Home Care - Private Contractors Payment,709.46,0.00,COMMERCIAL SUPPLIER 
 08-06-2022,Adults,London Care Plc_a,Home Care - Private Contractors Payment,687.49,0.00,COMMERCIAL SUPPLIER 
 08-06-2022,Adults,Teebollz Consulting Ltd,Home Care - Private Contractors Payment,595.00,0.00,COMMERCIAL SUPPLIER 
 08-06-2022,Adults,Star Mini Cabs.,Client Transport,800.00,0.00,COMMERCIAL SUPPLIER 
 08-06-2022,Adults,Matrix SCM Ltd,Agency Staff,520.66,0.00,COMMERCIAL SUPPLIER 
 08-06-2022,Adults,Matrix SCM Ltd,Agency Staff,801.24,0.00,COMMERCIAL SUPPLIER 
 08-06-2022,Adults,Matrix SCM Ltd,Agency Staff,682.08,0.00,COMMERCIAL SUPPLIER 
 08-06-2022,Adults,Matrix SCM Ltd,Agency Staff,777.42,0.00,COMMERCIAL SUPPLIER 
 08-06-2022,Adults,Matrix SCM Ltd,Agency Staff,765.83,0.00,COMMERCIAL SUPPLIER 
 08-06-2022,Adults,Matrix SCM Ltd,Agency Staff,692.12,0.00,COMMERCIAL SUPPLIER 
 08-06-2022,Adults,Matrix SCM Ltd,Agency Staff,738.24,0.00,COMMERCIAL SUPPLIER 
 08-06-2022,Adults,Matrix SCM Ltd,Agency Staff,852.28,0.00,COMMERCIAL SUPPLIER 
 08-06-2022,Adults,Matrix SCM Ltd,Agency Staff,749.94,0.00,COMMERCIAL SUPPLIER 
 08-06-2022,Adults,Matrix SCM Ltd,Agency Staff,757.11,0.00,COMMERCIAL SUPPLIER 
 08-06-2022,Adults,Matrix SCM Ltd,Agency Staff,749.94,0.00,COMMERCIAL SUPPLIER 
 08-06-2022,Adults,Matrix SCM Ltd,Agency Staff,1207.46,0.00,COMMERCIAL SUPPLIER 
 08-06-2022,Adults,Matrix SCM Ltd,Agency Staff,704.34,0.00,COMMERCIAL SUPPLIER 
 08-06-2022,Adults,Matrix SCM Ltd,Agency Staff,751.89,0.00,COMMERCIAL SUPPLIER 
 08-06-2022,Adults,Matrix SCM Ltd,Agency Staff,810.77,0.00,COMMERCIAL SUPPLIER 
 08-06-2022,Adults,Matrix SCM Ltd,Agency Staff,713.85,0.00,COMMERCIAL SUPPLIER 
 08-06-2022,Adults,Matrix SCM Ltd,Agency Staff,749.94,0.00,COMMERCIAL SUPPLIER 
 08-06-2022,Adults,Matrix SCM Ltd,Agency Staff,749.94,0.00,COMMERCIAL SUPPLIER 
 08-06-2022,Adults,Matrix SCM Ltd,Agency Staff,693.78,0.00,COMMERCIAL SUPPLIER 
 08-06-2022,Adults,Matrix SCM Ltd,Agency Staff,940.68,0.00,COMMERCIAL SUPPLIER 
 08-06-2022,Adults,Matrix SCM Ltd,Agency Staff,516.13,0.00,COMMERCIAL SUPPLIER 
 08-06-2022,Adults,Matrix SCM Ltd,Agency Staff,711.00,0.00,COMMERCIAL SUPPLIER 
 08-06-2022,Adults,Matrix SCM Ltd,Agency Staff,1666.62,0.00,COMMERCIAL SUPPLIER 
 08-06-2022,Adults,Matrix SCM Ltd,Agency Staff,539.52,0.00,COMMERCIAL SUPPLIER 
 08-06-2022,Adults,Matrix SCM Ltd,Agency Staff,1528.08,0.00,COMMERCIAL SUPPLIER 
 08-06-2022,Adults,Matrix SCM Ltd,Agency Staff,2039.16,0.00,COMMERCIAL SUPPLIER 
 08-06-2022,Adults,Matrix SCM Ltd,Agency Staff,845.68,0.00,COMMERCIAL SUPPLIER 
 08-06-2022,Adults,Matrix SCM Ltd,Agency Staff,709.92,0.00,COMMERCIAL SUPPLIER 
 08-06-2022,Adults,Matrix SCM Ltd,Agency Staff,757.11,0.00,COMMERCIAL SUPPLIER 
 08-06-2022,Adults,Matrix SCM Ltd,Agency Staff,704.34,0.00,COMMERCIAL SUPPLIER 
 08-06-2022,Adults,Matrix SCM Ltd,Agency Staff,847.36,0.00,COMMERCIAL SUPPLIER 
 08-06-2022,Adults,Matrix SCM Ltd,Agency Staff,774.75,0.00,COMMERCIAL SUPPLIER 
 08-06-2022,Adults,Matrix SCM Ltd,Agency Staff,1034.44,0.00,COMMERCIAL SUPPLIER 
 08-06-2022,Adults,Matrix SCM Ltd,Agency Staff,890.01,0.00,COMMERCIAL SUPPLIER 
 08-06-2022,Adults,Matrix SCM Ltd,Agency Staff,729.51,0.00,COMMERCIAL SUPPLIER 
 09-06-2022,Adults,R G Care Ltd ,Daycare - Private Contractors Payment,800.00,0.00,COMMERCIAL SUPPLIER 
 09-06-2022,Adults,Havering Healthwatch C.I.C,Payment To Health Authorities,29339.75,0.00,COMMERCIAL SUPPLIER 
 09-06-2022,Adults,KJD Care Limited,Home Care - Private Contractors Payment,551.04,0.00,INDIVIDUALS 
 09-06-2022,Adults,KJD Care Limited,Home Care - Private Contractors Payment,551.04,0.00,INDIVIDUALS 
 09-06-2022,Adults,KJD Care Limited,Home Care - Private Contractors Payment,551.04,0.00,INDIVIDUALS 
 09-06-2022,Adults,KJD Care Limited,Home Care - Private Contractors Payment,551.04,0.00,INDIVIDUALS 
 09-06-2022,Adults,Pristine Care London Ltd ,Daycare - Private Contractors Payment,1155.00,0.00,COMMERCIAL SUPPLIER 
 09-06-2022,Adults,Pristine Care London Ltd ,Daycare - Private Contractors Payment,660.00,0.00,COMMERCIAL SUPPLIER 
 10-06-2022,Adults,Anytime Care 2020_a,Home Care - Private Contractors Payment,500.86,0.00,COMMERCIAL SUPPLIER 
 10-06-2022,Adults,Anytime Care 2020_a,Home Care - Private Contractors Payment,707.50,0.00,COMMERCIAL SUPPLIER 
 10-06-2022,Adults,Anytime Care 2020_a,Home Care - Private Contractors Payment,551.04,0.00,COMMERCIAL SUPPLIER 
 10-06-2022,Adults,Anytime Care 2020_a,Home Care - Private Contractors Payment,557.27,0.00,COMMERCIAL SUPPLIER 
 10-06-2022,Adults,Anytime Care 2020_a,Home Care - Private Contractors Payment,540.87,0.00,COMMERCIAL SUPPLIER 
 10-06-2022,Adults,Anytime Care 2020_a,Home Care - Private Contractors Payment,905.61,0.00,COMMERCIAL SUPPLIER 
 10-06-2022,Adults,Anytime Care 2020_a,Home Care - Private Contractors Payment,543.17,0.00,COMMERCIAL SUPPLIER 
 10-06-2022,Adults,Anytime Care 2020_a,Home Care - Private Contractors Payment,556.29,0.00,COMMERCIAL SUPPLIER 
 10-06-2022,Adults,Anytime Care 2020_a,Home Care - Private Contractors Payment,532.67,0.00,COMMERCIAL SUPPLIER 
 10-06-2022,Adults,Anytime Care 2020_a,Home Care - Private Contractors Payment,553.01,0.00,COMMERCIAL SUPPLIER 
 10-06-2022,Adults,Anytime Care 2020_a,Home Care - Private Contractors Payment,553.01,0.00,COMMERCIAL SUPPLIER 
 10-06-2022,Adults,John Stanleys Care Agency Ltd,Home Care - Private Contractors Payment,563.50,0.00,COMMERCIAL SUPPLIER 
 10-06-2022,Adults,John Stanleys Care Agency Ltd,Home Care - Private Contractors Payment,527.42,0.00,COMMERCIAL SUPPLIER 
 10-06-2022,Adults,John Stanleys Care Agency Ltd,Home Care - Private Contractors Payment,551.04,0.00,COMMERCIAL SUPPLIER 
 10-06-2022,Adults,John Stanleys Care Agency Ltd,Home Care - Private Contractors Payment,624.84,0.00,COMMERCIAL SUPPLIER 
 10-06-2022,Adults,John Stanleys Care Agency Ltd,Home Care - Private Contractors Payment,626.81,0.00,COMMERCIAL SUPPLIER 
 10-06-2022,Adults,John Stanleys Care Agency Ltd,Home Care - Private Contractors Payment,555.96,0.00,COMMERCIAL SUPPLIER 
 10-06-2022,Adults,John Stanleys Care Agency Ltd,Home Care - Private Contractors Payment,539.89,0.00,COMMERCIAL SUPPLIER 
 10-06-2022,Adults,John Stanleys Care Agency Ltd,Home Care - Private Contractors Payment,608.11,0.00,COMMERCIAL SUPPLIER 
 10-06-2022,Adults,John Stanleys Care Agency Ltd,Home Care - Private Contractors Payment,624.51,0.00,COMMERCIAL SUPPLIER 
 10-06-2022,Adults,John Stanleys Care Agency Ltd,Home Care - Private Contractors Payment,580.89,0.00,COMMERCIAL SUPPLIER 
 10-06-2022,Adults,John Stanleys Care Agency Ltd,Home Care - Private Contractors Payment,621.23,0.00,COMMERCIAL SUPPLIER 
 10-06-2022,Adults,John Stanleys Care Agency Ltd,Home Care - Private Contractors Payment,885.60,0.00,COMMERCIAL SUPPLIER 
 10-06-2022,Adults,John Stanleys Care Agency Ltd,Home Care - Private Contractors Payment,885.60,0.00,COMMERCIAL SUPPLIER 
 10-06-2022,Adults,John Stanleys Care Agency Ltd,Home Care - Private Contractors Payment,555.63,0.00,COMMERCIAL SUPPLIER 
 10-06-2022,Adults,John Stanleys Care Agency Ltd,Home Care - Private Contractors Payment,1636.72,0.00,COMMERCIAL SUPPLIER 
 10-06-2022,Adults,John Stanleys Care Agency Ltd,Home Care - Private Contractors Payment,2048.69,0.00,COMMERCIAL SUPPLIER 
 10-06-2022,Adults,Essex Cares Ltd,Private Contractors Payment - Other,5666.68,0.00,COMMERCIAL SUPPLIER 
 10-06-2022,Adults,British Red Cross Society,Payments To Voluntary Sector,44558.00,0.00,COMMERCIAL SUPPLIER 
 10-06-2022,Adults,British Red Cross Society,Payments To Voluntary Sector,5310.00,0.00,COMMERCIAL SUPPLIER 
 10-06-2022,Adults,British Red Cross Society,Payments To Voluntary Sector,38826.70,0.00,COMMERCIAL SUPPLIER 
 10-06-2022,Adults,British Red Cross Society,Payments To Voluntary Sector,15874.30,0.00,COMMERCIAL SUPPLIER 
 10-06-2022,Adults,Osborne Partnership,Daycare - Private Contractors Payment,1500.00,0.00,COMMERCIAL SUPPLIER 
 10-06-2022,Adults,Osborne Partnership,Daycare - Private Contractors Payment,1285.72,0.00,COMMERCIAL SUPPLIER 
 10-06-2022,Adults,Mayflower Travel,Client Transport,688.00,0.00,COMMERCIAL SUPPLIER 
 10-06-2022,Adults,The Riverside Group,Supported Other Accommodation - Private Contractors Payment,1160.00,0.00, 
 10-06-2022,Adults,The Riverside Group,Supported Other Accommodation - Private Contractors Payment,1035.71,0.00, 
 10-06-2022,Adults,The Riverside Group,Supported Other Accommodation - Private Contractors Payment,1160.00,0.00, 
 10-06-2022,Adults,The Riverside Group,Supported Other Accommodation - Private Contractors Payment,1160.00,0.00, 
 10-06-2022,Adults,The Riverside Group,Supported Other Accommodation - Private Contractors Payment,1035.71,0.00, 
 10-06-2022,Adults,The Riverside Group,Supported Other Accommodation - Private Contractors Payment,1160.00,0.00, 
 10-06-2022,Adults,The Riverside Group,Supported Other Accommodation - Private Contractors Payment,1160.00,0.00, 
 10-06-2022,Adults,The Riverside Group,Supported Other Accommodation - Private Contractors Payment,1160.00,0.00, 
 10-06-2022,Adults,The Riverside Group,Supported Other Accommodation - Private Contractors Payment,1449.21,0.00, 
 10-06-2022,Adults,The Riverside Group,Supported Other Accommodation - Private Contractors Payment,1623.12,0.00, 
 10-06-2022,Adults,The Riverside Group,Supported Other Accommodation - Private Contractors Payment,1623.12,0.00, 
 10-06-2022,Adults,The Riverside Group,Supported Other Accommodation - Private Contractors Payment,1035.71,0.00, 
 10-06-2022,Adults,The Riverside Group,Supported Other Accommodation - Private Contractors Payment,1160.00,0.00, 
 10-06-2022,Adults,The Riverside Group,Supported Other Accommodation - Private Contractors Payment,1160.00,0.00, 
 10-06-2022,Adults,The Riverside Group,Supported Other Accommodation - Private Contractors Payment,1035.71,0.00, 
 10-06-2022,Adults,The Riverside Group,Supported Other Accommodation - Private Contractors Payment,1160.00,0.00, 
 10-06-2022,Adults,The Riverside Group,Supported Other Accommodation - Private Contractors Payment,1160.00,0.00, 
 10-06-2022,Adults,The Riverside Group,Supported Other Accommodation - Private Contractors Payment,1035.71,0.00, 
 10-06-2022,Adults,The Riverside Group,Supported Other Accommodation - Private Contractors Payment,1035.71,0.00, 
 10-06-2022,Adults,The Riverside Group,Supported Other Accommodation - Private Contractors Payment,1160.00,0.00, 
 10-06-2022,Adults,The Riverside Group,Supported Other Accommodation - Private Contractors Payment,1160.00,0.00, 
 10-06-2022,Adults,The Riverside Group,Supported Other Accommodation - Private Contractors Payment,1160.00,0.00, 
 10-06-2022,Adults,The Riverside Group,Supported Other Accommodation - Private Contractors Payment,1035.71,0.00, 
 10-06-2022,Adults,The Riverside Group,Supported Other Accommodation - Private Contractors Payment,1160.00,0.00, 
 10-06-2022,Adults,The Riverside Group,Supported Other Accommodation - Private Contractors Payment,1160.00,0.00, 
 10-06-2022,Adults,The Riverside Group,Supported Other Accommodation - Private Contractors Payment,1160.00,0.00, 
 10-06-2022,Adults,The Riverside Group,Supported Other Accommodation - Private Contractors Payment,1035.71,0.00, 
 10-06-2022,Adults,Crystalize Care Services,Home Care - Private Contractors Payment,1102.08,0.00,COMMERCIAL SUPPLIER 
 10-06-2022,Adults,Crystalize Care Services,Home Care - Private Contractors Payment,1102.08,0.00,COMMERCIAL SUPPLIER 
 10-06-2022,Adults,Crystalize Care Services,Home Care - Private Contractors Payment,1377.60,0.00,COMMERCIAL SUPPLIER 
 10-06-2022,Adults,Havering Women's Aid,Private Contractors Payment - Other,19433.20,0.00,NON COMMERCIAL SUPPLIER 
 10-06-2022,Adults,Rosemont Care Limited,Home Care - Private Contractors Payment,551.04,0.00,COMMERCIAL SUPPLIER 
 10-06-2022,Adults,Rosemont Care Limited,Home Care - Private Contractors Payment,551.04,0.00,COMMERCIAL SUPPLIER 
 10-06-2022,Adults,Rosemont Care Limited,Home Care - Private Contractors Payment,551.04,0.00,COMMERCIAL SUPPLIER 
 10-06-2022,Adults,Rosemont Care Limited,Home Care - Private Contractors Payment,551.04,0.00,COMMERCIAL SUPPLIER 
 10-06-2022,Adults,Rosemont Care Limited,Home Care - Private Contractors Payment,551.04,0.00,COMMERCIAL SUPPLIER 
 10-06-2022,Adults,Rosemont Care Limited,Home Care - Private Contractors Payment,551.04,0.00,COMMERCIAL SUPPLIER 
 10-06-2022,Adults,Rosemont Care Limited,Home Care - Private Contractors Payment,551.04,0.00,COMMERCIAL SUPPLIER 
 10-06-2022,Adults,Rosemont Care Limited,Home Care - Private Contractors Payment,551.04,0.00,COMMERCIAL SUPPLIER 
 10-06-2022,Adults,Rosemont Care Limited,Home Care - Private Contractors Payment,551.04,0.00,COMMERCIAL SUPPLIER 
 10-06-2022,Adults,Rosemont Care Limited,Home Care - Private Contractors Payment,551.04,0.00,COMMERCIAL SUPPLIER 
 10-06-2022,Adults,Rosemont Care Limited,Home Care - Private Contractors Payment,551.04,0.00,COMMERCIAL SUPPLIER 
 10-06-2022,Adults,Rosemont Care Limited,Home Care - Private Contractors Payment,551.04,0.00,COMMERCIAL SUPPLIER 
 10-06-2022,Adults,Rosemont Care Limited,Home Care - Private Contractors Payment,551.04,0.00,COMMERCIAL SUPPLIER 
 10-06-2022,Adults,Rosemont Care Limited,Home Care - Private Contractors Payment,551.04,0.00,COMMERCIAL SUPPLIER 
 10-06-2022,Adults,Rosemont Care Limited,Home Care - Private Contractors Payment,551.04,0.00,COMMERCIAL SUPPLIER 
 10-06-2022,Adults,Rosemont Care Limited,Home Care - Private Contractors Payment,551.04,0.00,COMMERCIAL SUPPLIER 
 10-06-2022,Adults,Rosemont Care Limited,Home Care - Private Contractors Payment,551.04,0.00,COMMERCIAL SUPPLIER 
 10-06-2022,Adults,Rosemont Care Limited,Home Care - Private Contractors Payment,551.04,0.00,COMMERCIAL SUPPLIER 
 10-06-2022,Adults,Rosemont Care Limited,Home Care - Private Contractors Payment,551.04,0.00,COMMERCIAL SUPPLIER 
 10-06-2022,Adults,Rosemont Care Limited,Home Care - Private Contractors Payment,551.04,0.00,COMMERCIAL SUPPLIER 
 10-06-2022,Adults,Rosemont Care Limited,Home Care - Private Contractors Payment,551.04,0.00,COMMERCIAL SUPPLIER 
 10-06-2022,Adults,Rosemont Care Limited,Home Care - Private Contractors Payment,551.04,0.00,COMMERCIAL SUPPLIER 
 10-06-2022,Adults,Rosemont Care Limited,Home Care - Private Contractors Payment,551.04,0.00,COMMERCIAL SUPPLIER 
 10-06-2022,Adults,Westminster Homecare Ltd_a,Home Care - Private Contractors Payment,623.53,0.00,COMMERCIAL SUPPLIER 
 10-06-2022,Adults,Westminster Homecare Ltd_a,Home Care - Private Contractors Payment,563.83,0.00,COMMERCIAL SUPPLIER 
 10-06-2022,Adults,Westminster Homecare Ltd_a,Home Care - Private Contractors Payment,566.78,0.00,COMMERCIAL SUPPLIER 
 10-06-2022,Adults,Westminster Homecare Ltd_a,Home Care - Private Contractors Payment,609.75,0.00,COMMERCIAL SUPPLIER 
 10-06-2022,Adults,Westminster Homecare Ltd_a,Home Care - Private Contractors Payment,606.47,0.00,COMMERCIAL SUPPLIER 
 10-06-2022,Adults,Westminster Homecare Ltd_a,Home Care - Private Contractors Payment,685.52,0.00,COMMERCIAL SUPPLIER 
 10-06-2022,Adults,Havering Care Provider Group Ltd,Other Short Term Support,27000.00,0.00,COMMERCIAL SUPPLIER 
 11-06-2022,Adults,Priors Court Foundation,Supported Other Accommodation - Private Contractors Payment,13817.32,0.00,COMMERCIAL SUPPLIER 
 13-06-2022,Adults,Trinity London Care Ltd,Daycare - Private Contractors Payment,2050.00,0.00,COMMERCIAL SUPPLIER 
 13-06-2022,Adults,Trinity London Care Ltd,Daycare - Private Contractors Payment,1025.20,0.00,COMMERCIAL SUPPLIER 
 13-06-2022,Adults,Trinity London Care Ltd,Daycare - Private Contractors Payment,1025.20,0.00,COMMERCIAL SUPPLIER 
 13-06-2022,Adults,Trinity London Care Ltd,Daycare - Private Contractors Payment,1025.20,0.00,COMMERCIAL SUPPLIER 
 13-06-2022,Adults,Trinity London Care Ltd,Daycare - Private Contractors Payment,2050.00,0.00,COMMERCIAL SUPPLIER 
 13-06-2022,Adults,Trinity London Care Ltd,Daycare - Private Contractors Payment,2050.00,0.00,COMMERCIAL SUPPLIER 
 13-06-2022,Adults,Prestige Care & Support Ltd,Home Care - Private Contractors Payment,571.05,0.00,COMMERCIAL SUPPLIER 
 13-06-2022,Adults,Prestige Care & Support Ltd,Home Care - Private Contractors Payment,552.68,0.00,COMMERCIAL SUPPLIER 
 13-06-2022,Adults,Prestige Care & Support Ltd,Home Care - Private Contractors Payment,605.82,0.00,COMMERCIAL SUPPLIER 
 13-06-2022,Adults,Prestige Care & Support Ltd,Home Care - Private Contractors Payment,698.31,0.00,COMMERCIAL SUPPLIER 
 13-06-2022,Adults,Prestige Care & Support Ltd,Home Care - Private Contractors Payment,500.53,0.00,COMMERCIAL SUPPLIER 
 13-06-2022,Adults,Prestige Care & Support Ltd,Home Care - Private Contractors Payment,515.29,0.00,COMMERCIAL SUPPLIER 
 13-06-2022,Adults,Prestige Care & Support Ltd,Home Care - Private Contractors Payment,508.40,0.00,COMMERCIAL SUPPLIER 
 13-06-2022,Adults,Prestige Care & Support Ltd,Home Care - Private Contractors Payment,551.70,0.00,COMMERCIAL SUPPLIER 
 13-06-2022,Adults,Prestige Care & Support Ltd,Home Care - Private Contractors Payment,560.88,0.00,COMMERCIAL SUPPLIER 
 13-06-2022,Adults,Prestige Care & Support Ltd,Home Care - Private Contractors Payment,552.35,0.00,COMMERCIAL SUPPLIER 
 13-06-2022,Adults,Prestige Care & Support Ltd,Home Care - Private Contractors Payment,541.20,0.00,COMMERCIAL SUPPLIER 
 13-06-2022,Adults,Prestige Care & Support Ltd,Home Care - Private Contractors Payment,541.20,0.00,COMMERCIAL SUPPLIER 
 13-06-2022,Adults,Prestige Care & Support Ltd,Home Care - Private Contractors Payment,636.98,0.00,COMMERCIAL SUPPLIER 
 13-06-2022,Adults,Prestige Care & Support Ltd,Home Care - Private Contractors Payment,580.89,0.00,COMMERCIAL SUPPLIER 
 13-06-2022,Adults,Prestige Care & Support Ltd,Home Care - Private Contractors Payment,689.13,0.00,COMMERCIAL SUPPLIER 
 13-06-2022,Adults,Prestige Care & Support Ltd,Home Care - Private Contractors Payment,674.37,0.00,COMMERCIAL SUPPLIER 
 13-06-2022,Adults,Prestige Care & Support Ltd,Home Care - Private Contractors Payment,501.51,0.00,COMMERCIAL SUPPLIER 
 13-06-2022,Adults,Prestige Care & Support Ltd,Home Care - Private Contractors Payment,578.59,0.00,COMMERCIAL SUPPLIER 
 13-06-2022,Adults,Prestige Care & Support Ltd,Home Care - Private Contractors Payment,579.25,0.00,COMMERCIAL SUPPLIER 
 13-06-2022,Adults,Prestige Care & Support Ltd,Home Care - Private Contractors Payment,550.06,0.00,COMMERCIAL SUPPLIER 
 13-06-2022,Adults,Prestige Care & Support Ltd,Home Care - Private Contractors Payment,570.06,0.00,COMMERCIAL SUPPLIER 
 13-06-2022,Adults,Prestige Care & Support Ltd,Home Care - Private Contractors Payment,552.68,0.00,COMMERCIAL SUPPLIER 
 13-06-2022,Adults,Prestige Care & Support Ltd,Home Care - Private Contractors Payment,551.04,0.00,COMMERCIAL SUPPLIER 
 13-06-2022,Adults,Prestige Care & Support Ltd,Home Care - Private Contractors Payment,554.98,0.00,COMMERCIAL SUPPLIER 
 13-06-2022,Adults,Prestige Care & Support Ltd,Home Care - Private Contractors Payment,554.98,0.00,COMMERCIAL SUPPLIER 
 13-06-2022,Adults,Prestige Care & Support Ltd,Home Care - Private Contractors Payment,674.37,0.00,COMMERCIAL SUPPLIER 
 13-06-2022,Adults,Prestige Care & Support Ltd,Home Care - Private Contractors Payment,501.51,0.00,COMMERCIAL SUPPLIER 
 13-06-2022,Adults,Prestige Care & Support Ltd,Home Care - Private Contractors Payment,578.59,0.00,COMMERCIAL SUPPLIER 
 13-06-2022,Adults,Prestige Care & Support Ltd,Home Care - Private Contractors Payment,699.30,0.00,COMMERCIAL SUPPLIER 
 13-06-2022,Adults,Prestige Care & Support Ltd,Home Care - Private Contractors Payment,559.24,0.00,COMMERCIAL SUPPLIER 
 13-06-2022,Adults,Prestige Care & Support Ltd,Home Care - Private Contractors Payment,559.57,0.00,COMMERCIAL SUPPLIER 
 13-06-2022,Adults,Prestige Care & Support Ltd,Home Care - Private Contractors Payment,551.04,0.00,COMMERCIAL SUPPLIER 
 13-06-2022,Adults,Prestige Care & Support Ltd,Home Care - Private Contractors Payment,551.04,0.00,COMMERCIAL SUPPLIER 
 13-06-2022,Adults,Prestige Care & Support Ltd,Home Care - Private Contractors Payment,556.94,0.00,COMMERCIAL SUPPLIER 
 13-06-2022,Adults,Prestige Care & Support Ltd,Home Care - Private Contractors Payment,556.94,0.00,COMMERCIAL SUPPLIER 
 13-06-2022,Adults,Prestige Care & Support Ltd,Home Care - Private Contractors Payment,531.36,0.00,COMMERCIAL SUPPLIER 
 13-06-2022,Adults,Prestige Care & Support Ltd,Home Care - Private Contractors Payment,572.69,0.00,COMMERCIAL SUPPLIER 
 13-06-2022,Adults,Prestige Care & Support Ltd,Home Care - Private Contractors Payment,654.03,0.00,COMMERCIAL SUPPLIER 
 13-06-2022,Adults,Prestige Care & Support Ltd,Home Care - Private Contractors Payment,552.02,0.00,COMMERCIAL SUPPLIER 
 13-06-2022,Adults,Prestige Care & Support Ltd,Home Care - Private Contractors Payment,534.31,0.00,COMMERCIAL SUPPLIER 
 14-06-2022,Adults,All Therapy Solutions Ltd,Occupational Health,7230.00,0.00,COMMERCIAL SUPPLIER 
 14-06-2022,Adults,Cera Care Operations Ltd,Home Care - Private Contractors Payment,1740.01,0.00,COMMERCIAL SUPPLIER 
 14-06-2022,Adults,Cera Care Operations Ltd,Home Care - Private Contractors Payment,2030.00,0.00,COMMERCIAL SUPPLIER 
 14-06-2022,Adults,Cera Care Operations Ltd,Home Care - Private Contractors Payment,552.35,0.00,COMMERCIAL SUPPLIER 
 14-06-2022,Adults,Cera Care Operations Ltd,Home Care - Private Contractors Payment,1125.73,0.00,COMMERCIAL SUPPLIER 
 14-06-2022,Adults,Cera Care Operations Ltd,Home Care - Private Contractors Payment,551.04,0.00,COMMERCIAL SUPPLIER 
 14-06-2022,Adults,Cera Care Operations Ltd,Home Care - Private Contractors Payment,560.88,0.00,COMMERCIAL SUPPLIER 
 14-06-2022,Adults,Cera Care Operations Ltd,Home Care - Private Contractors Payment,561.21,0.00,COMMERCIAL SUPPLIER 
 14-06-2022,Adults,Cera Care Operations Ltd,Home Care - Private Contractors Payment,551.04,0.00,COMMERCIAL SUPPLIER 
 14-06-2022,Adults,Cera Care Operations Ltd,Home Care - Private Contractors Payment,551.04,0.00,COMMERCIAL SUPPLIER 
 14-06-2022,Adults,Cera Care Operations Ltd,Home Care - Private Contractors Payment,514.96,0.00,COMMERCIAL SUPPLIER 
 14-06-2022,Adults,Cera Care Operations Ltd,Home Care - Private Contractors Payment,595.65,0.00,COMMERCIAL SUPPLIER 
 14-06-2022,Adults,Cera Care Operations Ltd,Home Care - Private Contractors Payment,811.80,0.00,COMMERCIAL SUPPLIER 
 14-06-2022,Adults,Cera Care Operations Ltd,Home Care - Private Contractors Payment,556.29,0.00,COMMERCIAL SUPPLIER 
 14-06-2022,Adults,Cera Care Operations Ltd,Home Care - Private Contractors Payment,861.33,0.00,COMMERCIAL SUPPLIER 
 14-06-2022,Adults,Cera Care Operations Ltd,Home Care - Private Contractors Payment,550.71,0.00,COMMERCIAL SUPPLIER 
 14-06-2022,Adults,Cera Care Operations Ltd,Home Care - Private Contractors Payment,511.68,0.00,COMMERCIAL SUPPLIER 
 14-06-2022,Adults,Cera Care Operations Ltd,Home Care - Private Contractors Payment,501.51,0.00,COMMERCIAL SUPPLIER 
 14-06-2022,Adults,Cera Care Operations Ltd,Home Care - Private Contractors Payment,868.87,0.00,COMMERCIAL SUPPLIER 
 14-06-2022,Adults,Cera Care Operations Ltd,Home Care - Private Contractors Payment,531.36,0.00,COMMERCIAL SUPPLIER 
 14-06-2022,Adults,Cera Care Operations Ltd,Home Care - Private Contractors Payment,636.65,0.00,COMMERCIAL SUPPLIER 
 14-06-2022,Adults,Cera Care Operations Ltd,Home Care - Private Contractors Payment,760.31,0.00,COMMERCIAL SUPPLIER 
 14-06-2022,Adults,Cera Care Operations Ltd,Home Care - Private Contractors Payment,557.93,0.00,COMMERCIAL SUPPLIER 
 14-06-2022,Adults,Cera Care Operations Ltd,Home Care - Private Contractors Payment,522.18,0.00,COMMERCIAL SUPPLIER 
 14-06-2022,Adults,Cera Care Operations Ltd,Home Care - Private Contractors Payment,541.20,0.00,COMMERCIAL SUPPLIER 
 14-06-2022,Adults,Cera Care Operations Ltd,Home Care - Private Contractors Payment,536.11,0.00,COMMERCIAL SUPPLIER 
 14-06-2022,Adults,Cera Care Operations Ltd,Home Care - Private Contractors Payment,516.27,0.00,COMMERCIAL SUPPLIER 
 14-06-2022,Adults,Cera Care Operations Ltd,Home Care - Private Contractors Payment,571.05,0.00,COMMERCIAL SUPPLIER 
 14-06-2022,Adults,Cera Care Operations Ltd,Home Care - Private Contractors Payment,587.78,0.00,COMMERCIAL SUPPLIER 
 14-06-2022,Adults,Cera Care Operations Ltd,Home Care - Private Contractors Payment,608.77,0.00,COMMERCIAL SUPPLIER 
 14-06-2022,Adults,Cera Care Operations Ltd,Home Care - Private Contractors Payment,557.60,0.00,COMMERCIAL SUPPLIER 
 14-06-2022,Adults,Cera Care Operations Ltd,Home Care - Private Contractors Payment,501.68,0.00,COMMERCIAL SUPPLIER 
 14-06-2022,Adults,Cera Care Operations Ltd,Home Care - Private Contractors Payment,612.05,0.00,COMMERCIAL SUPPLIER 
 14-06-2022,Adults,Cera Care Operations Ltd,Home Care - Private Contractors Payment,549.73,0.00,COMMERCIAL SUPPLIER 
 14-06-2022,Adults,Cera Care Operations Ltd,Home Care - Private Contractors Payment,567.11,0.00,COMMERCIAL SUPPLIER 
 14-06-2022,Adults,Cera Care Operations Ltd,Home Care - Private Contractors Payment,793.43,0.00,COMMERCIAL SUPPLIER 
 15-06-2022,Adults,Flex360 Limited,Private Contractors Payment - Other,575.00,0.00,COMMERCIAL SUPPLIER 
 15-06-2022,Adults,Flex360 Limited,Private Contractors Payment - Other,575.00,0.00,COMMERCIAL SUPPLIER 
 15-06-2022,Adults,Flex360 Limited,Private Contractors Payment - Other,550.00,0.00,COMMERCIAL SUPPLIER 
 15-06-2022,Adults,Flex360 Limited,Private Contractors Payment - Other,550.00,0.00,COMMERCIAL SUPPLIER 
 15-06-2022,Adults,Flex360 Limited,Private Contractors Payment - Other,550.00,0.00,COMMERCIAL SUPPLIER 
 15-06-2022,Adults,Flex360 Limited,Private Contractors Payment - Other,625.00,0.00,COMMERCIAL SUPPLIER 
 15-06-2022,Adults,Flex360 Limited,Private Contractors Payment - Other,550.00,0.00,COMMERCIAL SUPPLIER 
 15-06-2022,Adults,Flex360 Limited,Private Contractors Payment - Other,550.00,0.00,COMMERCIAL SUPPLIER 
 15-06-2022,Adults,Flex360 Limited,Private Contractors Payment - Other,550.00,0.00,COMMERCIAL SUPPLIER 
 15-06-2022,Adults,Flex360 Limited,Private Contractors Payment - Other,625.00,0.00,COMMERCIAL SUPPLIER 
 15-06-2022,Adults,Flex360 Limited,Private Contractors Payment - Other,625.00,0.00,COMMERCIAL SUPPLIER 
 15-06-2022,Adults,Flex360 Limited,Private Contractors Payment - Other,550.00,0.00,COMMERCIAL SUPPLIER 
 15-06-2022,Adults,Flex360 Limited,Private Contractors Payment - Other,550.00,0.00,COMMERCIAL SUPPLIER 
 15-06-2022,Adults,Flex360 Limited,Private Contractors Payment - Other,550.00,0.00,COMMERCIAL SUPPLIER 
 15-06-2022,Adults,Flex360 Limited,Private Contractors Payment - Other,550.00,0.00,COMMERCIAL SUPPLIER 
 15-06-2022,Adults,Flex360 Limited,Private Contractors Payment - Other,550.00,0.00,COMMERCIAL SUPPLIER 
 15-06-2022,Adults,Flex360 Limited,Private Contractors Payment - Other,550.00,0.00,COMMERCIAL SUPPLIER 
 15-06-2022,Adults,Flex360 Limited,Private Contractors Payment - Other,550.00,0.00,COMMERCIAL SUPPLIER 
 15-06-2022,Adults,Flex360 Limited,Private Contractors Payment - Other,550.00,0.00,COMMERCIAL SUPPLIER 
 15-06-2022,Adults,Flex360 Limited,Private Contractors Payment - Other,575.00,0.00,COMMERCIAL SUPPLIER 
 15-06-2022,Adults,Flex360 Limited,Private Contractors Payment - Other,550.00,0.00,COMMERCIAL SUPPLIER 
 15-06-2022,Adults,Flex360 Limited,Private Contractors Payment - Other,550.00,0.00,COMMERCIAL SUPPLIER 
 15-06-2022,Adults,Flex360 Limited,Private Contractors Payment - Other,550.00,0.00,COMMERCIAL SUPPLIER 
 15-06-2022,Adults,Flex360 Limited,Private Contractors Payment - Other,550.00,0.00,COMMERCIAL SUPPLIER 
 15-06-2022,Adults,Flex360 Limited,Private Contractors Payment - Other,550.00,0.00,COMMERCIAL SUPPLIER 
 15-06-2022,Adults,Flex360 Limited,Private Contractors Payment - Other,550.00,0.00,COMMERCIAL SUPPLIER 
 15-06-2022,Adults,Flex360 Limited,Private Contractors Payment - Other,550.00,0.00,COMMERCIAL SUPPLIER 
 15-06-2022,Adults,Flex360 Limited,Private Contractors Payment - Other,550.00,0.00,COMMERCIAL SUPPLIER 
 15-06-2022,Adults,De Vere Care Partnership Ltd,Home Care - Private Contractors Payment,826.56,0.00,COMMERCIAL SUPPLIER 
 15-06-2022,Adults,De Vere Care Partnership Ltd,Home Care - Private Contractors Payment,826.56,0.00,COMMERCIAL SUPPLIER 
 15-06-2022,Adults,De Vere Care Partnership Ltd,Home Care - Private Contractors Payment,826.56,0.00,COMMERCIAL SUPPLIER 
 15-06-2022,Adults,De Vere Care Partnership Ltd,Home Care - Private Contractors Payment,826.56,0.00,COMMERCIAL SUPPLIER 
 15-06-2022,Adults,Action First Assessments Ltd,Private Contractors Payment - Other,1240.00,0.00,COMMERCIAL SUPPLIER 
 15-06-2022,Adults,Action First Assessments Ltd,Private Contractors Payment - Other,620.00,0.00,COMMERCIAL SUPPLIER 
 15-06-2022,Adults,Prior Care Ltd_a,Home Care - Private Contractors Payment,541.53,0.00,COMMERCIAL SUPPLIER 
 15-06-2022,Adults,Prior Care Ltd_a,Home Care - Private Contractors Payment,551.04,0.00,COMMERCIAL SUPPLIER 
 15-06-2022,Adults,Prior Care Ltd_a,Home Care - Private Contractors Payment,551.04,0.00,COMMERCIAL SUPPLIER 
 15-06-2022,Adults,Prior Care Ltd_a,Home Care - Private Contractors Payment,580.89,0.00,COMMERCIAL SUPPLIER 
 15-06-2022,Adults,Prior Care Ltd_a,Home Care - Private Contractors Payment,581.22,0.00,COMMERCIAL SUPPLIER 
 15-06-2022,Adults,Prior Care Ltd_a,Home Care - Private Contractors Payment,602.86,0.00,COMMERCIAL SUPPLIER 
 15-06-2022,Adults,Prior Care Ltd_a,Home Care - Private Contractors Payment,555.96,0.00,COMMERCIAL SUPPLIER 
 15-06-2022,Adults,Prior Care Ltd_a,Home Care - Private Contractors Payment,556.29,0.00,COMMERCIAL SUPPLIER 
 15-06-2022,Adults,Prior Care Ltd_a,Home Care - Private Contractors Payment,581.54,0.00,COMMERCIAL SUPPLIER 
 15-06-2022,Adults,Prior Care Ltd_a,Home Care - Private Contractors Payment,581.22,0.00,COMMERCIAL SUPPLIER 
 15-06-2022,Adults,Prior Care Ltd_a,Home Care - Private Contractors Payment,551.04,0.00,COMMERCIAL SUPPLIER 
 15-06-2022,Adults,Prior Care Ltd_a,Home Care - Private Contractors Payment,636.65,0.00,COMMERCIAL SUPPLIER 
 15-06-2022,Adults,Prior Care Ltd_a,Home Care - Private Contractors Payment,578.26,0.00,COMMERCIAL SUPPLIER 
 15-06-2022,Adults,Prior Care Ltd_a,Home Care - Private Contractors Payment,576.62,0.00,COMMERCIAL SUPPLIER 
 15-06-2022,Adults,Prior Care Ltd_a,Home Care - Private Contractors Payment,657.97,0.00,COMMERCIAL SUPPLIER 
 15-06-2022,Adults,Prior Care Ltd_a,Home Care - Private Contractors Payment,551.37,0.00,COMMERCIAL SUPPLIER 
 15-06-2022,Adults,Prior Care Ltd_a,Home Care - Private Contractors Payment,558.26,0.00,COMMERCIAL SUPPLIER 
 15-06-2022,Adults,Prior Care Ltd_a,Home Care - Private Contractors Payment,551.04,0.00,COMMERCIAL SUPPLIER 
 15-06-2022,Adults,Prior Care Ltd_a,Home Care - Private Contractors Payment,552.68,0.00,COMMERCIAL SUPPLIER 
 15-06-2022,Adults,Prior Care Ltd_a,Home Care - Private Contractors Payment,587.12,0.00,COMMERCIAL SUPPLIER 
 15-06-2022,Adults,Prior Care Ltd_a,Home Care - Private Contractors Payment,588.76,0.00,COMMERCIAL SUPPLIER 
 15-06-2022,Adults,Prior Care Ltd_a,Home Care - Private Contractors Payment,557.60,0.00,COMMERCIAL SUPPLIER 
 15-06-2022,Adults,Prior Care Ltd_a,Home Care - Private Contractors Payment,557.93,0.00,COMMERCIAL SUPPLIER 
 15-06-2022,Adults,Prior Care Ltd_a,Home Care - Private Contractors Payment,554.32,0.00,COMMERCIAL SUPPLIER 
 15-06-2022,Adults,Prior Care Ltd_a,Home Care - Private Contractors Payment,578.61,0.00,COMMERCIAL SUPPLIER 
 15-06-2022,Adults,Prior Care Ltd_a,Home Care - Private Contractors Payment,531.36,0.00,COMMERCIAL SUPPLIER 
 15-06-2022,Adults,Prior Care Ltd_a,Home Care - Private Contractors Payment,570.72,0.00,COMMERCIAL SUPPLIER 
 15-06-2022,Adults,Prior Care Ltd_a,Home Care - Private Contractors Payment,551.04,0.00,COMMERCIAL SUPPLIER 
 15-06-2022,Adults,Prior Care Ltd_a,Home Care - Private Contractors Payment,551.04,0.00,COMMERCIAL SUPPLIER 
 15-06-2022,Adults,Morepower Ltd t/a Aqs Homecare,Home Care - Private Contractors Payment,508.73,0.00,COMMERCIAL SUPPLIER 
 15-06-2022,Adults,Morepower Ltd t/a Aqs Homecare,Home Care - Private Contractors Payment,600.57,0.00,COMMERCIAL SUPPLIER 
 15-06-2022,Adults,Morepower Ltd t/a Aqs Homecare,Home Care - Private Contractors Payment,543.82,0.00,COMMERCIAL SUPPLIER 
 15-06-2022,Adults,Morepower Ltd t/a Aqs Homecare,Home Care - Private Contractors Payment,543.82,0.00,COMMERCIAL SUPPLIER 
 15-06-2022,Adults,Morepower Ltd t/a Aqs Homecare,Home Care - Private Contractors Payment,584.82,0.00,COMMERCIAL SUPPLIER 
 15-06-2022,Adults,Morepower Ltd t/a Aqs Homecare,Home Care - Private Contractors Payment,584.82,0.00,COMMERCIAL SUPPLIER 
 15-06-2022,Adults,Morepower Ltd t/a Aqs Homecare,Home Care - Private Contractors Payment,615.33,0.00,COMMERCIAL SUPPLIER 
 15-06-2022,Adults,Morepower Ltd t/a Aqs Homecare,Home Care - Private Contractors Payment,615.33,0.00,COMMERCIAL SUPPLIER 
 15-06-2022,Adults,Morepower Ltd t/a Aqs Homecare,Home Care - Private Contractors Payment,542.84,0.00,COMMERCIAL SUPPLIER 
 15-06-2022,Adults,Morepower Ltd t/a Aqs Homecare,Home Care - Private Contractors Payment,508.07,0.00,COMMERCIAL SUPPLIER 
 15-06-2022,Adults,Morepower Ltd t/a Aqs Homecare,Home Care - Private Contractors Payment,508.07,0.00,COMMERCIAL SUPPLIER 
 15-06-2022,Adults,Morepower Ltd t/a Aqs Homecare,Home Care - Private Contractors Payment,511.68,0.00,COMMERCIAL SUPPLIER 
 15-06-2022,Adults,Morepower Ltd t/a Aqs Homecare,Home Care - Private Contractors Payment,749.48,0.00,COMMERCIAL SUPPLIER 
 15-06-2022,Adults,Morepower Ltd t/a Aqs Homecare,Home Care - Private Contractors Payment,572.69,0.00,COMMERCIAL SUPPLIER 
 15-06-2022,Adults,Morepower Ltd t/a Aqs Homecare,Home Care - Private Contractors Payment,629.10,0.00,COMMERCIAL SUPPLIER 
 15-06-2022,Adults,Morepower Ltd t/a Aqs Homecare,Home Care - Private Contractors Payment,629.10,0.00,COMMERCIAL SUPPLIER 
 15-06-2022,Adults,Morepower Ltd t/a Aqs Homecare,Home Care - Private Contractors Payment,533.33,0.00,COMMERCIAL SUPPLIER 
 15-06-2022,Adults,Morepower Ltd t/a Aqs Homecare,Home Care - Private Contractors Payment,533.33,0.00,COMMERCIAL SUPPLIER 
 15-06-2022,Adults,Morepower Ltd t/a Aqs Homecare,Home Care - Private Contractors Payment,567.44,0.00,COMMERCIAL SUPPLIER 
 15-06-2022,Adults,Morepower Ltd t/a Aqs Homecare,Home Care - Private Contractors Payment,569.08,0.00,COMMERCIAL SUPPLIER 
 15-06-2022,Adults,Morepower Ltd t/a Aqs Homecare,Home Care - Private Contractors Payment,569.08,0.00,COMMERCIAL SUPPLIER 
 15-06-2022,Adults,Morepower Ltd t/a Aqs Homecare,Home Care - Private Contractors Payment,548.09,0.00,COMMERCIAL SUPPLIER 
 15-06-2022,Adults,Morepower Ltd t/a Aqs Homecare,Home Care - Private Contractors Payment,552.68,0.00,COMMERCIAL SUPPLIER 
 15-06-2022,Adults,Morepower Ltd t/a Aqs Homecare,Home Care - Private Contractors Payment,590.40,0.00,COMMERCIAL SUPPLIER 
 15-06-2022,Adults,Morepower Ltd t/a Aqs Homecare,Home Care - Private Contractors Payment,542.18,0.00,COMMERCIAL SUPPLIER 
 15-06-2022,Adults,Morepower Ltd t/a Aqs Homecare,Home Care - Private Contractors Payment,525.13,0.00,COMMERCIAL SUPPLIER 
 15-06-2022,Adults,Morepower Ltd t/a Aqs Homecare,Home Care - Private Contractors Payment,590.73,0.00,COMMERCIAL SUPPLIER 
 15-06-2022,Adults,Morepower Ltd t/a Aqs Homecare,Home Care - Private Contractors Payment,590.73,0.00,COMMERCIAL SUPPLIER 
 15-06-2022,Adults,Morepower Ltd t/a Aqs Homecare,Home Care - Private Contractors Payment,567.44,0.00,COMMERCIAL SUPPLIER 
 15-06-2022,Adults,Morepower Ltd t/a Aqs Homecare,Home Care - Private Contractors Payment,571.38,0.00,COMMERCIAL SUPPLIER 
 15-06-2022,Adults,Morepower Ltd t/a Aqs Homecare,Home Care - Private Contractors Payment,774.41,0.00,COMMERCIAL SUPPLIER 
 15-06-2022,Adults,Morepower Ltd t/a Aqs Homecare,Home Care - Private Contractors Payment,846.24,0.00,COMMERCIAL SUPPLIER 
 15-06-2022,Adults,Morepower Ltd t/a Aqs Homecare,Home Care - Private Contractors Payment,679.29,0.00,COMMERCIAL SUPPLIER 
 15-06-2022,Adults,Morepower Ltd t/a Aqs Homecare,Home Care - Private Contractors Payment,680.93,0.00,COMMERCIAL SUPPLIER 
 15-06-2022,Adults,Morepower Ltd t/a Aqs Homecare,Home Care - Private Contractors Payment,623.20,0.00,COMMERCIAL SUPPLIER 
 15-06-2022,Adults,Matrix SCM Ltd,Agency Staff,943.59,0.00,COMMERCIAL SUPPLIER 
 15-06-2022,Adults,Matrix SCM Ltd,Agency Staff,520.66,0.00,COMMERCIAL SUPPLIER 
 15-06-2022,Adults,Matrix SCM Ltd,Agency Staff,1033.84,0.00,COMMERCIAL SUPPLIER 
 15-06-2022,Adults,Matrix SCM Ltd,Agency Staff,713.85,0.00,COMMERCIAL SUPPLIER 
 15-06-2022,Adults,Matrix SCM Ltd,Agency Staff,1281.98,0.00,COMMERCIAL SUPPLIER 
 15-06-2022,Adults,Matrix SCM Ltd,Agency Staff,1809.92,0.00,COMMERCIAL SUPPLIER 
 15-06-2022,Adults,Matrix SCM Ltd,Agency Staff,518.28,0.00,COMMERCIAL SUPPLIER 
 15-06-2022,Adults,Matrix SCM Ltd,Agency Staff,1169.28,0.00,COMMERCIAL SUPPLIER 
 15-06-2022,Adults,Matrix SCM Ltd,Agency Staff,1181.15,0.00,COMMERCIAL SUPPLIER 
 15-06-2022,Adults,Matrix SCM Ltd,Agency Staff,505.75,0.00,COMMERCIAL SUPPLIER 
 15-06-2022,Adults,Matrix SCM Ltd,Agency Staff,601.92,0.00,COMMERCIAL SUPPLIER 
 15-06-2022,Adults,Matrix SCM Ltd,Agency Staff,657.73,0.00,COMMERCIAL SUPPLIER 
 15-06-2022,Adults,Matrix SCM Ltd,Agency Staff,594.66,0.00,COMMERCIAL SUPPLIER 
 15-06-2022,Adults,Matrix SCM Ltd,Agency Staff,617.76,0.00,COMMERCIAL SUPPLIER 
 15-06-2022,Adults,Matrix SCM Ltd,Agency Staff,523.99,0.00,COMMERCIAL SUPPLIER 
 15-06-2022,Adults,Matrix SCM Ltd,Agency Staff,1241.28,0.00,COMMERCIAL SUPPLIER 
 15-06-2022,Adults,Matrix SCM Ltd,Agency Staff,1244.51,0.00,COMMERCIAL SUPPLIER 
 15-06-2022,Adults,Matrix SCM Ltd,Agency Staff,1207.46,0.00,COMMERCIAL SUPPLIER 
 15-06-2022,Adults,Matrix SCM Ltd,Agency Staff,1207.46,0.00,COMMERCIAL SUPPLIER 
 15-06-2022,Adults,Matrix SCM Ltd,Agency Staff,1253.15,0.00,COMMERCIAL SUPPLIER 
 15-06-2022,Adults,Matrix SCM Ltd,Agency Staff,1357.57,0.00,COMMERCIAL SUPPLIER 
 15-06-2022,Adults,Matrix SCM Ltd,Agency Staff,1241.28,0.00,COMMERCIAL SUPPLIER 
 15-06-2022,Adults,Matrix SCM Ltd,Agency Staff,758.56,0.00,COMMERCIAL SUPPLIER 
 15-06-2022,Adults,Matrix SCM Ltd,Agency Staff,1241.28,0.00,COMMERCIAL SUPPLIER 
 15-06-2022,Adults,Matrix SCM Ltd,Agency Staff,728.29,0.00,COMMERCIAL SUPPLIER 
 15-06-2022,Adults,Matrix SCM Ltd,Agency Staff,1241.28,0.00,COMMERCIAL SUPPLIER 
 15-06-2022,Adults,Matrix SCM Ltd,Agency Staff,844.58,0.00,COMMERCIAL SUPPLIER 
 15-06-2022,Adults,Matrix SCM Ltd,Agency Staff,1469.18,0.00,COMMERCIAL SUPPLIER 
 15-06-2022,Adults,Matrix SCM Ltd,Agency Staff,1282.32,0.00,COMMERCIAL SUPPLIER 
 15-06-2022,Adults,Matrix SCM Ltd,Agency Staff,731.15,0.00,COMMERCIAL SUPPLIER 
 15-06-2022,Adults,Matrix SCM Ltd,Agency Staff,1132.56,0.00,COMMERCIAL SUPPLIER 
 15-06-2022,Adults,Matrix SCM Ltd,Agency Staff,728.29,0.00,COMMERCIAL SUPPLIER 
 15-06-2022,Adults,Matrix SCM Ltd,Agency Staff,1181.18,0.00,COMMERCIAL SUPPLIER 
 15-06-2022,Adults,Matrix SCM Ltd,Agency Staff,1207.46,0.00,COMMERCIAL SUPPLIER 
 15-06-2022,Adults,Matrix SCM Ltd,Agency Staff,1394.66,0.00,COMMERCIAL SUPPLIER 
 15-06-2022,Adults,Matrix SCM Ltd,Agency Staff,1473.12,0.00,COMMERCIAL SUPPLIER 
 15-06-2022,Adults,Matrix SCM Ltd,Agency Staff,1034.44,0.00,COMMERCIAL SUPPLIER 
 15-06-2022,Adults,Matrix SCM Ltd,Agency Staff,1082.80,0.00,COMMERCIAL SUPPLIER 
 15-06-2022,Adults,Matrix SCM Ltd,Agency Staff,2777.70,0.00,COMMERCIAL SUPPLIER 
 15-06-2022,Adults,Matrix SCM Ltd,Agency Staff,759.85,0.00,COMMERCIAL SUPPLIER 
 15-06-2022,Adults,Matrix SCM Ltd,Agency Staff,2718.88,0.00,COMMERCIAL SUPPLIER 
 15-06-2022,Adults,Matrix SCM Ltd,Agency Staff,780.15,0.00,COMMERCIAL SUPPLIER 
 15-06-2022,Adults,Matrix SCM Ltd,Agency Staff,2546.80,0.00,COMMERCIAL SUPPLIER 
 15-06-2022,Adults,Matrix SCM Ltd,Agency Staff,759.85,0.00,COMMERCIAL SUPPLIER 
 15-06-2022,Adults,Matrix SCM Ltd,Agency Staff,756.36,0.00,COMMERCIAL SUPPLIER 
 15-06-2022,Adults,Matrix SCM Ltd,Agency Staff,795.96,0.00,COMMERCIAL SUPPLIER 
 15-06-2022,Adults,Matrix SCM Ltd,Agency Staff,762.65,0.00,COMMERCIAL SUPPLIER 
 15-06-2022,Adults,Matrix SCM Ltd,Agency Staff,900.58,0.00,COMMERCIAL SUPPLIER 
 15-06-2022,Adults,Matrix SCM Ltd,Agency Staff,966.48,0.00,COMMERCIAL SUPPLIER 
 15-06-2022,Adults,Matrix SCM Ltd,Agency Staff,1299.68,0.00,COMMERCIAL SUPPLIER 
 15-06-2022,Adults,Matrix SCM Ltd,Agency Staff,1175.04,0.00,COMMERCIAL SUPPLIER 
 15-06-2022,Adults,Matrix SCM Ltd,Agency Staff,1282.32,0.00,COMMERCIAL SUPPLIER 
 15-06-2022,Adults,Matrix SCM Ltd,Agency Staff,765.84,0.00,COMMERCIAL SUPPLIER 
 15-06-2022,Adults,Matrix SCM Ltd,Agency Staff,1282.34,0.00,COMMERCIAL SUPPLIER 
 15-06-2022,Adults,Matrix SCM Ltd,Agency Staff,847.36,0.00,COMMERCIAL SUPPLIER 
 15-06-2022,Adults,Matrix SCM Ltd,Agency Staff,643.71,0.00,COMMERCIAL SUPPLIER 
 15-06-2022,Adults,Dignified Homecare,Home Care - Private Contractors Payment,1190.00,0.00,COMMERCIAL SUPPLIER 
 16-06-2022,Adults,Mind in Tower Hamlets And Newham,Private Contractors Payment - Other,33942.75,0.00,COMMERCIAL SUPPLIER 
 16-06-2022,Adults,"Age Uk Redbridge, Barking and Havering Limited",Payments To Voluntary Sector,3270.42,0.00,COMMERCIAL SUPPLIER 
 16-06-2022,Adults,"Age Uk Redbridge, Barking and Havering Limited",Payments To Voluntary Sector,3270.42,0.00,COMMERCIAL SUPPLIER 
 17-06-2022,Adults,Home From Home Support Service Ltd ,Supported Other Accommodation - Private Contractors Payment,1512.00,0.00,COMMERCIAL SUPPLIER 
 17-06-2022,Adults,Home From Home Support Service Ltd ,Supported Other Accommodation - Private Contractors Payment,1512.00,0.00,COMMERCIAL SUPPLIER 
 17-06-2022,Adults,Home From Home Support Service Ltd ,Supported Other Accommodation - Private Contractors Payment,1800.00,0.00,COMMERCIAL SUPPLIER 
 17-06-2022,Adults,Bloom Procurement Services Ltd,Consultancy Fees,5800.00,0.00,COMMERCIAL SUPPLIER 
 19-06-2022,Adults,Hospiva Care & Associates Agency Ltd_a,Home Care - Private Contractors Payment,1102.41,0.00,COMMERCIAL SUPPLIER 
 19-06-2022,Adults,Hospiva Care & Associates Agency Ltd_a,Home Care - Private Contractors Payment,792.78,0.00,COMMERCIAL SUPPLIER 
 19-06-2022,Adults,Hospiva Care & Associates Agency Ltd_a,Home Care - Private Contractors Payment,561.86,0.00,COMMERCIAL SUPPLIER 
 19-06-2022,Adults,Hospiva Care & Associates Agency Ltd_a,Home Care - Private Contractors Payment,895.44,0.00,COMMERCIAL SUPPLIER 
 19-06-2022,Adults,Hospiva Care & Associates Agency Ltd_a,Home Care - Private Contractors Payment,1255.26,0.00,COMMERCIAL SUPPLIER 
 19-06-2022,Adults,Hospiva Care & Associates Agency Ltd_a,Home Care - Private Contractors Payment,1259.19,0.00,COMMERCIAL SUPPLIER 
 19-06-2022,Adults,Hospiva Care & Associates Agency Ltd_a,Home Care - Private Contractors Payment,1376.62,0.00,COMMERCIAL SUPPLIER 
 19-06-2022,Adults,Hospiva Care & Associates Agency Ltd_a,Home Care - Private Contractors Payment,1376.62,0.00,COMMERCIAL SUPPLIER 
 19-06-2022,Adults,Hospiva Care & Associates Agency Ltd_a,Home Care - Private Contractors Payment,554.32,0.00,COMMERCIAL SUPPLIER 
 19-06-2022,Adults,Hospiva Care & Associates Agency Ltd_a,Home Care - Private Contractors Payment,1110.28,0.00,COMMERCIAL SUPPLIER 
 19-06-2022,Adults,Hospiva Care & Associates Agency Ltd_a,Home Care - Private Contractors Payment,551.04,0.00,COMMERCIAL SUPPLIER 
 19-06-2022,Adults,Hospiva Care & Associates Agency Ltd_a,Home Care - Private Contractors Payment,747.84,0.00,COMMERCIAL SUPPLIER 
 19-06-2022,Adults,Hospiva Care & Associates Agency Ltd_a,Home Care - Private Contractors Payment,826.56,0.00,COMMERCIAL SUPPLIER 
 20-06-2022,Adults,IJB Healthcare Ltd,Home Care - Private Contractors Payment,1692.48,0.00,COMMERCIAL SUPPLIER 
 20-06-2022,Adults,IJB Healthcare Ltd,Home Care - Private Contractors Payment,1279.20,0.00,COMMERCIAL SUPPLIER 
 20-06-2022,Adults,Bluebird Care Havering,Home Care - Private Contractors Payment,762.60,0.00,COMMERCIAL SUPPLIER 
 20-06-2022,Adults,Bluebird Care Havering,Home Care - Private Contractors Payment,1245.20,0.00,COMMERCIAL SUPPLIER 
 20-06-2022,Adults,Bluebird Care Havering,Home Care - Private Contractors Payment,2450.00,0.00,COMMERCIAL SUPPLIER 
 20-06-2022,Adults,Bluebird Care Havering,Home Care - Private Contractors Payment,2450.00,0.00,COMMERCIAL SUPPLIER 
 20-06-2022,Adults,Bluebird Care Havering,Home Care - Private Contractors Payment,870.40,0.00,COMMERCIAL SUPPLIER 
 20-06-2022,Adults,Bluebird Care Havering,Home Care - Private Contractors Payment,1420.80,0.00,COMMERCIAL SUPPLIER 
 20-06-2022,Adults,Bluebird Care Havering,Home Care - Private Contractors Payment,2450.00,0.00,COMMERCIAL SUPPLIER 
 20-06-2022,Adults,All Therapy Solutions Ltd,Occupational Health,4610.00,0.00,COMMERCIAL SUPPLIER 
 20-06-2022,Adults,Tapestry_a.,Daycare - Private Contractors Payment,684.00,0.00,COMMERCIAL SUPPLIER 
 20-06-2022,Adults,Tapestry_a.,Daycare - Private Contractors Payment,684.00,0.00,COMMERCIAL SUPPLIER 
 20-06-2022,Adults,Tapestry_a.,Daycare - Private Contractors Payment,684.00,0.00,COMMERCIAL SUPPLIER 
 20-06-2022,Adults,Tapestry_a.,Daycare - Private Contractors Payment,684.00,0.00,COMMERCIAL SUPPLIER 
 20-06-2022,Adults,Tapestry_a.,Daycare - Private Contractors Payment,912.00,0.00,COMMERCIAL SUPPLIER 
 20-06-2022,Adults,Tapestry_a.,Daycare - Private Contractors Payment,684.00,0.00,COMMERCIAL SUPPLIER 
 20-06-2022,Adults,Tapestry_a.,Daycare - Private Contractors Payment,912.00,0.00,COMMERCIAL SUPPLIER 
 20-06-2022,Adults,Tapestry_a.,Daycare - Private Contractors Payment,684.00,0.00,COMMERCIAL SUPPLIER 
 20-06-2022,Adults,Tapestry_a.,Daycare - Private Contractors Payment,513.00,0.00,COMMERCIAL SUPPLIER 
 20-06-2022,Adults,Tapestry_a.,Daycare - Private Contractors Payment,1140.00,0.00,COMMERCIAL SUPPLIER 
 20-06-2022,Adults,Tapestry_a.,Daycare - Private Contractors Payment,684.00,0.00,COMMERCIAL SUPPLIER 
 20-06-2022,Adults,Tapestry_a.,Daycare - Private Contractors Payment,684.00,0.00,COMMERCIAL SUPPLIER 
 20-06-2022,Adults,Tapestry_a.,Daycare - Private Contractors Payment,1140.00,0.00,COMMERCIAL SUPPLIER 
 20-06-2022,Adults,Tapestry_a.,Daycare - Private Contractors Payment,1140.00,0.00,COMMERCIAL SUPPLIER 
 20-06-2022,Adults,Tapestry_a.,Daycare - Private Contractors Payment,684.00,0.00,COMMERCIAL SUPPLIER 
 20-06-2022,Adults,Tapestry_a.,Daycare - Private Contractors Payment,684.00,0.00,COMMERCIAL SUPPLIER 
 20-06-2022,Adults,Tapestry_a.,Daycare - Private Contractors Payment,912.00,0.00,COMMERCIAL SUPPLIER 
 20-06-2022,Adults,Tapestry_a.,Daycare - Private Contractors Payment,1140.00,0.00,COMMERCIAL SUPPLIER 
 20-06-2022,Adults,Dignified Homecare,Home Care - Private Contractors Payment,1341.00,0.00,COMMERCIAL SUPPLIER 
 20-06-2022,Adults,London Homecare Ltd,Home Care - Private Contractors Payment,1102.08,0.00,COMMERCIAL SUPPLIER 
 20-06-2022,Adults,London Homecare Ltd,Home Care - Private Contractors Payment,1239.84,0.00,COMMERCIAL SUPPLIER 
 20-06-2022,Adults,London Homecare Ltd,Home Care - Private Contractors Payment,1239.84,0.00,COMMERCIAL SUPPLIER 
 20-06-2022,Adults,London Homecare Ltd,Home Care - Private Contractors Payment,1239.84,0.00,COMMERCIAL SUPPLIER 
 20-06-2022,Adults,London Homecare Ltd,Home Care - Private Contractors Payment,1239.84,0.00,COMMERCIAL SUPPLIER 
 20-06-2022,Adults,London Homecare Ltd,Home Care - Private Contractors Payment,1239.84,0.00,COMMERCIAL SUPPLIER 
 20-06-2022,Adults,London Homecare Ltd,Home Care - Private Contractors Payment,2282.88,0.00,COMMERCIAL SUPPLIER 
 20-06-2022,Adults,London Homecare Ltd,Home Care - Private Contractors Payment,1397.28,0.00,COMMERCIAL SUPPLIER 
 20-06-2022,Adults,London Homecare Ltd,Home Care - Private Contractors Payment,590.40,0.00,COMMERCIAL SUPPLIER 
 20-06-2022,Adults,London Homecare Ltd,Home Care - Private Contractors Payment,1279.20,0.00,COMMERCIAL SUPPLIER 
 20-06-2022,Adults,London Homecare Ltd,Home Care - Private Contractors Payment,1102.08,0.00,COMMERCIAL SUPPLIER 
 20-06-2022,Adults,London Homecare Ltd,Home Care - Private Contractors Payment,688.80,0.00,COMMERCIAL SUPPLIER 
 20-06-2022,Adults,Outreach Support Services Ltd,Home Care - Private Contractors Payment,964.32,0.00,COMMERCIAL SUPPLIER 
 20-06-2022,Adults,Outreach Support Services Ltd,Home Care - Private Contractors Payment,1239.84,0.00,COMMERCIAL SUPPLIER 
 20-06-2022,Adults,Outreach Support Services Ltd,Home Care - Private Contractors Payment,551.04,0.00,COMMERCIAL SUPPLIER 
 20-06-2022,Adults,Outreach Support Services Ltd,Home Care - Private Contractors Payment,531.36,0.00,COMMERCIAL SUPPLIER 
 20-06-2022,Adults,Outreach Support Services Ltd,Home Care - Private Contractors Payment,1102.08,0.00,COMMERCIAL SUPPLIER 
 20-06-2022,Adults,Outreach Support Services Ltd,Home Care - Private Contractors Payment,1170.96,0.00,COMMERCIAL SUPPLIER 
 20-06-2022,Adults,Outreach Support Services Ltd,Home Care - Private Contractors Payment,816.72,0.00,COMMERCIAL SUPPLIER 
 20-06-2022,Adults,Outreach Support Services Ltd,Home Care - Private Contractors Payment,1633.44,0.00,COMMERCIAL SUPPLIER 
 20-06-2022,Adults,Outreach Support Services Ltd,Home Care - Private Contractors Payment,1102.08,0.00,COMMERCIAL SUPPLIER 
 20-06-2022,Adults,Outreach Support Services Ltd,Home Care - Private Contractors Payment,1357.92,0.00,COMMERCIAL SUPPLIER 
 20-06-2022,Adults,Outreach Support Services Ltd,Home Care - Private Contractors Payment,2046.72,0.00,COMMERCIAL SUPPLIER 
 20-06-2022,Adults,Outreach Support Services Ltd,Home Care - Private Contractors Payment,2046.72,0.00,COMMERCIAL SUPPLIER 
 20-06-2022,Adults,Outreach Support Services Ltd,Home Care - Private Contractors Payment,2046.72,0.00,COMMERCIAL SUPPLIER 
 20-06-2022,Adults,Outreach Support Services Ltd,Home Care - Private Contractors Payment,2046.72,0.00,COMMERCIAL SUPPLIER 
 20-06-2022,Adults,Outreach Support Services Ltd,Home Care - Private Contractors Payment,1239.84,0.00,COMMERCIAL SUPPLIER 
 20-06-2022,Adults,Outreach Support Services Ltd,Home Care - Private Contractors Payment,1239.84,0.00,COMMERCIAL SUPPLIER 
 20-06-2022,Adults,Outreach Support Services Ltd,Home Care - Private Contractors Payment,1928.64,0.00,COMMERCIAL SUPPLIER 
 20-06-2022,Adults,Outreach Support Services Ltd,Home Care - Private Contractors Payment,826.56,0.00,COMMERCIAL SUPPLIER 
 20-06-2022,Adults,Outreach Support Services Ltd,Home Care - Private Contractors Payment,1102.08,0.00,COMMERCIAL SUPPLIER 
 20-06-2022,Adults,Outreach Support Services Ltd,Home Care - Private Contractors Payment,1102.08,0.00,COMMERCIAL SUPPLIER 
 20-06-2022,Adults,Outreach Support Services Ltd,Home Care - Private Contractors Payment,826.56,0.00,COMMERCIAL SUPPLIER 
 20-06-2022,Adults,Outreach Support Services Ltd,Home Care - Private Contractors Payment,1102.08,0.00,COMMERCIAL SUPPLIER 
 20-06-2022,Adults,Outreach Support Services Ltd,Home Care - Private Contractors Payment,1102.08,0.00,COMMERCIAL SUPPLIER 
 20-06-2022,Adults,Outreach Support Services Ltd,Home Care - Private Contractors Payment,854.50,0.00,COMMERCIAL SUPPLIER 
 20-06-2022,Adults,Outreach Support Services Ltd,Home Care - Private Contractors Payment,854.50,0.00,COMMERCIAL SUPPLIER 
 20-06-2022,Adults,Outreach Support Services Ltd,Home Care - Private Contractors Payment,1239.84,0.00,COMMERCIAL SUPPLIER 
 20-06-2022,Adults,Outreach Support Services Ltd,Home Care - Private Contractors Payment,1653.12,0.00,COMMERCIAL SUPPLIER 
 20-06-2022,Adults,Premier Carewaiting Ltd,Home Care - Private Contractors Payment,1239.84,0.00,COMMERCIAL SUPPLIER 
 20-06-2022,Adults,Premier Carewaiting Ltd,Home Care - Private Contractors Payment,1653.12,0.00,COMMERCIAL SUPPLIER 
 20-06-2022,Adults,Premier Carewaiting Ltd,Home Care - Private Contractors Payment,1653.12,0.00,COMMERCIAL SUPPLIER 
 20-06-2022,Adults,Premier Carewaiting Ltd,Home Care - Private Contractors Payment,1298.88,0.00,COMMERCIAL SUPPLIER 
 20-06-2022,Adults,Premier Carewaiting Ltd,Home Care - Private Contractors Payment,1259.52,0.00,COMMERCIAL SUPPLIER 
 20-06-2022,Adults,Premier Carewaiting Ltd,Home Care - Private Contractors Payment,1377.60,0.00,COMMERCIAL SUPPLIER 
 20-06-2022,Adults,Premier Carewaiting Ltd,Home Care - Private Contractors Payment,964.32,0.00,COMMERCIAL SUPPLIER 
 20-06-2022,Adults,Premier Carewaiting Ltd,Home Care - Private Contractors Payment,4408.32,0.00,COMMERCIAL SUPPLIER 
 20-06-2022,Adults,Premier Carewaiting Ltd,Home Care - Private Contractors Payment,1298.88,0.00,COMMERCIAL SUPPLIER 
 20-06-2022,Adults,The Camden Society,Daycare - Private Contractors Payment,520.00,0.00,NON COMMERCIAL SUPPLIER 
 20-06-2022,Adults,Pleasant Home Healthcare Ltd,Home Care - Private Contractors Payment,984.00,0.00,COMMERCIAL SUPPLIER 
 21-06-2022,Adults,Accora,Payment To Health Authorities,795.00,0.00,COMMERCIAL SUPPLIER 
 21-06-2022,Adults,Carers Centre SA Ltd ,Payments To Voluntary Sector,2740.87,0.00,COMMERCIAL SUPPLIER 
 21-06-2022,Adults,Carers Centre SA Ltd ,Payments To Voluntary Sector,2740.87,0.00,COMMERCIAL SUPPLIER 
 21-06-2022,Adults,Carers Centre SA Ltd ,Payments To Voluntary Sector,2740.87,0.00,COMMERCIAL SUPPLIER 
 21-06-2022,Adults,Carers Centre SA Ltd ,Payments To Voluntary Sector,2740.87,0.00,COMMERCIAL SUPPLIER 
 21-06-2022,Adults,Carers Centre SA Ltd ,Payments To Voluntary Sector,2740.87,0.00,COMMERCIAL SUPPLIER 
 21-06-2022,Adults,KJD Care Limited,Home Care - Private Contractors Payment,964.32,0.00,INDIVIDUALS 
 21-06-2022,Adults,KJD Care Limited,Home Care - Private Contractors Payment,5598.32,0.00,INDIVIDUALS 
 21-06-2022,Adults,KJD Care Limited,Home Care - Private Contractors Payment,865.92,0.00,INDIVIDUALS 
 21-06-2022,Adults,KJD Care Limited,Home Care - Private Contractors Payment,1102.08,0.00,INDIVIDUALS 
 21-06-2022,Adults,KJD Care Limited,Home Care - Private Contractors Payment,6061.44,0.00,INDIVIDUALS 
 21-06-2022,Adults,KJD Care Limited,Home Care - Private Contractors Payment,549.43,0.00,INDIVIDUALS 
 21-06-2022,Adults,KJD Care Limited,Home Care - Private Contractors Payment,1102.08,0.00,INDIVIDUALS 
 21-06-2022,Adults,KJD Care Limited,Home Care - Private Contractors Payment,1397.28,0.00,INDIVIDUALS 
 21-06-2022,Adults,KJD Care Limited,Home Care - Private Contractors Payment,4959.36,0.00,INDIVIDUALS 
 21-06-2022,Adults,KJD Care Limited,Home Care - Private Contractors Payment,551.04,0.00,INDIVIDUALS 
 21-06-2022,Adults,KJD Care Limited,Home Care - Private Contractors Payment,1023.36,0.00,INDIVIDUALS 
 21-06-2022,Adults,KJD Care Limited,Home Care - Private Contractors Payment,3227.52,0.00,INDIVIDUALS 
 21-06-2022,Adults,KJD Care Limited,Home Care - Private Contractors Payment,1239.84,0.00,INDIVIDUALS 
 21-06-2022,Adults,KJD Care Limited,Home Care - Private Contractors Payment,1102.08,0.00,INDIVIDUALS 
 21-06-2022,Adults,KJD Care Limited,Home Care - Private Contractors Payment,1102.08,0.00,INDIVIDUALS 
 21-06-2022,Adults,KJD Care Limited,Home Care - Private Contractors Payment,2204.16,0.00,INDIVIDUALS 
 21-06-2022,Adults,KJD Care Limited,Home Care - Private Contractors Payment,551.04,0.00,INDIVIDUALS 
 21-06-2022,Adults,KJD Care Limited,Home Care - Private Contractors Payment,5598.32,0.00,INDIVIDUALS 
 21-06-2022,Adults,KJD Care Limited,Home Care - Private Contractors Payment,1102.08,0.00,INDIVIDUALS 
 21-06-2022,Adults,Reline Care Ltd ,Home Care - Private Contractors Payment,801.26,0.00,COMMERCIAL SUPPLIER 
 21-06-2022,Adults,Reline Care Ltd ,Home Care - Private Contractors Payment,590.40,0.00,COMMERCIAL SUPPLIER 
 21-06-2022,Adults,Reline Care Ltd ,Home Care - Private Contractors Payment,590.40,0.00,COMMERCIAL SUPPLIER 
 21-06-2022,Adults,Reline Care Ltd ,Home Care - Private Contractors Payment,590.40,0.00,COMMERCIAL SUPPLIER 
 21-06-2022,Adults,Alzheimer's Society.,Payments To Voluntary Sector,6445.07,0.00,COMMERCIAL SUPPLIER 
 21-06-2022,Adults,Alzheimer's Society.,Payments To Voluntary Sector,6445.07,0.00,COMMERCIAL SUPPLIER 
 22-06-2022,Adults,The Sycamore Trust,Payments To Voluntary Sector,3333.34,0.00,COMMERCIAL SUPPLIER 
 22-06-2022,Adults,The Sycamore Trust,Payments To Voluntary Sector,3333.33,0.00,COMMERCIAL SUPPLIER 
 22-06-2022,Adults,Optimal Care Services Ltd,Supported Other Accommodation - Private Contractors Payment,3853.28,0.00,COMMERCIAL SUPPLIER 
 22-06-2022,Adults,Optimal Care Services Ltd,Supported Other Accommodation - Private Contractors Payment,6191.84,0.00,COMMERCIAL SUPPLIER 
 22-06-2022,Adults,Optimal Care Services Ltd,Supported Other Accommodation - Private Contractors Payment,7532.48,0.00,COMMERCIAL SUPPLIER 
 22-06-2022,Adults,Matrix SCM Ltd,Agency Staff,520.66,0.00,COMMERCIAL SUPPLIER 
 22-06-2022,Adults,Matrix SCM Ltd,Agency Staff,1281.97,0.00,COMMERCIAL SUPPLIER 
 22-06-2022,Adults,Matrix SCM Ltd,Agency Staff,777.42,0.00,COMMERCIAL SUPPLIER 
 22-06-2022,Adults,Matrix SCM Ltd,Agency Staff,1181.15,0.00,COMMERCIAL SUPPLIER 
 22-06-2022,Adults,Matrix SCM Ltd,Agency Staff,1290.24,0.00,COMMERCIAL SUPPLIER 
 22-06-2022,Adults,Matrix SCM Ltd,Agency Staff,1169.28,0.00,COMMERCIAL SUPPLIER 
 22-06-2022,Adults,Matrix SCM Ltd,Agency Staff,748.02,0.00,COMMERCIAL SUPPLIER 
 22-06-2022,Adults,Matrix SCM Ltd,Agency Staff,777.42,0.00,COMMERCIAL SUPPLIER 
 22-06-2022,Adults,Matrix SCM Ltd,Agency Staff,846.30,0.00,COMMERCIAL SUPPLIER 
 22-06-2022,Adults,Matrix SCM Ltd,Agency Staff,1207.46,0.00,COMMERCIAL SUPPLIER 
 22-06-2022,Adults,Matrix SCM Ltd,Agency Staff,1400.76,0.00,COMMERCIAL SUPPLIER 
 22-06-2022,Adults,Matrix SCM Ltd,Agency Staff,777.42,0.00,COMMERCIAL SUPPLIER 
 22-06-2022,Adults,Matrix SCM Ltd,Agency Staff,728.29,0.00,COMMERCIAL SUPPLIER 
 22-06-2022,Adults,Matrix SCM Ltd,Agency Staff,1241.28,0.00,COMMERCIAL SUPPLIER 
 22-06-2022,Adults,Matrix SCM Ltd,Agency Staff,1241.28,0.00,COMMERCIAL SUPPLIER 
 22-06-2022,Adults,Matrix SCM Ltd,Agency Staff,1241.28,0.00,COMMERCIAL SUPPLIER 
 22-06-2022,Adults,Matrix SCM Ltd,Agency Staff,844.58,0.00,COMMERCIAL SUPPLIER 
 22-06-2022,Adults,Matrix SCM Ltd,Agency Staff,1469.18,0.00,COMMERCIAL SUPPLIER 
 22-06-2022,Adults,Matrix SCM Ltd,Agency Staff,728.29,0.00,COMMERCIAL SUPPLIER 
 22-06-2022,Adults,Matrix SCM Ltd,Agency Staff,1282.32,0.00,COMMERCIAL SUPPLIER 
 22-06-2022,Adults,Matrix SCM Ltd,Agency Staff,752.06,0.00,COMMERCIAL SUPPLIER 
 22-06-2022,Adults,Matrix SCM Ltd,Agency Staff,1181.18,0.00,COMMERCIAL SUPPLIER 
 22-06-2022,Adults,Matrix SCM Ltd,Agency Staff,1394.66,0.00,COMMERCIAL SUPPLIER 
 22-06-2022,Adults,Matrix SCM Ltd,Agency Staff,1207.46,0.00,COMMERCIAL SUPPLIER 
 22-06-2022,Adults,Matrix SCM Ltd,Agency Staff,1533.82,0.00,COMMERCIAL SUPPLIER 
 22-06-2022,Adults,Matrix SCM Ltd,Agency Staff,1248.38,0.00,COMMERCIAL SUPPLIER 
 22-06-2022,Adults,Matrix SCM Ltd,Agency Staff,1175.04,0.00,COMMERCIAL SUPPLIER 
 22-06-2022,Adults,Matrix SCM Ltd,Agency Staff,1282.32,0.00,COMMERCIAL SUPPLIER 
 22-06-2022,Adults,Matrix SCM Ltd,Agency Staff,1253.15,0.00,COMMERCIAL SUPPLIER 
 22-06-2022,Adults,Matrix SCM Ltd,Agency Staff,972.66,0.00,COMMERCIAL SUPPLIER 
 22-06-2022,Adults,Matrix SCM Ltd,Agency Staff,611.65,0.00,COMMERCIAL SUPPLIER 
 22-06-2022,Adults,Matrix SCM Ltd,Agency Staff,520.45,0.00,COMMERCIAL SUPPLIER 
 22-06-2022,Adults,Matrix SCM Ltd,Agency Staff,532.58,0.00,COMMERCIAL SUPPLIER 
 22-06-2022,Adults,Matrix SCM Ltd,Agency Staff,514.50,0.00,COMMERCIAL SUPPLIER 
 22-06-2022,Adults,Matrix SCM Ltd,Agency Staff,601.92,0.00,COMMERCIAL SUPPLIER 
 22-06-2022,Adults,Matrix SCM Ltd,Agency Staff,622.08,0.00,COMMERCIAL SUPPLIER 
 22-06-2022,Adults,Matrix SCM Ltd,Agency Staff,1241.28,0.00,COMMERCIAL SUPPLIER 
 22-06-2022,Adults,Matrix SCM Ltd,Agency Staff,1244.51,0.00,COMMERCIAL SUPPLIER 
 22-06-2022,Adults,Matrix SCM Ltd,Agency Staff,1253.15,0.00,COMMERCIAL SUPPLIER 
 22-06-2022,Adults,Matrix SCM Ltd,Agency Staff,1357.57,0.00,COMMERCIAL SUPPLIER 
 22-06-2022,Adults,Matrix SCM Ltd,Agency Staff,2039.16,0.00,COMMERCIAL SUPPLIER 
 22-06-2022,Adults,Matrix SCM Ltd,Agency Staff,2546.80,0.00,COMMERCIAL SUPPLIER 
 22-06-2022,Adults,Matrix SCM Ltd,Agency Staff,756.36,0.00,COMMERCIAL SUPPLIER 
 22-06-2022,Adults,Matrix SCM Ltd,Agency Staff,847.02,0.00,COMMERCIAL SUPPLIER 
 22-06-2022,Adults,Matrix SCM Ltd,Agency Staff,759.85,0.00,COMMERCIAL SUPPLIER 
 22-06-2022,Adults,Matrix SCM Ltd,Agency Staff,998.64,0.00,COMMERCIAL SUPPLIER 
 22-06-2022,Adults,Matrix SCM Ltd,Agency Staff,973.60,0.00,COMMERCIAL SUPPLIER 
 22-06-2022,Adults,Matrix SCM Ltd,Agency Staff,795.96,0.00,COMMERCIAL SUPPLIER 
 22-06-2022,Adults,Matrix SCM Ltd,Agency Staff,1082.80,0.00,COMMERCIAL SUPPLIER 
 22-06-2022,Adults,Matrix SCM Ltd,Agency Staff,568.80,0.00,COMMERCIAL SUPPLIER 
 22-06-2022,Adults,Matrix SCM Ltd,Agency Staff,568.80,0.00,COMMERCIAL SUPPLIER 
 22-06-2022,Adults,Matrix SCM Ltd,Agency Staff,1515.98,0.00,COMMERCIAL SUPPLIER 
 22-06-2022,Adults,Matrix SCM Ltd,Agency Staff,847.36,0.00,COMMERCIAL SUPPLIER 
 22-06-2022,Adults,Matrix SCM Ltd,Agency Staff,1282.34,0.00,COMMERCIAL SUPPLIER 
 22-06-2022,Adults,Havering Association for People with Disabilities (H.A.D.),Payments To Voluntary Sector,3332.08,0.00,NON COMMERCIAL SUPPLIER 
 22-06-2022,Adults,Havering Association for People with Disabilities (H.A.D.),Payments To Voluntary Sector,3332.08,0.00,NON COMMERCIAL SUPPLIER 
 22-06-2022,Adults,Home Support Services (Havering & Essex) Ltd,Home Care - Private Contractors Payment,1475.00,0.00,COMMERCIAL SUPPLIER 
 22-06-2022,Adults,Home Support Services (Havering & Essex) Ltd,Home Care - Private Contractors Payment,1475.00,0.00,COMMERCIAL SUPPLIER 
 22-06-2022,Adults,Home Support Services (Havering & Essex) Ltd,Home Care - Private Contractors Payment,1475.00,0.00,COMMERCIAL SUPPLIER 
 22-06-2022,Adults,Home Support Services (Havering & Essex) Ltd,Home Care - Private Contractors Payment,1475.00,0.00,COMMERCIAL SUPPLIER 
 23-06-2022,Adults,John Stanleys Care Agency Ltd,Home Care - Private Contractors Payment,4479.20,0.00,COMMERCIAL SUPPLIER 
 23-06-2022,Adults,John Stanleys Care Agency Ltd,Home Care - Private Contractors Payment,1328.40,0.00,COMMERCIAL SUPPLIER 
 23-06-2022,Adults,John Stanleys Care Agency Ltd,Home Care - Private Contractors Payment,1114.87,0.00,COMMERCIAL SUPPLIER 
 23-06-2022,Adults,John Stanleys Care Agency Ltd,Home Care - Private Contractors Payment,622.87,0.00,COMMERCIAL SUPPLIER 
 23-06-2022,Adults,John Stanleys Care Agency Ltd,Home Care - Private Contractors Payment,1240.17,0.00,COMMERCIAL SUPPLIER 
 23-06-2022,Adults,John Stanleys Care Agency Ltd,Home Care - Private Contractors Payment,1241.81,0.00,COMMERCIAL SUPPLIER 
 23-06-2022,Adults,John Stanleys Care Agency Ltd,Home Care - Private Contractors Payment,581.22,0.00,COMMERCIAL SUPPLIER 
 23-06-2022,Adults,John Stanleys Care Agency Ltd,Home Care - Private Contractors Payment,586.14,0.00,COMMERCIAL SUPPLIER 
 23-06-2022,Adults,John Stanleys Care Agency Ltd,Home Care - Private Contractors Payment,736.69,0.00,COMMERCIAL SUPPLIER 
 23-06-2022,Adults,John Stanleys Care Agency Ltd,Home Care - Private Contractors Payment,4068.51,0.00,COMMERCIAL SUPPLIER 
 23-06-2022,Adults,John Stanleys Care Agency Ltd,Home Care - Private Contractors Payment,572.69,0.00,COMMERCIAL SUPPLIER 
 23-06-2022,Adults,John Stanleys Care Agency Ltd,Home Care - Private Contractors Payment,960.38,0.00,COMMERCIAL SUPPLIER 
 23-06-2022,Adults,John Stanleys Care Agency Ltd,Home Care - Private Contractors Payment,705.86,0.00,COMMERCIAL SUPPLIER 
 23-06-2022,Adults,John Stanleys Care Agency Ltd,Home Care - Private Contractors Payment,1095.19,0.00,COMMERCIAL SUPPLIER 
 23-06-2022,Adults,John Stanleys Care Agency Ltd,Home Care - Private Contractors Payment,928.57,0.00,COMMERCIAL SUPPLIER 
 23-06-2022,Adults,John Stanleys Care Agency Ltd,Home Care - Private Contractors Payment,539.56,0.00,COMMERCIAL SUPPLIER 
 23-06-2022,Adults,John Stanleys Care Agency Ltd,Home Care - Private Contractors Payment,765.22,0.00,COMMERCIAL SUPPLIER 
 23-06-2022,Adults,John Stanleys Care Agency Ltd,Home Care - Private Contractors Payment,1192.28,0.00,COMMERCIAL SUPPLIER 
 23-06-2022,Adults,John Stanleys Care Agency Ltd,Home Care - Private Contractors Payment,572.69,0.00,COMMERCIAL SUPPLIER 
 23-06-2022,Adults,John Stanleys Care Agency Ltd,Home Care - Private Contractors Payment,521.52,0.00,COMMERCIAL SUPPLIER 
 23-06-2022,Adults,John Stanleys Care Agency Ltd,Home Care - Private Contractors Payment,774.41,0.00,COMMERCIAL SUPPLIER 
 23-06-2022,Adults,John Stanleys Care Agency Ltd,Home Care - Private Contractors Payment,1116.51,0.00,COMMERCIAL SUPPLIER 
 23-06-2022,Adults,John Stanleys Care Agency Ltd,Home Care - Private Contractors Payment,1268.05,0.00,COMMERCIAL SUPPLIER 
 23-06-2022,Adults,John Stanleys Care Agency Ltd,Home Care - Private Contractors Payment,1223.44,0.00,COMMERCIAL SUPPLIER 
 23-06-2022,Adults,John Stanleys Care Agency Ltd,Home Care - Private Contractors Payment,512.01,0.00,COMMERCIAL SUPPLIER 
 23-06-2022,Adults,John Stanleys Care Agency Ltd,Home Care - Private Contractors Payment,551.04,0.00,COMMERCIAL SUPPLIER 
 23-06-2022,Adults,John Stanleys Care Agency Ltd,Home Care - Private Contractors Payment,600.24,0.00,COMMERCIAL SUPPLIER 
 23-06-2022,Adults,John Stanleys Care Agency Ltd,Home Care - Private Contractors Payment,851.16,0.00,COMMERCIAL SUPPLIER 
 23-06-2022,Adults,John Stanleys Care Agency Ltd,Home Care - Private Contractors Payment,614.67,0.00,COMMERCIAL SUPPLIER 
 23-06-2022,Adults,Lodge Group Care UK Ltd,Home Care - Private Contractors Payment,3060.00,0.00,COMMERCIAL SUPPLIER 
 23-06-2022,Adults,Lodge Group Care UK Ltd,Home Care - Private Contractors Payment,3060.00,0.00,COMMERCIAL SUPPLIER 
 23-06-2022,Adults,Lodge Group Care UK Ltd,Home Care - Private Contractors Payment,3060.00,0.00,COMMERCIAL SUPPLIER 
 23-06-2022,Adults,Lodge Group Care UK Ltd,Home Care - Private Contractors Payment,3060.00,0.00,COMMERCIAL SUPPLIER 
 23-06-2022,Adults,Lodge Group Care UK Ltd,Home Care - Private Contractors Payment,3900.00,0.00,COMMERCIAL SUPPLIER 
 23-06-2022,Adults,Lodge Group Care UK Ltd,Home Care - Private Contractors Payment,3900.00,0.00,COMMERCIAL SUPPLIER 
 23-06-2022,Adults,Lodge Group Care UK Ltd,Home Care - Private Contractors Payment,3900.00,0.00,COMMERCIAL SUPPLIER 
 23-06-2022,Adults,Lodge Group Care UK Ltd,Home Care - Private Contractors Payment,3900.00,0.00,COMMERCIAL SUPPLIER 
 23-06-2022,Adults,Lodge Group Care UK Ltd,Home Care - Private Contractors Payment,3060.00,0.00,COMMERCIAL SUPPLIER 
 23-06-2022,Adults,Lodge Group Care UK Ltd,Home Care - Private Contractors Payment,3060.00,0.00,COMMERCIAL SUPPLIER 
 23-06-2022,Adults,Lodge Group Care UK Ltd,Home Care - Private Contractors Payment,3060.00,0.00,COMMERCIAL SUPPLIER 
 23-06-2022,Adults,Lodge Group Care UK Ltd,Home Care - Private Contractors Payment,3060.00,0.00,COMMERCIAL SUPPLIER 
 23-06-2022,Adults,Lodge Group Care UK Ltd,Home Care - Private Contractors Payment,3060.00,0.00,COMMERCIAL SUPPLIER 
 23-06-2022,Adults,Lodge Group Care UK Ltd,Home Care - Private Contractors Payment,3060.00,0.00,COMMERCIAL SUPPLIER 
 23-06-2022,Adults,Lodge Group Care UK Ltd,Home Care - Private Contractors Payment,3060.00,0.00,COMMERCIAL SUPPLIER 
 23-06-2022,Adults,Lodge Group Care UK Ltd,Home Care - Private Contractors Payment,3060.00,0.00,COMMERCIAL SUPPLIER 
 23-06-2022,Adults,Care-Away Ltd T/A Care Support,Home Care - Private Contractors Payment,873.60,0.00,COMMERCIAL SUPPLIER 
 23-06-2022,Adults,Care-Away Ltd T/A Care Support,Home Care - Private Contractors Payment,698.88,0.00,COMMERCIAL SUPPLIER 
 23-06-2022,Adults,Care-Away Ltd T/A Care Support,Home Care - Private Contractors Payment,698.88,0.00,COMMERCIAL SUPPLIER 
 23-06-2022,Adults,Care-Away Ltd T/A Care Support,Home Care - Private Contractors Payment,540.80,0.00,COMMERCIAL SUPPLIER 
 23-06-2022,Adults,Care-Away Ltd T/A Care Support,Home Care - Private Contractors Payment,1880.32,0.00,COMMERCIAL SUPPLIER 
 23-06-2022,Adults,Care-Away Ltd T/A Care Support,Home Care - Private Contractors Payment,1514.24,0.00,COMMERCIAL SUPPLIER 
 23-06-2022,Adults,Care-Away Ltd T/A Care Support,Home Care - Private Contractors Payment,815.36,0.00,COMMERCIAL SUPPLIER 
 23-06-2022,Adults,Care-Away Ltd T/A Care Support,Home Care - Private Contractors Payment,1564.16,0.00,COMMERCIAL SUPPLIER 
 23-06-2022,Adults,Care-Away Ltd T/A Care Support,Home Care - Private Contractors Payment,532.48,0.00,COMMERCIAL SUPPLIER 
 23-06-2022,Adults,The Riverside Group,Private Contractors Payment - Other,4690.46,0.00, 
 23-06-2022,Adults,The Riverside Group,Private Contractors Payment - Other,4690.46,0.00, 
 23-06-2022,Adults,The Riverside Group,Private Contractors Payment - Other,14310.83,0.00, 
 23-06-2022,Adults,The Riverside Group,Private Contractors Payment - Other,4690.46,0.00, 
 23-06-2022,Adults,The Riverside Group,Private Contractors Payment - Other,4690.46,0.00, 
 23-06-2022,Adults,The Riverside Group,Private Contractors Payment - Other,14310.83,0.00, 
 24-06-2022,Adults,IJB Healthcare Ltd,Home Care - Private Contractors Payment,1102.08,0.00,COMMERCIAL SUPPLIER 
 24-06-2022,Adults,John Stanleys Care Agency Ltd,Home Care - Private Contractors Payment,4460.00,0.00,COMMERCIAL SUPPLIER 
 24-06-2022,Adults,John Stanleys Care Agency Ltd,Home Care - Private Contractors Payment,4180.00,0.00,COMMERCIAL SUPPLIER 
 24-06-2022,Adults,John Stanleys Care Agency Ltd,Home Care - Private Contractors Payment,4671.36,0.00,COMMERCIAL SUPPLIER 
 24-06-2022,Adults,Care-Away Ltd T/A Care Support,Home Care - Private Contractors Payment,2396.16,0.00,COMMERCIAL SUPPLIER 
 24-06-2022,Adults,Care-Away Ltd T/A Care Support,Home Care - Private Contractors Payment,965.12,0.00,COMMERCIAL SUPPLIER 
 24-06-2022,Adults,Care-Away Ltd T/A Care Support,Home Care - Private Contractors Payment,965.12,0.00,COMMERCIAL SUPPLIER 
 24-06-2022,Adults,Care-Away Ltd T/A Care Support,Home Care - Private Contractors Payment,2030.08,0.00,COMMERCIAL SUPPLIER 
 24-06-2022,Adults,Care-Away Ltd T/A Care Support,Home Care - Private Contractors Payment,698.88,0.00,COMMERCIAL SUPPLIER 
 24-06-2022,Adults,Care-Away Ltd T/A Care Support,Home Care - Private Contractors Payment,698.88,0.00,COMMERCIAL SUPPLIER 
 24-06-2022,Adults,Care-Away Ltd T/A Care Support,Home Care - Private Contractors Payment,1863.68,0.00,COMMERCIAL SUPPLIER 
 24-06-2022,Adults,Care-Away Ltd T/A Care Support,Home Care - Private Contractors Payment,557.44,0.00,COMMERCIAL SUPPLIER 
 24-06-2022,Adults,Care-Away Ltd T/A Care Support,Home Care - Private Contractors Payment,940.16,0.00,COMMERCIAL SUPPLIER 
 24-06-2022,Adults,Care-Away Ltd T/A Care Support,Home Care - Private Contractors Payment,765.44,0.00,COMMERCIAL SUPPLIER 
 24-06-2022,Adults,Care-Away Ltd T/A Care Support,Home Care - Private Contractors Payment,715.52,0.00,COMMERCIAL SUPPLIER 
 24-06-2022,Adults,Care-Away Ltd T/A Care Support,Home Care - Private Contractors Payment,1164.80,0.00,COMMERCIAL SUPPLIER 
 24-06-2022,Adults,Care-Away Ltd T/A Care Support,Home Care - Private Contractors Payment,815.36,0.00,COMMERCIAL SUPPLIER 
 24-06-2022,Adults,Care-Away Ltd T/A Care Support,Home Care - Private Contractors Payment,1397.76,0.00,COMMERCIAL SUPPLIER 
 24-06-2022,Adults,Care-Away Ltd T/A Care Support,Home Care - Private Contractors Payment,715.52,0.00,COMMERCIAL SUPPLIER 
 24-06-2022,Adults,Care-Away Ltd T/A Care Support,Home Care - Private Contractors Payment,923.52,0.00,COMMERCIAL SUPPLIER 
 24-06-2022,Adults,Care-Away Ltd T/A Care Support,Home Care - Private Contractors Payment,931.84,0.00,COMMERCIAL SUPPLIER 
 24-06-2022,Adults,Care-Away Ltd T/A Care Support,Home Care - Private Contractors Payment,1547.52,0.00,COMMERCIAL SUPPLIER 
 24-06-2022,Adults,Care-Away Ltd T/A Care Support,Home Care - Private Contractors Payment,698.88,0.00,COMMERCIAL SUPPLIER 
 24-06-2022,Adults,Care-Away Ltd T/A Care Support,Home Care - Private Contractors Payment,732.16,0.00,COMMERCIAL SUPPLIER 
 24-06-2022,Adults,Care-Away Ltd T/A Care Support,Home Care - Private Contractors Payment,1198.08,0.00,COMMERCIAL SUPPLIER 
 24-06-2022,Adults,Care-Away Ltd T/A Care Support,Home Care - Private Contractors Payment,648.96,0.00,COMMERCIAL SUPPLIER 
 24-06-2022,Adults,Little Belsteads Care Home Ltd,Residential Placements - Private Contractors Payment,17472.28,0.00,COMMERCIAL SUPPLIER 
 24-06-2022,Adults,Little Belsteads Care Home Ltd,Residential Placements - Private Contractors Payment,14976.24,0.00,COMMERCIAL SUPPLIER 
 24-06-2022,Adults,Little Belsteads Care Home Ltd,Residential Placements - Private Contractors Payment,17472.28,0.00,COMMERCIAL SUPPLIER 
 24-06-2022,Adults,DMP Healthcare (Cherry Orchard) Ltd,Nursing Homes - Private Contractors Payment,8568.00,0.00,COMMERCIAL SUPPLIER 
 24-06-2022,Adults,DMP Healthcare (Cherry Orchard) Ltd,Nursing Homes - Private Contractors Payment,8568.00,0.00,COMMERCIAL SUPPLIER 
 24-06-2022,Adults,DMP Healthcare (Cherry Orchard) Ltd,Nursing Homes - Private Contractors Payment,8568.00,0.00,COMMERCIAL SUPPLIER 
 24-06-2022,Adults,DMP Healthcare (Heatherbrook) Ltd,Nursing Homes - Private Contractors Payment,1549.71,0.00,NON COMMERCIAL SUPPLIER 
 24-06-2022,Adults,DMP Healthcare (Heatherbrook) Ltd,Nursing Homes - Private Contractors Payment,5712.00,0.00,NON COMMERCIAL SUPPLIER 
 24-06-2022,Adults,DMP Healthcare (Heatherbrook) Ltd,Nursing Homes - Private Contractors Payment,5712.00,0.00,NON COMMERCIAL SUPPLIER 
 24-06-2022,Adults,DMP Healthcare (Heatherbrook) Ltd,Nursing Homes - Private Contractors Payment,1020.00,0.00,NON COMMERCIAL SUPPLIER 
 24-06-2022,Adults,DMP Healthcare (Heatherbrook) Ltd,Nursing Homes - Private Contractors Payment,2511.00,0.00,NON COMMERCIAL SUPPLIER 
 24-06-2022,Adults,DMP Healthcare (Heatherbrook) Ltd,Nursing Homes - Private Contractors Payment,2604.00,0.00,NON COMMERCIAL SUPPLIER 
 24-06-2022,Adults,DMP Healthcare (Heatherbrook) Ltd,Nursing Homes - Private Contractors Payment,2604.00,0.00,NON COMMERCIAL SUPPLIER 
 24-06-2022,Adults,DMP Healthcare (Heatherbrook) Ltd,Nursing Homes - Private Contractors Payment,2604.00,0.00,NON COMMERCIAL SUPPLIER 
 24-06-2022,Adults,DMP Healthcare (Heatherbrook) Ltd,Nursing Homes - Private Contractors Payment,1452.86,0.00,NON COMMERCIAL SUPPLIER 
 24-06-2022,Adults,DMP Healthcare (Heatherbrook) Ltd,Nursing Homes - Private Contractors Payment,812.57,0.00,NON COMMERCIAL SUPPLIER 
 24-06-2022,Adults,DMP Healthcare (Heatherbrook) Ltd,Nursing Homes - Private Contractors Payment,2856.00,0.00,NON COMMERCIAL SUPPLIER 
 24-06-2022,Adults,DMP Healthcare (Heatherbrook) Ltd,Nursing Homes - Private Contractors Payment,2856.00,0.00,NON COMMERCIAL SUPPLIER 
 24-06-2022,Adults,DMP Healthcare (Heatherbrook) Ltd,Nursing Homes - Private Contractors Payment,3696.00,0.00,NON COMMERCIAL SUPPLIER 
 24-06-2022,Adults,DMP Healthcare (Heatherbrook) Ltd,Nursing Homes - Private Contractors Payment,6468.00,0.00,NON COMMERCIAL SUPPLIER 
 24-06-2022,Adults,DMP Healthcare (Heatherbrook) Ltd,Nursing Homes - Private Contractors Payment,6048.00,0.00,NON COMMERCIAL SUPPLIER 
 24-06-2022,Adults,DMP Healthcare (Heatherbrook) Ltd,Nursing Homes - Private Contractors Payment,2712.00,0.00,NON COMMERCIAL SUPPLIER 
 24-06-2022,Adults,DMP Healthcare (Heatherbrook) Ltd,Nursing Homes - Private Contractors Payment,6048.00,0.00,NON COMMERCIAL SUPPLIER 
 24-06-2022,Adults,DMP Healthcare (Heatherbrook) Ltd,Nursing Homes - Private Contractors Payment,2712.00,0.00,NON COMMERCIAL SUPPLIER 
 24-06-2022,Adults,DMP Healthcare (Heatherbrook) Ltd,Nursing Homes - Private Contractors Payment,2712.00,0.00,NON COMMERCIAL SUPPLIER 
 24-06-2022,Adults,DMP Healthcare (Heatherbrook) Ltd,Nursing Homes - Private Contractors Payment,6048.00,0.00,NON COMMERCIAL SUPPLIER 
 24-06-2022,Adults,Protecthand Care Ltd ,Supported Other Accommodation - Private Contractors Payment,1190.00,0.00,COMMERCIAL SUPPLIER 
 24-06-2022,Adults,Protecthand Care Ltd ,Supported Other Accommodation - Private Contractors Payment,1050.00,0.00,COMMERCIAL SUPPLIER 
 24-06-2022,Adults,Protecthand Care Ltd ,Supported Other Accommodation - Private Contractors Payment,1680.00,0.00,COMMERCIAL SUPPLIER 
 24-06-2022,Adults,Protecthand Care Ltd ,Supported Other Accommodation - Private Contractors Payment,4165.00,0.00,COMMERCIAL SUPPLIER 
 24-06-2022,Adults,Protecthand Care Ltd ,Supported Other Accommodation - Private Contractors Payment,1050.00,0.00,COMMERCIAL SUPPLIER 
 24-06-2022,Adults,Protecthand Care Ltd ,Supported Other Accommodation - Private Contractors Payment,1680.00,0.00,COMMERCIAL SUPPLIER 
 24-06-2022,Adults,Protecthand Care Ltd ,Supported Other Accommodation - Private Contractors Payment,4165.00,0.00,COMMERCIAL SUPPLIER 
 24-06-2022,Adults,Protecthand Care Ltd ,Supported Other Accommodation - Private Contractors Payment,1050.00,0.00,COMMERCIAL SUPPLIER 
 24-06-2022,Adults,Protecthand Care Ltd ,Supported Other Accommodation - Private Contractors Payment,1680.00,0.00,COMMERCIAL SUPPLIER 
 24-06-2022,Adults,Protecthand Care Ltd ,Supported Other Accommodation - Private Contractors Payment,4165.00,0.00,COMMERCIAL SUPPLIER 
 24-06-2022,Adults,Inna Care Ltd,Home Care - Private Contractors Payment,1023.36,0.00,COMMERCIAL SUPPLIER 
 24-06-2022,Adults,Inna Care Ltd,Home Care - Private Contractors Payment,1102.08,0.00,COMMERCIAL SUPPLIER 
 24-06-2022,Adults,Inna Care Ltd,Home Care - Private Contractors Payment,1102.08,0.00,COMMERCIAL SUPPLIER 
 24-06-2022,Adults,Inna Care Ltd,Home Care - Private Contractors Payment,1102.08,0.00,COMMERCIAL SUPPLIER 
 24-06-2022,Adults,Protecthand Care Ltd ,Supported Other Accommodation - Private Contractors Payment,2800.00,0.00,COMMERCIAL SUPPLIER 
 24-06-2022,Adults,Protecthand Care Ltd ,Supported Other Accommodation - Private Contractors Payment,13737.50,0.00,COMMERCIAL SUPPLIER 
 24-06-2022,Adults,Protecthand Care Ltd ,Supported Other Accommodation - Private Contractors Payment,9660.00,0.00,COMMERCIAL SUPPLIER 
 24-06-2022,Adults,Protecthand Care Ltd ,Supported Other Accommodation - Private Contractors Payment,14367.50,0.00,COMMERCIAL SUPPLIER 
 25-06-2022,Adults,Lead Care Services Ltd,Home Care - Private Contractors Payment,604.00,0.00,COMMERCIAL SUPPLIER 
 25-06-2022,Adults,Lead Care Services Ltd,Home Care - Private Contractors Payment,646.00,0.00,COMMERCIAL SUPPLIER 
 27-06-2022,Adults,Quality Healthcare Solutions Ltd t/a Kare Plus Romford,Home Care - Private Contractors Payment,548.42,0.00,COMMERCIAL SUPPLIER 
 27-06-2022,Adults,Quality Healthcare Solutions Ltd t/a Kare Plus Romford,Home Care - Private Contractors Payment,779.33,0.00,COMMERCIAL SUPPLIER 
 27-06-2022,Adults,Quality Healthcare Solutions Ltd t/a Kare Plus Romford,Home Care - Private Contractors Payment,753.09,0.00,COMMERCIAL SUPPLIER 
 27-06-2022,Adults,Quality Healthcare Solutions Ltd t/a Kare Plus Romford,Home Care - Private Contractors Payment,547.43,0.00,COMMERCIAL SUPPLIER 
 27-06-2022,Adults,Quality Healthcare Solutions Ltd t/a Kare Plus Romford,Home Care - Private Contractors Payment,1059.11,0.00,COMMERCIAL SUPPLIER 
 27-06-2022,Adults,Quality Healthcare Solutions Ltd t/a Kare Plus Romford,Home Care - Private Contractors Payment,6811.25,0.00,COMMERCIAL SUPPLIER 
 27-06-2022,Adults,Quality Healthcare Solutions Ltd t/a Kare Plus Romford,Home Care - Private Contractors Payment,890.85,0.00,COMMERCIAL SUPPLIER 
 27-06-2022,Adults,Quality Healthcare Solutions Ltd t/a Kare Plus Romford,Home Care - Private Contractors Payment,546.12,0.00,COMMERCIAL SUPPLIER 
 27-06-2022,Adults,Quality Healthcare Solutions Ltd t/a Kare Plus Romford,Home Care - Private Contractors Payment,831.48,0.00,COMMERCIAL SUPPLIER 
 27-06-2022,Adults,Quality Healthcare Solutions Ltd t/a Kare Plus Romford,Home Care - Private Contractors Payment,1131.60,0.00,COMMERCIAL SUPPLIER 
 27-06-2022,Adults,Quality Healthcare Solutions Ltd t/a Kare Plus Romford,Home Care - Private Contractors Payment,1136.52,0.00,COMMERCIAL SUPPLIER 
 27-06-2022,Adults,Quality Healthcare Solutions Ltd t/a Kare Plus Romford,Home Care - Private Contractors Payment,610.08,0.00,COMMERCIAL SUPPLIER 
 27-06-2022,Adults,Quality Healthcare Solutions Ltd t/a Kare Plus Romford,Home Care - Private Contractors Payment,885.27,0.00,COMMERCIAL SUPPLIER 
 27-06-2022,Adults,Quality Healthcare Solutions Ltd t/a Kare Plus Romford,Home Care - Private Contractors Payment,898.06,0.00,COMMERCIAL SUPPLIER 
 27-06-2022,Adults,Quality Healthcare Solutions Ltd t/a Kare Plus Romford,Home Care - Private Contractors Payment,1137.18,0.00,COMMERCIAL SUPPLIER 
 27-06-2022,Adults,Quality Healthcare Solutions Ltd t/a Kare Plus Romford,Home Care - Private Contractors Payment,546.45,0.00,COMMERCIAL SUPPLIER 
 27-06-2022,Adults,Quality Healthcare Solutions Ltd t/a Kare Plus Romford,Home Care - Private Contractors Payment,665.84,0.00,COMMERCIAL SUPPLIER 
 27-06-2022,Adults,Quality Healthcare Solutions Ltd t/a Kare Plus Romford,Home Care - Private Contractors Payment,1572.43,0.00,COMMERCIAL SUPPLIER 
 27-06-2022,Adults,Quality Healthcare Solutions Ltd t/a Kare Plus Romford,Home Care - Private Contractors Payment,767.85,0.00,COMMERCIAL SUPPLIER 
 27-06-2022,Adults,Eastway Care Ltd_a,Daycare - Private Contractors Payment,4300.00,0.00,COMMERCIAL SUPPLIER 
 27-06-2022,Adults,Eastway Care Ltd_a,Daycare - Private Contractors Payment,4300.00,0.00,COMMERCIAL SUPPLIER 
 27-06-2022,Adults,Eastway Care Ltd_a,Daycare - Private Contractors Payment,3600.00,0.00,COMMERCIAL SUPPLIER 
 27-06-2022,Adults,Eastway Care Ltd_a,Daycare - Private Contractors Payment,1380.00,0.00,COMMERCIAL SUPPLIER 
 27-06-2022,Adults,Eastway Care Ltd_a,Daycare - Private Contractors Payment,3850.00,0.00,COMMERCIAL SUPPLIER 
 27-06-2022,Adults,Eastway Care Ltd_a,Daycare - Private Contractors Payment,860.00,0.00,COMMERCIAL SUPPLIER 
 27-06-2022,Adults,Eastway Care Ltd_a,Daycare - Private Contractors Payment,3440.00,0.00,COMMERCIAL SUPPLIER 
 27-06-2022,Adults,Eastway Care Ltd_a,Daycare - Private Contractors Payment,2580.00,0.00,COMMERCIAL SUPPLIER 
 27-06-2022,Adults,Eastway Care Ltd_a,Daycare - Private Contractors Payment,4300.00,0.00,COMMERCIAL SUPPLIER 
 27-06-2022,Adults,Eastway Care Ltd_a,Daycare - Private Contractors Payment,2580.00,0.00,COMMERCIAL SUPPLIER 
 27-06-2022,Adults,Eastway Care Ltd_a,Daycare - Private Contractors Payment,860.00,0.00,COMMERCIAL SUPPLIER 
 27-06-2022,Adults,Eastway Care Ltd_a,Daycare - Private Contractors Payment,3100.00,0.00,COMMERCIAL SUPPLIER 
 27-06-2022,Adults,Eastway Care Ltd_a,Daycare - Private Contractors Payment,3440.00,0.00,COMMERCIAL SUPPLIER 
 27-06-2022,Adults,All Therapy Solutions Ltd,Occupational Health,4200.00,0.00,COMMERCIAL SUPPLIER 
 27-06-2022,Adults,Prestige Care & Support Ltd,Home Care - Private Contractors Payment,703.89,0.00,COMMERCIAL SUPPLIER 
 27-06-2022,Adults,Prestige Care & Support Ltd,Home Care - Private Contractors Payment,1733.81,0.00,COMMERCIAL SUPPLIER 
 27-06-2022,Adults,Prestige Care & Support Ltd,Home Care - Private Contractors Payment,1102.08,0.00,COMMERCIAL SUPPLIER 
 27-06-2022,Adults,Prestige Care & Support Ltd,Home Care - Private Contractors Payment,1102.08,0.00,COMMERCIAL SUPPLIER 
 27-06-2022,Adults,Prestige Care & Support Ltd,Home Care - Private Contractors Payment,911.51,0.00,COMMERCIAL SUPPLIER 
 27-06-2022,Adults,Prestige Care & Support Ltd,Home Care - Private Contractors Payment,553.01,0.00,COMMERCIAL SUPPLIER 
 27-06-2022,Adults,Prestige Care & Support Ltd,Home Care - Private Contractors Payment,799.34,0.00,COMMERCIAL SUPPLIER 
 27-06-2022,Adults,Prestige Care & Support Ltd,Home Care - Private Contractors Payment,708.81,0.00,COMMERCIAL SUPPLIER 
 27-06-2022,Adults,Prestige Care & Support Ltd,Home Care - Private Contractors Payment,1401.22,0.00,COMMERCIAL SUPPLIER 
 27-06-2022,Adults,Prestige Care & Support Ltd,Home Care - Private Contractors Payment,614.34,0.00,COMMERCIAL SUPPLIER 
 27-06-2022,Adults,Prestige Care & Support Ltd,Home Care - Private Contractors Payment,839.35,0.00,COMMERCIAL SUPPLIER 
 27-06-2022,Adults,Prestige Care & Support Ltd,Home Care - Private Contractors Payment,787.20,0.00,COMMERCIAL SUPPLIER 
 27-06-2022,Adults,Prestige Care & Support Ltd,Home Care - Private Contractors Payment,857.72,0.00,COMMERCIAL SUPPLIER 
 27-06-2022,Adults,Prestige Care & Support Ltd,Home Care - Private Contractors Payment,1148.66,0.00,COMMERCIAL SUPPLIER 
 27-06-2022,Adults,Prestige Care & Support Ltd,Home Care - Private Contractors Payment,1439.26,0.00,COMMERCIAL SUPPLIER 
 27-06-2022,Adults,Prestige Care & Support Ltd,Home Care - Private Contractors Payment,703.23,0.00,COMMERCIAL SUPPLIER 
 27-06-2022,Adults,Prestige Care & Support Ltd,Home Care - Private Contractors Payment,827.22,0.00,COMMERCIAL SUPPLIER 
 27-06-2022,Adults,Prestige Care & Support Ltd,Home Care - Private Contractors Payment,1082.40,0.00,COMMERCIAL SUPPLIER 
 27-06-2022,Adults,Prestige Care & Support Ltd,Home Care - Private Contractors Payment,626.15,0.00,COMMERCIAL SUPPLIER 
 27-06-2022,Adults,Prestige Care & Support Ltd,Home Care - Private Contractors Payment,828.20,0.00,COMMERCIAL SUPPLIER 
 27-06-2022,Adults,Prestige Care & Support Ltd,Home Care - Private Contractors Payment,1035.17,0.00,COMMERCIAL SUPPLIER 
 27-06-2022,Adults,Prestige Care & Support Ltd,Home Care - Private Contractors Payment,1350.05,0.00,COMMERCIAL SUPPLIER 
 27-06-2022,Adults,Prestige Care & Support Ltd,Home Care - Private Contractors Payment,1350.70,0.00,COMMERCIAL SUPPLIER 
 27-06-2022,Adults,Prestige Care & Support Ltd,Home Care - Private Contractors Payment,883.63,0.00,COMMERCIAL SUPPLIER 
 27-06-2022,Adults,Prestige Care & Support Ltd,Home Care - Private Contractors Payment,883.96,0.00,COMMERCIAL SUPPLIER 
 27-06-2022,Adults,Prestige Care & Support Ltd,Home Care - Private Contractors Payment,826.89,0.00,COMMERCIAL SUPPLIER 
 27-06-2022,Adults,Prestige Care & Support Ltd,Home Care - Private Contractors Payment,827.22,0.00,COMMERCIAL SUPPLIER 
 27-06-2022,Adults,Prestige Care & Support Ltd,Home Care - Private Contractors Payment,552.02,0.00,COMMERCIAL SUPPLIER 
 27-06-2022,Adults,Prestige Care & Support Ltd,Home Care - Private Contractors Payment,1122.74,0.00,COMMERCIAL SUPPLIER 
 27-06-2022,Adults,Prestige Care & Support Ltd,Home Care - Private Contractors Payment,1148.66,0.00,COMMERCIAL SUPPLIER 
 27-06-2022,Adults,Prestige Care & Support Ltd,Home Care - Private Contractors Payment,816.72,0.00,COMMERCIAL SUPPLIER 
 27-06-2022,Adults,Prestige Care & Support Ltd,Home Care - Private Contractors Payment,571.38,0.00,COMMERCIAL SUPPLIER 
 27-06-2022,Adults,Prestige Care & Support Ltd,Home Care - Private Contractors Payment,1131.93,0.00,COMMERCIAL SUPPLIER 
 27-06-2022,Adults,Prestige Care & Support Ltd,Home Care - Private Contractors Payment,1145.05,0.00,COMMERCIAL SUPPLIER 
 27-06-2022,Adults,Prestige Care & Support Ltd,Home Care - Private Contractors Payment,862.31,0.00,COMMERCIAL SUPPLIER 
 27-06-2022,Adults,Prestige Care & Support Ltd,Home Care - Private Contractors Payment,1135.21,0.00,COMMERCIAL SUPPLIER 
 27-06-2022,Adults,Prestige Care & Support Ltd,Home Care - Private Contractors Payment,627.46,0.00,COMMERCIAL SUPPLIER 
 27-06-2022,Adults,Prestige Care & Support Ltd,Home Care - Private Contractors Payment,1013.85,0.00,COMMERCIAL SUPPLIER 
 27-06-2022,Adults,Prestige Care & Support Ltd,Home Care - Private Contractors Payment,1013.85,0.00,COMMERCIAL SUPPLIER 
 27-06-2022,Adults,Prestige Care & Support Ltd,Home Care - Private Contractors Payment,992.20,0.00,COMMERCIAL SUPPLIER 
 27-06-2022,Adults,Prestige Care & Support Ltd,Home Care - Private Contractors Payment,1092.24,0.00,COMMERCIAL SUPPLIER 
 27-06-2022,Adults,Prestige Care & Support Ltd,Home Care - Private Contractors Payment,1093.22,0.00,COMMERCIAL SUPPLIER 
 27-06-2022,Adults,Prestige Care & Support Ltd,Home Care - Private Contractors Payment,856.08,0.00,COMMERCIAL SUPPLIER 
 27-06-2022,Adults,Prestige Care & Support Ltd,Home Care - Private Contractors Payment,915.12,0.00,COMMERCIAL SUPPLIER 
 27-06-2022,Adults,Prestige Care & Support Ltd,Home Care - Private Contractors Payment,1953.24,0.00,COMMERCIAL SUPPLIER 
 27-06-2022,Adults,Prestige Care & Support Ltd,Home Care - Private Contractors Payment,526.11,0.00,COMMERCIAL SUPPLIER 
 27-06-2022,Adults,Prestige Care & Support Ltd,Home Care - Private Contractors Payment,529.06,0.00,COMMERCIAL SUPPLIER 
 27-06-2022,Adults,Prestige Care & Support Ltd,Home Care - Private Contractors Payment,826.56,0.00,COMMERCIAL SUPPLIER 
 27-06-2022,Adults,Prestige Care & Support Ltd,Home Care - Private Contractors Payment,826.56,0.00,COMMERCIAL SUPPLIER 
 27-06-2022,Adults,Prestige Care & Support Ltd,Home Care - Private Contractors Payment,1102.08,0.00,COMMERCIAL SUPPLIER 
 27-06-2022,Adults,Prestige Care & Support Ltd,Home Care - Private Contractors Payment,1102.08,0.00,COMMERCIAL SUPPLIER 
 27-06-2022,Adults,Prestige Care & Support Ltd,Home Care - Private Contractors Payment,818.69,0.00,COMMERCIAL SUPPLIER 
 27-06-2022,Adults,Prestige Care & Support Ltd,Home Care - Private Contractors Payment,1178.83,0.00,COMMERCIAL SUPPLIER 
 27-06-2022,Adults,Prestige Care & Support Ltd,Home Care - Private Contractors Payment,1268.70,0.00,COMMERCIAL SUPPLIER 
 27-06-2022,Adults,Prestige Care & Support Ltd,Home Care - Private Contractors Payment,1043.04,0.00,COMMERCIAL SUPPLIER 
 27-06-2022,Adults,Prestige Care & Support Ltd,Home Care - Private Contractors Payment,1030.58,0.00,COMMERCIAL SUPPLIER 
 27-06-2022,Adults,Prestige Care & Support Ltd,Home Care - Private Contractors Payment,1091.91,0.00,COMMERCIAL SUPPLIER 
 27-06-2022,Adults,Prestige Care & Support Ltd,Home Care - Private Contractors Payment,913.81,0.00,COMMERCIAL SUPPLIER 
 27-06-2022,Adults,Prestige Care & Support Ltd,Home Care - Private Contractors Payment,914.14,0.00,COMMERCIAL SUPPLIER 
 27-06-2022,Adults,Prestige Care & Support Ltd,Home Care - Private Contractors Payment,655.34,0.00,COMMERCIAL SUPPLIER 
 27-06-2022,Adults,Prestige Care & Support Ltd,Home Care - Private Contractors Payment,1107.98,0.00,COMMERCIAL SUPPLIER 
 27-06-2022,Adults,Prestige Care & Support Ltd,Home Care - Private Contractors Payment,1053.86,0.00,COMMERCIAL SUPPLIER 
 27-06-2022,Adults,Prestige Care & Support Ltd,Home Care - Private Contractors Payment,1053.86,0.00,COMMERCIAL SUPPLIER 
 27-06-2022,Adults,Prestige Care & Support Ltd,Home Care - Private Contractors Payment,552.35,0.00,COMMERCIAL SUPPLIER 
 27-06-2022,Adults,Passion Tree Care Services Ltd,Home Care - Private Contractors Payment,551.04,0.00,COMMERCIAL SUPPLIER 
 27-06-2022,Adults,Passion Tree Care Services Ltd,Home Care - Private Contractors Payment,551.04,0.00,COMMERCIAL SUPPLIER 
 27-06-2022,Adults,Passion Tree Care Services Ltd,Home Care - Private Contractors Payment,551.04,0.00,COMMERCIAL SUPPLIER 
 27-06-2022,Adults,Passion Tree Care Services Ltd,Home Care - Private Contractors Payment,551.04,0.00,COMMERCIAL SUPPLIER 
 27-06-2022,Adults,Passion Tree Care Services Ltd,Home Care - Private Contractors Payment,619.92,0.00,COMMERCIAL SUPPLIER 
 27-06-2022,Adults,Passion Tree Care Services Ltd,Home Care - Private Contractors Payment,619.92,0.00,COMMERCIAL SUPPLIER 
 27-06-2022,Adults,Passion Tree Care Services Ltd,Home Care - Private Contractors Payment,560.88,0.00,COMMERCIAL SUPPLIER 
 27-06-2022,Adults,Passion Tree Care Services Ltd,Home Care - Private Contractors Payment,560.88,0.00,COMMERCIAL SUPPLIER 
 27-06-2022,Adults,Passion Tree Care Services Ltd,Home Care - Private Contractors Payment,551.04,0.00,COMMERCIAL SUPPLIER 
 27-06-2022,Adults,Passion Tree Care Services Ltd,Home Care - Private Contractors Payment,551.04,0.00,COMMERCIAL SUPPLIER 
 27-06-2022,Adults,Passion Tree Care Services Ltd,Home Care - Private Contractors Payment,777.36,0.00,COMMERCIAL SUPPLIER 
 27-06-2022,Adults,Passion Tree Care Services Ltd,Home Care - Private Contractors Payment,777.36,0.00,COMMERCIAL SUPPLIER 
 27-06-2022,Adults,Passion Tree Care Services Ltd,Home Care - Private Contractors Payment,619.92,0.00,COMMERCIAL SUPPLIER 
 27-06-2022,Adults,Passion Tree Care Services Ltd,Home Care - Private Contractors Payment,619.92,0.00,COMMERCIAL SUPPLIER 
 27-06-2022,Adults,Passion Tree Care Services Ltd,Home Care - Private Contractors Payment,619.92,0.00,COMMERCIAL SUPPLIER 
 27-06-2022,Adults,Passion Tree Care Services Ltd,Home Care - Private Contractors Payment,619.92,0.00,COMMERCIAL SUPPLIER 
 27-06-2022,Adults,Passion Tree Care Services Ltd,Home Care - Private Contractors Payment,688.80,0.00,COMMERCIAL SUPPLIER 
 27-06-2022,Adults,Passion Tree Care Services Ltd,Home Care - Private Contractors Payment,688.80,0.00,COMMERCIAL SUPPLIER 
 27-06-2022,Adults,Prosperity Hope ,Supported Other Accommodation - Private Contractors Payment,1225.00,0.00,COMMERCIAL SUPPLIER 
 27-06-2022,Adults,Ace Outreach Ltd,Home Care - Private Contractors Payment,1176.72,0.00,COMMERCIAL SUPPLIER 
 28-06-2022,Adults,Havering Mind,Payments To Voluntary Sector,3196.46,0.00,NON COMMERCIAL SUPPLIER 
 28-06-2022,Adults,Havering Mind,Payments To Voluntary Sector,3196.46,0.00,NON COMMERCIAL SUPPLIER 
 28-06-2022,Adults,Carers Trust East Midlands,Home Care - Private Contractors Payment,590.40,0.00,COMMERCIAL SUPPLIER 
 28-06-2022,Adults,Carers Trust East Midlands,Home Care - Private Contractors Payment,1121.76,0.00,COMMERCIAL SUPPLIER 
 28-06-2022,Adults,Carers Trust East Midlands,Home Care - Private Contractors Payment,826.56,0.00,COMMERCIAL SUPPLIER 
 28-06-2022,Adults,Care-Away Ltd T/A Care Support,Home Care - Private Contractors Payment,931.84,0.00,COMMERCIAL SUPPLIER 
 28-06-2022,Adults,Care-Away Ltd T/A Care Support,Home Care - Private Contractors Payment,1971.84,0.00,COMMERCIAL SUPPLIER 
 28-06-2022,Adults,Care-Away Ltd T/A Care Support,Home Care - Private Contractors Payment,2795.52,0.00,COMMERCIAL SUPPLIER 
 28-06-2022,Adults,Care-Away Ltd T/A Care Support,Home Care - Private Contractors Payment,1797.12,0.00,COMMERCIAL SUPPLIER 
 28-06-2022,Adults,Care-Away Ltd T/A Care Support,Home Care - Private Contractors Payment,1248.00,0.00,COMMERCIAL SUPPLIER 
 28-06-2022,Adults,Care-Away Ltd T/A Care Support,Home Care - Private Contractors Payment,582.40,0.00,COMMERCIAL SUPPLIER 
 28-06-2022,Adults,Care-Away Ltd T/A Care Support,Home Care - Private Contractors Payment,673.92,0.00,COMMERCIAL SUPPLIER 
 28-06-2022,Adults,Care-Away Ltd T/A Care Support,Home Care - Private Contractors Payment,931.84,0.00,COMMERCIAL SUPPLIER 
 28-06-2022,Adults,Care-Away Ltd T/A Care Support,Home Care - Private Contractors Payment,931.84,0.00,COMMERCIAL SUPPLIER 
 28-06-2022,Adults,Care-Away Ltd T/A Care Support,Private Contractors Payment - Other,931.84,0.00,COMMERCIAL SUPPLIER 
 28-06-2022,Adults,Care-Away Ltd T/A Care Support,Home Care - Private Contractors Payment,657.28,0.00,COMMERCIAL SUPPLIER 
 28-06-2022,Adults,Care-Away Ltd T/A Care Support,Home Care - Private Contractors Payment,1980.16,0.00,COMMERCIAL SUPPLIER 
 28-06-2022,Adults,Care-Away Ltd T/A Care Support,Home Care - Private Contractors Payment,1015.04,0.00,COMMERCIAL SUPPLIER 
 28-06-2022,Adults,Care-Away Ltd T/A Care Support,Home Care - Private Contractors Payment,931.84,0.00,COMMERCIAL SUPPLIER 
 28-06-2022,Adults,Care-Away Ltd T/A Care Support,Home Care - Private Contractors Payment,1048.32,0.00,COMMERCIAL SUPPLIER 
 28-06-2022,Adults,Care-Away Ltd T/A Care Support,Home Care - Private Contractors Payment,2562.56,0.00,COMMERCIAL SUPPLIER 
 28-06-2022,Adults,Care-Away Ltd T/A Care Support,Home Care - Private Contractors Payment,698.88,0.00,COMMERCIAL SUPPLIER 
 28-06-2022,Adults,Care-Away Ltd T/A Care Support,Home Care - Private Contractors Payment,2329.60,0.00,COMMERCIAL SUPPLIER 
 28-06-2022,Adults,Care-Away Ltd T/A Care Support,Home Care - Private Contractors Payment,1048.32,0.00,COMMERCIAL SUPPLIER 
 28-06-2022,Adults,Care-Away Ltd T/A Care Support,Home Care - Private Contractors Payment,1164.80,0.00,COMMERCIAL SUPPLIER 
 28-06-2022,Adults,Care-Away Ltd T/A Care Support,Home Care - Private Contractors Payment,2096.64,0.00,COMMERCIAL SUPPLIER 
 28-06-2022,Adults,Care-Away Ltd T/A Care Support,Home Care - Private Contractors Payment,1164.80,0.00,COMMERCIAL SUPPLIER 
 28-06-2022,Adults,Care-Away Ltd T/A Care Support,Home Care - Private Contractors Payment,1164.80,0.00,COMMERCIAL SUPPLIER 
 28-06-2022,Adults,Care-Away Ltd T/A Care Support,Private Contractors Payment - Other,20828.31,0.00,COMMERCIAL SUPPLIER 
 28-06-2022,Adults,"Age Uk Redbridge, Barking and Havering Limited",Payments To Voluntary Sector,3270.42,0.00,COMMERCIAL SUPPLIER 
 28-06-2022,Adults,"Age Uk Redbridge, Barking and Havering Limited",Payments To Voluntary Sector,3270.42,0.00,COMMERCIAL SUPPLIER 
 28-06-2022,Adults,Westminster Homecare Ltd_a,Home Care - Private Contractors Payment,668.79,0.00,COMMERCIAL SUPPLIER 
 28-06-2022,Adults,Westminster Homecare Ltd_a,Home Care - Private Contractors Payment,548.09,0.00,COMMERCIAL SUPPLIER 
 28-06-2022,Adults,Westminster Homecare Ltd_a,Home Care - Private Contractors Payment,1145.05,0.00,COMMERCIAL SUPPLIER 
 28-06-2022,Adults,Westminster Homecare Ltd_a,Home Care - Private Contractors Payment,690.11,0.00,COMMERCIAL SUPPLIER 
 28-06-2022,Adults,Westminster Homecare Ltd_a,Home Care - Private Contractors Payment,1269.03,0.00,COMMERCIAL SUPPLIER 
 28-06-2022,Adults,Westminster Homecare Ltd_a,Home Care - Private Contractors Payment,604.83,0.00,COMMERCIAL SUPPLIER 
 28-06-2022,Adults,Westminster Homecare Ltd_a,Home Care - Private Contractors Payment,1573.09,0.00,COMMERCIAL SUPPLIER 
 28-06-2022,Adults,Westminster Homecare Ltd_a,Home Care - Private Contractors Payment,1579.65,0.00,COMMERCIAL SUPPLIER 
 28-06-2022,Adults,Westminster Homecare Ltd_a,Home Care - Private Contractors Payment,1235.58,0.00,COMMERCIAL SUPPLIER 
 28-06-2022,Adults,Bloom Procurement Services Ltd,Consultancy Fees,5800.00,0.00,COMMERCIAL SUPPLIER 
 28-06-2022,Adults,Agracare Ltd t/a Home Instead Senior Care,Home Care - Private Contractors Payment,980.00,0.00,COMMERCIAL SUPPLIER 
 28-06-2022,Adults,Agracare Ltd t/a Home Instead Senior Care,Home Care - Private Contractors Payment,749.00,0.00,COMMERCIAL SUPPLIER 
 29-06-2022,Adults,Bloomscare Ltd,Home Care - Private Contractors Payment,1585.88,0.00,COMMERCIAL SUPPLIER 
 29-06-2022,Adults,Cera Care Operations Ltd,Home Care - Private Contractors Payment,1001.38,0.00,COMMERCIAL SUPPLIER 
 29-06-2022,Adults,Cera Care Operations Ltd,Home Care - Private Contractors Payment,1167.35,0.00,COMMERCIAL SUPPLIER 
 29-06-2022,Adults,Cera Care Operations Ltd,Home Care - Private Contractors Payment,828.20,0.00,COMMERCIAL SUPPLIER 
 29-06-2022,Adults,Cera Care Operations Ltd,Home Care - Private Contractors Payment,829.51,0.00,COMMERCIAL SUPPLIER 
 29-06-2022,Adults,Cera Care Operations Ltd,Home Care - Private Contractors Payment,1073.54,0.00,COMMERCIAL SUPPLIER 
 29-06-2022,Adults,Cera Care Operations Ltd,Home Care - Private Contractors Payment,1555.05,0.00,COMMERCIAL SUPPLIER 
 29-06-2022,Adults,Cera Care Operations Ltd,Home Care - Private Contractors Payment,741.94,0.00,COMMERCIAL SUPPLIER 
 29-06-2022,Adults,Cera Care Operations Ltd,Home Care - Private Contractors Payment,905.28,0.00,COMMERCIAL SUPPLIER 
 29-06-2022,Adults,Cera Care Operations Ltd,Home Care - Private Contractors Payment,994.50,0.00,COMMERCIAL SUPPLIER 
 29-06-2022,Adults,Cera Care Operations Ltd,Home Care - Private Contractors Payment,1121.76,0.00,COMMERCIAL SUPPLIER 
 29-06-2022,Adults,Cera Care Operations Ltd,Home Care - Private Contractors Payment,974.49,0.00,COMMERCIAL SUPPLIER 
 29-06-2022,Adults,Cera Care Operations Ltd,Home Care - Private Contractors Payment,567.11,0.00,COMMERCIAL SUPPLIER 
 29-06-2022,Adults,Cera Care Operations Ltd,Home Care - Private Contractors Payment,808.85,0.00,COMMERCIAL SUPPLIER 
 29-06-2022,Adults,Cera Care Operations Ltd,Home Care - Private Contractors Payment,1608.51,0.00,COMMERCIAL SUPPLIER 
 29-06-2022,Adults,Cera Care Operations Ltd,Home Care - Private Contractors Payment,541.53,0.00,COMMERCIAL SUPPLIER 
 29-06-2022,Adults,Cera Care Operations Ltd,Home Care - Private Contractors Payment,839.35,0.00,COMMERCIAL SUPPLIER 
 29-06-2022,Adults,Cera Care Operations Ltd,Home Care - Private Contractors Payment,543.17,0.00,COMMERCIAL SUPPLIER 
 29-06-2022,Adults,Cera Care Operations Ltd,Home Care - Private Contractors Payment,592.04,0.00,COMMERCIAL SUPPLIER 
 29-06-2022,Adults,Cera Care Operations Ltd,Home Care - Private Contractors Payment,1108.64,0.00,COMMERCIAL SUPPLIER 
 29-06-2022,Adults,Cera Care Operations Ltd,Home Care - Private Contractors Payment,698.64,0.00,COMMERCIAL SUPPLIER 
 29-06-2022,Adults,Cera Care Operations Ltd,Home Care - Private Contractors Payment,1103.72,0.00,COMMERCIAL SUPPLIER 
 29-06-2022,Adults,Cera Care Operations Ltd,Home Care - Private Contractors Payment,896.10,0.00,COMMERCIAL SUPPLIER 
 29-06-2022,Adults,Cera Care Operations Ltd,Home Care - Private Contractors Payment,558.26,0.00,COMMERCIAL SUPPLIER 
 29-06-2022,Adults,Cera Care Operations Ltd,Home Care - Private Contractors Payment,759.32,0.00,COMMERCIAL SUPPLIER 
 29-06-2022,Adults,Cera Care Operations Ltd,Home Care - Private Contractors Payment,816.72,0.00,COMMERCIAL SUPPLIER 
 29-06-2022,Adults,Cera Care Operations Ltd,Home Care - Private Contractors Payment,1741.02,0.00,COMMERCIAL SUPPLIER 
 29-06-2022,Adults,Cera Care Operations Ltd,Home Care - Private Contractors Payment,904.30,0.00,COMMERCIAL SUPPLIER 
 29-06-2022,Adults,Cera Care Operations Ltd,Home Care - Private Contractors Payment,567.77,0.00,COMMERCIAL SUPPLIER 
 29-06-2022,Adults,Cera Care Operations Ltd,Home Care - Private Contractors Payment,1114.22,0.00,COMMERCIAL SUPPLIER 
 29-06-2022,Adults,Cera Care Operations Ltd,Home Care - Private Contractors Payment,1114.54,0.00,COMMERCIAL SUPPLIER 
 29-06-2022,Adults,Cera Care Operations Ltd,Home Care - Private Contractors Payment,541.20,0.00,COMMERCIAL SUPPLIER 
 29-06-2022,Adults,Cera Care Operations Ltd,Home Care - Private Contractors Payment,826.56,0.00,COMMERCIAL SUPPLIER 
 29-06-2022,Adults,Cera Care Operations Ltd,Home Care - Private Contractors Payment,586.79,0.00,COMMERCIAL SUPPLIER 
 29-06-2022,Adults,Cera Care Operations Ltd,Home Care - Private Contractors Payment,837.38,0.00,COMMERCIAL SUPPLIER 
 29-06-2022,Adults,Cera Care Operations Ltd,Home Care - Private Contractors Payment,662.89,0.00,COMMERCIAL SUPPLIER 
 29-06-2022,Adults,Cera Care Operations Ltd,Home Care - Private Contractors Payment,893.47,0.00,COMMERCIAL SUPPLIER 
 29-06-2022,Adults,Cera Care Operations Ltd,Home Care - Private Contractors Payment,895.77,0.00,COMMERCIAL SUPPLIER 
 29-06-2022,Adults,Cera Care Operations Ltd,Home Care - Private Contractors Payment,551.04,0.00,COMMERCIAL SUPPLIER 
 29-06-2022,Adults,Cera Care Operations Ltd,Home Care - Private Contractors Payment,751.12,0.00,COMMERCIAL SUPPLIER 
 29-06-2022,Adults,Cera Care Operations Ltd,Home Care - Private Contractors Payment,747.84,0.00,COMMERCIAL SUPPLIER 
 29-06-2022,Adults,Cera Care Operations Ltd,Home Care - Private Contractors Payment,535.62,0.00,COMMERCIAL SUPPLIER 
 29-06-2022,Adults,Cera Care Operations Ltd,Home Care - Private Contractors Payment,1138.49,0.00,COMMERCIAL SUPPLIER 
 29-06-2022,Adults,Cera Care Operations Ltd,Home Care - Private Contractors Payment,1146.69,0.00,COMMERCIAL SUPPLIER 
 29-06-2022,Adults,Cera Care Operations Ltd,Home Care - Private Contractors Payment,557.27,0.00,COMMERCIAL SUPPLIER 
 29-06-2022,Adults,Cera Care Operations Ltd,Home Care - Private Contractors Payment,1114.54,0.00,COMMERCIAL SUPPLIER 
 29-06-2022,Adults,Cera Care Operations Ltd,Home Care - Private Contractors Payment,1125.70,0.00,COMMERCIAL SUPPLIER 
 29-06-2022,Adults,Cera Care Operations Ltd,Home Care - Private Contractors Payment,798.02,0.00,COMMERCIAL SUPPLIER 
 29-06-2022,Adults,Cera Care Operations Ltd,Home Care - Private Contractors Payment,1270.02,0.00,COMMERCIAL SUPPLIER 
 29-06-2022,Adults,Cera Care Operations Ltd,Home Care - Private Contractors Payment,557.27,0.00,COMMERCIAL SUPPLIER 
 29-06-2022,Adults,Cera Care Operations Ltd,Home Care - Private Contractors Payment,818.36,0.00,COMMERCIAL SUPPLIER 
 29-06-2022,Adults,Cera Care Operations Ltd,Home Care - Private Contractors Payment,748.17,0.00,COMMERCIAL SUPPLIER 
 29-06-2022,Adults,Cera Care Operations Ltd,Home Care - Private Contractors Payment,748.50,0.00,COMMERCIAL SUPPLIER 
 29-06-2022,Adults,Cera Care Operations Ltd,Home Care - Private Contractors Payment,605.16,0.00,COMMERCIAL SUPPLIER 
 29-06-2022,Adults,Cera Care Operations Ltd,Home Care - Private Contractors Payment,1152.59,0.00,COMMERCIAL SUPPLIER 
 29-06-2022,Adults,Cera Care Operations Ltd,Home Care - Private Contractors Payment,788.51,0.00,COMMERCIAL SUPPLIER 
 29-06-2022,Adults,Cera Care Operations Ltd,Home Care - Private Contractors Payment,1248.04,0.00,COMMERCIAL SUPPLIER 
 29-06-2022,Adults,Morepower Ltd t/a Aqs Homecare,Home Care - Private Contractors Payment,551.04,0.00,COMMERCIAL SUPPLIER 
 29-06-2022,Adults,Morepower Ltd t/a Aqs Homecare,Home Care - Private Contractors Payment,1165.71,0.00,COMMERCIAL SUPPLIER 
 29-06-2022,Adults,Morepower Ltd t/a Aqs Homecare,Home Care - Private Contractors Payment,982.36,0.00,COMMERCIAL SUPPLIER 
 29-06-2022,Adults,Morepower Ltd t/a Aqs Homecare,Home Care - Private Contractors Payment,931.52,0.00,COMMERCIAL SUPPLIER 
 29-06-2022,Adults,Morepower Ltd t/a Aqs Homecare,Home Care - Private Contractors Payment,1133.24,0.00,COMMERCIAL SUPPLIER 
 29-06-2022,Adults,Morepower Ltd t/a Aqs Homecare,Home Care - Private Contractors Payment,587.12,0.00,COMMERCIAL SUPPLIER 
 29-06-2022,Adults,Morepower Ltd t/a Aqs Homecare,Home Care - Private Contractors Payment,587.12,0.00,COMMERCIAL SUPPLIER 
 29-06-2022,Adults,Morepower Ltd t/a Aqs Homecare,Home Care - Private Contractors Payment,1182.77,0.00,COMMERCIAL SUPPLIER 
 29-06-2022,Adults,Morepower Ltd t/a Aqs Homecare,Home Care - Private Contractors Payment,1182.77,0.00,COMMERCIAL SUPPLIER 
 29-06-2022,Adults,Morepower Ltd t/a Aqs Homecare,Home Care - Private Contractors Payment,559.57,0.00,COMMERCIAL SUPPLIER 
 29-06-2022,Adults,Morepower Ltd t/a Aqs Homecare,Home Care - Private Contractors Payment,559.57,0.00,COMMERCIAL SUPPLIER 
 29-06-2022,Adults,Morepower Ltd t/a Aqs Homecare,Home Care - Private Contractors Payment,848.21,0.00,COMMERCIAL SUPPLIER 
 29-06-2022,Adults,Morepower Ltd t/a Aqs Homecare,Home Care - Private Contractors Payment,551.04,0.00,COMMERCIAL SUPPLIER 
 29-06-2022,Adults,Morepower Ltd t/a Aqs Homecare,Home Care - Private Contractors Payment,729.47,0.00,COMMERCIAL SUPPLIER 
 29-06-2022,Adults,Morepower Ltd t/a Aqs Homecare,Home Care - Private Contractors Payment,625.50,0.00,COMMERCIAL SUPPLIER 
 29-06-2022,Adults,Morepower Ltd t/a Aqs Homecare,Home Care - Private Contractors Payment,1279.53,0.00,COMMERCIAL SUPPLIER 
 29-06-2022,Adults,Morepower Ltd t/a Aqs Homecare,Home Care - Private Contractors Payment,1289.37,0.00,COMMERCIAL SUPPLIER 
 29-06-2022,Adults,Morepower Ltd t/a Aqs Homecare,Home Care - Private Contractors Payment,1026.31,0.00,COMMERCIAL SUPPLIER 
 29-06-2022,Adults,Morepower Ltd t/a Aqs Homecare,Home Care - Private Contractors Payment,551.37,0.00,COMMERCIAL SUPPLIER 
 29-06-2022,Adults,Morepower Ltd t/a Aqs Homecare,Home Care - Private Contractors Payment,618.94,0.00,COMMERCIAL SUPPLIER 
 29-06-2022,Adults,Morepower Ltd t/a Aqs Homecare,Home Care - Private Contractors Payment,712.42,0.00,COMMERCIAL SUPPLIER 
 29-06-2022,Adults,Morepower Ltd t/a Aqs Homecare,Home Care - Private Contractors Payment,540.87,0.00,COMMERCIAL SUPPLIER 
 29-06-2022,Adults,Morepower Ltd t/a Aqs Homecare,Home Care - Private Contractors Payment,1029.26,0.00,COMMERCIAL SUPPLIER 
 29-06-2022,Adults,Morepower Ltd t/a Aqs Homecare,Home Care - Private Contractors Payment,826.89,0.00,COMMERCIAL SUPPLIER 
 29-06-2022,Adults,Morepower Ltd t/a Aqs Homecare,Home Care - Private Contractors Payment,1289.04,0.00,COMMERCIAL SUPPLIER 
 29-06-2022,Adults,Morepower Ltd t/a Aqs Homecare,Home Care - Private Contractors Payment,1289.04,0.00,COMMERCIAL SUPPLIER 
 29-06-2022,Adults,Morepower Ltd t/a Aqs Homecare,Home Care - Private Contractors Payment,616.97,0.00,COMMERCIAL SUPPLIER 
 29-06-2022,Adults,Morepower Ltd t/a Aqs Homecare,Home Care - Private Contractors Payment,581.87,0.00,COMMERCIAL SUPPLIER 
 29-06-2022,Adults,Morepower Ltd t/a Aqs Homecare,Home Care - Private Contractors Payment,553.34,0.00,COMMERCIAL SUPPLIER 
 29-06-2022,Adults,Morepower Ltd t/a Aqs Homecare,Home Care - Private Contractors Payment,1176.86,0.00,COMMERCIAL SUPPLIER 
 29-06-2022,Adults,Morepower Ltd t/a Aqs Homecare,Home Care - Private Contractors Payment,1178.50,0.00,COMMERCIAL SUPPLIER 
 29-06-2022,Adults,Morepower Ltd t/a Aqs Homecare,Home Care - Private Contractors Payment,542.51,0.00,COMMERCIAL SUPPLIER 
 29-06-2022,Adults,Morepower Ltd t/a Aqs Homecare,Home Care - Private Contractors Payment,1158.82,0.00,COMMERCIAL SUPPLIER 
 29-06-2022,Adults,Morepower Ltd t/a Aqs Homecare,Home Care - Private Contractors Payment,1158.82,0.00,COMMERCIAL SUPPLIER 
 29-06-2022,Adults,Morepower Ltd t/a Aqs Homecare,Home Care - Private Contractors Payment,932.50,0.00,COMMERCIAL SUPPLIER 
 29-06-2022,Adults,Morepower Ltd t/a Aqs Homecare,Home Care - Private Contractors Payment,909.87,0.00,COMMERCIAL SUPPLIER 
 29-06-2022,Adults,Morepower Ltd t/a Aqs Homecare,Home Care - Private Contractors Payment,551.04,0.00,COMMERCIAL SUPPLIER 
 29-06-2022,Adults,Morepower Ltd t/a Aqs Homecare,Home Care - Private Contractors Payment,670.76,0.00,COMMERCIAL SUPPLIER 
 29-06-2022,Adults,Morepower Ltd t/a Aqs Homecare,Home Care - Private Contractors Payment,1074.53,0.00,COMMERCIAL SUPPLIER 
 29-06-2022,Adults,Morepower Ltd t/a Aqs Homecare,Home Care - Private Contractors Payment,775.06,0.00,COMMERCIAL SUPPLIER 
 29-06-2022,Adults,Morepower Ltd t/a Aqs Homecare,Home Care - Private Contractors Payment,561.21,0.00,COMMERCIAL SUPPLIER 
 29-06-2022,Adults,Morepower Ltd t/a Aqs Homecare,Home Care - Private Contractors Payment,511.68,0.00,COMMERCIAL SUPPLIER 
 29-06-2022,Adults,Morepower Ltd t/a Aqs Homecare,Home Care - Private Contractors Payment,1458.29,0.00,COMMERCIAL SUPPLIER 
 29-06-2022,Adults,Morepower Ltd t/a Aqs Homecare,Home Care - Private Contractors Payment,1689.20,0.00,COMMERCIAL SUPPLIER 
 29-06-2022,Adults,Morepower Ltd t/a Aqs Homecare,Home Care - Private Contractors Payment,590.40,0.00,COMMERCIAL SUPPLIER 
 29-06-2022,Adults,Morepower Ltd t/a Aqs Homecare,Home Care - Private Contractors Payment,1405.48,0.00,COMMERCIAL SUPPLIER 
 29-06-2022,Adults,Morepower Ltd t/a Aqs Homecare,Home Care - Private Contractors Payment,1405.48,0.00,COMMERCIAL SUPPLIER 
 29-06-2022,Adults,Morepower Ltd t/a Aqs Homecare,Home Care - Private Contractors Payment,824.92,0.00,COMMERCIAL SUPPLIER 
 29-06-2022,Adults,Morepower Ltd t/a Aqs Homecare,Home Care - Private Contractors Payment,910.86,0.00,COMMERCIAL SUPPLIER 
 29-06-2022,Adults,Morepower Ltd t/a Aqs Homecare,Home Care - Private Contractors Payment,1079.45,0.00,COMMERCIAL SUPPLIER 
 29-06-2022,Adults,Matrix SCM Ltd,Agency Staff,520.66,0.00,COMMERCIAL SUPPLIER 
 29-06-2022,Adults,Matrix SCM Ltd,Agency Staff,1181.54,0.00,COMMERCIAL SUPPLIER 
 29-06-2022,Adults,Matrix SCM Ltd,Agency Staff,1281.98,0.00,COMMERCIAL SUPPLIER 
 29-06-2022,Adults,Matrix SCM Ltd,Agency Staff,1169.28,0.00,COMMERCIAL SUPPLIER 
 29-06-2022,Adults,Matrix SCM Ltd,Agency Staff,1282.34,0.00,COMMERCIAL SUPPLIER 
 29-06-2022,Adults,Matrix SCM Ltd,Agency Staff,1295.70,0.00,COMMERCIAL SUPPLIER 
 29-06-2022,Adults,Matrix SCM Ltd,Agency Staff,1181.15,0.00,COMMERCIAL SUPPLIER 
 29-06-2022,Adults,Matrix SCM Ltd,Agency Staff,1241.28,0.00,COMMERCIAL SUPPLIER 
 29-06-2022,Adults,Matrix SCM Ltd,Agency Staff,1207.46,0.00,COMMERCIAL SUPPLIER 
 29-06-2022,Adults,Matrix SCM Ltd,Agency Staff,1244.51,0.00,COMMERCIAL SUPPLIER 
 29-06-2022,Adults,Matrix SCM Ltd,Agency Staff,1357.57,0.00,COMMERCIAL SUPPLIER 
 29-06-2022,Adults,Matrix SCM Ltd,Agency Staff,1253.15,0.00,COMMERCIAL SUPPLIER 
 29-06-2022,Adults,Matrix SCM Ltd,Agency Staff,1207.46,0.00,COMMERCIAL SUPPLIER 
 29-06-2022,Adults,Matrix SCM Ltd,Agency Staff,1207.46,0.00,COMMERCIAL SUPPLIER 
 29-06-2022,Adults,Matrix SCM Ltd,Agency Staff,1241.28,0.00,COMMERCIAL SUPPLIER 
 29-06-2022,Adults,Matrix SCM Ltd,Agency Staff,1241.28,0.00,COMMERCIAL SUPPLIER 
 29-06-2022,Adults,Matrix SCM Ltd,Agency Staff,728.29,0.00,COMMERCIAL SUPPLIER 
 29-06-2022,Adults,Matrix SCM Ltd,Agency Staff,1241.28,0.00,COMMERCIAL SUPPLIER 
 29-06-2022,Adults,Matrix SCM Ltd,Agency Staff,1241.28,0.00,COMMERCIAL SUPPLIER 
 29-06-2022,Adults,Matrix SCM Ltd,Agency Staff,1132.56,0.00,COMMERCIAL SUPPLIER 
 29-06-2022,Adults,Matrix SCM Ltd,Agency Staff,752.06,0.00,COMMERCIAL SUPPLIER 
 29-06-2022,Adults,Matrix SCM Ltd,Agency Staff,680.36,0.00,COMMERCIAL SUPPLIER 
 29-06-2022,Adults,Matrix SCM Ltd,Agency Staff,1469.18,0.00,COMMERCIAL SUPPLIER 
 29-06-2022,Adults,Matrix SCM Ltd,Agency Staff,1018.02,0.00,COMMERCIAL SUPPLIER 
 29-06-2022,Adults,Matrix SCM Ltd,Agency Staff,1282.32,0.00,COMMERCIAL SUPPLIER 
 29-06-2022,Adults,Matrix SCM Ltd,Agency Staff,1181.18,0.00,COMMERCIAL SUPPLIER 
 29-06-2022,Adults,Matrix SCM Ltd,Agency Staff,586.68,0.00,COMMERCIAL SUPPLIER 
 29-06-2022,Adults,Matrix SCM Ltd,Agency Staff,601.92,0.00,COMMERCIAL SUPPLIER 
 29-06-2022,Adults,Matrix SCM Ltd,Agency Staff,611.65,0.00,COMMERCIAL SUPPLIER 
 29-06-2022,Adults,Matrix SCM Ltd,Agency Staff,520.45,0.00,COMMERCIAL SUPPLIER 
 29-06-2022,Adults,Matrix SCM Ltd,Agency Staff,523.99,0.00,COMMERCIAL SUPPLIER 
 29-06-2022,Adults,Matrix SCM Ltd,Agency Staff,1034.44,0.00,COMMERCIAL SUPPLIER 
 29-06-2022,Adults,Matrix SCM Ltd,Agency Staff,1473.12,0.00,COMMERCIAL SUPPLIER 
 29-06-2022,Adults,Matrix SCM Ltd,Agency Staff,2546.80,0.00,COMMERCIAL SUPPLIER 
 29-06-2022,Adults,Matrix SCM Ltd,Agency Staff,803.22,0.00,COMMERCIAL SUPPLIER 
 29-06-2022,Adults,Matrix SCM Ltd,Agency Staff,866.24,0.00,COMMERCIAL SUPPLIER 
 29-06-2022,Adults,Matrix SCM Ltd,Agency Staff,522.66,0.00,COMMERCIAL SUPPLIER 
 29-06-2022,Adults,Matrix SCM Ltd,Agency Staff,818.07,0.00,COMMERCIAL SUPPLIER 
 29-06-2022,Adults,Matrix SCM Ltd,Agency Staff,756.36,0.00,COMMERCIAL SUPPLIER 
 29-06-2022,Adults,Matrix SCM Ltd,Agency Staff,998.64,0.00,COMMERCIAL SUPPLIER 
 29-06-2022,Adults,Matrix SCM Ltd,Agency Staff,759.85,0.00,COMMERCIAL SUPPLIER 
 29-06-2022,Adults,Matrix SCM Ltd,Agency Staff,2039.16,0.00,COMMERCIAL SUPPLIER 
 29-06-2022,Adults,Matrix SCM Ltd,Agency Staff,762.65,0.00,COMMERCIAL SUPPLIER 
 29-06-2022,Adults,Matrix SCM Ltd,Agency Staff,780.15,0.00,COMMERCIAL SUPPLIER 
 29-06-2022,Adults,Matrix SCM Ltd,Agency Staff,1515.98,0.00,COMMERCIAL SUPPLIER 
 29-06-2022,Adults,Matrix SCM Ltd,Agency Staff,1282.34,0.00,COMMERCIAL SUPPLIER 
 29-06-2022,Adults,Matrix SCM Ltd,Agency Staff,1394.66,0.00,COMMERCIAL SUPPLIER 
 29-06-2022,Adults,Matrix SCM Ltd,Agency Staff,1473.12,0.00,COMMERCIAL SUPPLIER 
 29-06-2022,Adults,Matrix SCM Ltd,Agency Staff,1207.46,0.00,COMMERCIAL SUPPLIER 
 29-06-2022,Adults,Matrix SCM Ltd,Agency Staff,976.56,0.00,COMMERCIAL SUPPLIER 
 29-06-2022,Adults,Matrix SCM Ltd,Agency Staff,1207.46,0.00,COMMERCIAL SUPPLIER 
 29-06-2022,Adults,Matrix SCM Ltd,Agency Staff,1282.34,0.00,COMMERCIAL SUPPLIER 
 29-06-2022,Adults,Matrix SCM Ltd,Agency Staff,946.56,0.00,COMMERCIAL SUPPLIER 
 29-06-2022,Adults,Matrix SCM Ltd,Agency Staff,1253.15,0.00,COMMERCIAL SUPPLIER 
 29-06-2022,Adults,Matrix SCM Ltd,Agency Staff,622.08,0.00,COMMERCIAL SUPPLIER 
 30-06-2022,Adults,Care-Away Ltd T/A Care Support,Home Care - Private Contractors Payment,1264.64,0.00,COMMERCIAL SUPPLIER 
 30-06-2022,Adults,The Riverside Group,Private Contractors Payment - Other,14310.83,0.00, 
 30-06-2022,Adults,The Riverside Group,Private Contractors Payment - Other,4690.46,0.00, 
 30-06-2022,Adults,The Riverside Group,Private Contractors Payment - Other,4690.46,0.00, 
 30-06-2022,Adults,Home Support Services (Havering & Essex) Ltd,Home Care - Private Contractors Payment,1102.08,0.00,COMMERCIAL SUPPLIER 
 30-06-2022,Adults,Home Support Services (Havering & Essex) Ltd,Home Care - Private Contractors Payment,1111.92,0.00,COMMERCIAL SUPPLIER 
 30-06-2022,Adults,Home Support Services (Havering & Essex) Ltd,Home Care - Private Contractors Payment,1104.05,0.00,COMMERCIAL SUPPLIER 
 30-06-2022,Adults,Home Support Services (Havering & Essex) Ltd,Home Care - Private Contractors Payment,551.04,0.00,COMMERCIAL SUPPLIER 
 30-06-2022,Adults,Home Support Services (Havering & Essex) Ltd,Home Care - Private Contractors Payment,1022.38,0.00,COMMERCIAL SUPPLIER 
 30-06-2022,Adults,Home Support Services (Havering & Essex) Ltd,Home Care - Private Contractors Payment,1022.38,0.00,COMMERCIAL SUPPLIER 
 30-06-2022,Adults,Home Support Services (Havering & Essex) Ltd,Home Care - Private Contractors Payment,551.04,0.00,COMMERCIAL SUPPLIER 
 30-06-2022,Adults,Home Support Services (Havering & Essex) Ltd,Home Care - Private Contractors Payment,1092.24,0.00,COMMERCIAL SUPPLIER 
 30-06-2022,Adults,Home Support Services (Havering & Essex) Ltd,Home Care - Private Contractors Payment,1111.92,0.00,COMMERCIAL SUPPLIER 
 30-06-2022,Adults,Home Support Services (Havering & Essex) Ltd,Home Care - Private Contractors Payment,1104.38,0.00,COMMERCIAL SUPPLIER 
 30-06-2022,Adults,Home Support Services (Havering & Essex) Ltd,Home Care - Private Contractors Payment,1104.38,0.00,COMMERCIAL SUPPLIER 
 30-06-2022,Adults,Home Support Services (Havering & Essex) Ltd,Home Care - Private Contractors Payment,1104.70,0.00,COMMERCIAL SUPPLIER 
 30-06-2022,Adults,Home Support Services (Havering & Essex) Ltd,Home Care - Private Contractors Payment,1104.70,0.00,COMMERCIAL SUPPLIER 
 30-06-2022,Adults,Home Support Services (Havering & Essex) Ltd,Home Care - Private Contractors Payment,1005.32,0.00,COMMERCIAL SUPPLIER 
 30-06-2022,Adults,Home Support Services (Havering & Essex) Ltd,Home Care - Private Contractors Payment,1013.52,0.00,COMMERCIAL SUPPLIER 
 30-06-2022,Adults,Home Support Services (Havering & Essex) Ltd,Home Care - Private Contractors Payment,1190.64,0.00,COMMERCIAL SUPPLIER 
 30-06-2022,Adults,Home Support Services (Havering & Essex) Ltd,Home Care - Private Contractors Payment,560.88,0.00,COMMERCIAL SUPPLIER 
 30-06-2022,Adults,Home Support Services (Havering & Essex) Ltd,Home Care - Private Contractors Payment,917.09,0.00,COMMERCIAL SUPPLIER 
 30-06-2022,Adults,Home Support Services (Havering & Essex) Ltd,Home Care - Private Contractors Payment,556.62,0.00,COMMERCIAL SUPPLIER 
 30-06-2022,Adults,Home Support Services (Havering & Essex) Ltd,Home Care - Private Contractors Payment,1115.86,0.00,COMMERCIAL SUPPLIER 
 30-06-2022,Adults,Home Support Services (Havering & Essex) Ltd,Home Care - Private Contractors Payment,826.56,0.00,COMMERCIAL SUPPLIER 
 30-06-2022,Adults,Home Support Services (Havering & Essex) Ltd,Home Care - Private Contractors Payment,1070.59,0.00,COMMERCIAL SUPPLIER 
 30-06-2022,Adults,Home Support Services (Havering & Essex) Ltd,Home Care - Private Contractors Payment,757.68,0.00,COMMERCIAL SUPPLIER 
 30-06-2022,Adults,Home Support Services (Havering & Essex) Ltd,Home Care - Private Contractors Payment,836.40,0.00,COMMERCIAL SUPPLIER 
 30-06-2022,Adults,Home Support Services (Havering & Essex) Ltd,Home Care - Private Contractors Payment,836.40,0.00,COMMERCIAL SUPPLIER 
 30-06-2022,Adults,Home Support Services (Havering & Essex) Ltd,Home Care - Private Contractors Payment,980.06,0.00,COMMERCIAL SUPPLIER 
 30-06-2022,Adults,Home Support Services (Havering & Essex) Ltd,Home Care - Private Contractors Payment,1147.67,0.00,COMMERCIAL SUPPLIER 
 30-06-2022,Adults,Home Support Services (Havering & Essex) Ltd,Home Care - Private Contractors Payment,511.35,0.00,COMMERCIAL SUPPLIER 
 30-06-2022,Adults,Home Support Services (Havering & Essex) Ltd,Home Care - Private Contractors Payment,1092.24,0.00,COMMERCIAL SUPPLIER 
 30-06-2022,Adults,Home Support Services (Havering & Essex) Ltd,Home Care - Private Contractors Payment,1092.24,0.00,COMMERCIAL SUPPLIER 
 30-06-2022,Adults,Home Support Services (Havering & Essex) Ltd,Home Care - Private Contractors Payment,1168.34,0.00,COMMERCIAL SUPPLIER 
 30-06-2022,Adults,Home Support Services (Havering & Essex) Ltd,Home Care - Private Contractors Payment,1069.94,0.00,COMMERCIAL SUPPLIER 
 30-06-2022,Adults,Home Support Services (Havering & Essex) Ltd,Home Care - Private Contractors Payment,1092.57,0.00,COMMERCIAL SUPPLIER 
 30-06-2022,Adults,Home Support Services (Havering & Essex) Ltd,Home Care - Private Contractors Payment,840.66,0.00,COMMERCIAL SUPPLIER 
 30-06-2022,Adults,Home Support Services (Havering & Essex) Ltd,Home Care - Private Contractors Payment,551.04,0.00,COMMERCIAL SUPPLIER 
 30-06-2022,Adults,Home Support Services (Havering & Essex) Ltd,Home Care - Private Contractors Payment,551.04,0.00,COMMERCIAL SUPPLIER 
 30-06-2022,Adults,Home Support Services (Havering & Essex) Ltd,Home Care - Private Contractors Payment,579.58,0.00,COMMERCIAL SUPPLIER 
 30-06-2022,Adults,Home Support Services (Havering & Essex) Ltd,Home Care - Private Contractors Payment,579.58,0.00,COMMERCIAL SUPPLIER 
 30-06-2022,Adults,Home Support Services (Havering & Essex) Ltd,Home Care - Private Contractors Payment,1023.03,0.00,COMMERCIAL SUPPLIER 
 30-06-2022,Adults,Home Support Services (Havering & Essex) Ltd,Home Care - Private Contractors Payment,1263.78,0.00,COMMERCIAL SUPPLIER 
 30-06-2022,Adults,Home Support Services (Havering & Essex) Ltd,Home Care - Private Contractors Payment,553.99,0.00,COMMERCIAL SUPPLIER 
 30-06-2022,Adults,Home Support Services (Havering & Essex) Ltd,Home Care - Private Contractors Payment,1115.53,0.00,COMMERCIAL SUPPLIER 
 30-06-2022,Adults,Home Support Services (Havering & Essex) Ltd,Home Care - Private Contractors Payment,1054.19,0.00,COMMERCIAL SUPPLIER 
 30-06-2022,Adults,Home Support Services (Havering & Essex) Ltd,Home Care - Private Contractors Payment,797.04,0.00,COMMERCIAL SUPPLIER 
 30-06-2022,Adults,Home Support Services (Havering & Essex) Ltd,Home Care - Private Contractors Payment,797.70,0.00,COMMERCIAL SUPPLIER 
 30-06-2022,Adults,Home Support Services (Havering & Essex) Ltd,Home Care - Private Contractors Payment,1174.57,0.00,COMMERCIAL SUPPLIER 
 30-06-2022,Adults,Home Support Services (Havering & Essex) Ltd,Home Care - Private Contractors Payment,919.06,0.00,COMMERCIAL SUPPLIER 
 30-06-2022,Adults,Home Support Services (Havering & Essex) Ltd,Home Care - Private Contractors Payment,592.37,0.00,COMMERCIAL SUPPLIER 
 30-06-2022,Adults,Home Support Services (Havering & Essex) Ltd,Home Care - Private Contractors Payment,826.56,0.00,COMMERCIAL SUPPLIER 
 30-06-2022,Adults,Home Support Services (Havering & Essex) Ltd,Home Care - Private Contractors Payment,826.56,0.00,COMMERCIAL SUPPLIER 
 30-06-2022,Adults,Home Support Services (Havering & Essex) Ltd,Home Care - Private Contractors Payment,921.35,0.00,COMMERCIAL SUPPLIER 
 30-06-2022,Adults,Home Support Services (Havering & Essex) Ltd,Home Care - Private Contractors Payment,1110.94,0.00,COMMERCIAL SUPPLIER 
 30-06-2022,Adults,Home Support Services (Havering & Essex) Ltd,Home Care - Private Contractors Payment,878.38,0.00,COMMERCIAL SUPPLIER 
 30-06-2022,Adults,Home Support Services (Havering & Essex) Ltd,Home Care - Private Contractors Payment,579.58,0.00,COMMERCIAL SUPPLIER 
 30-06-2022,Adults,Home Support Services (Havering & Essex) Ltd,Home Care - Private Contractors Payment,836.40,0.00,COMMERCIAL SUPPLIER 
 30-06-2022,Adults,Home Support Services (Havering & Essex) Ltd,Home Care - Private Contractors Payment,767.52,0.00,COMMERCIAL SUPPLIER 
 30-06-2022,Adults,Home Support Services (Havering & Essex) Ltd,Home Care - Private Contractors Payment,1023.36,0.00,COMMERCIAL SUPPLIER 
 30-06-2022,Adults,Home Support Services (Havering & Essex) Ltd,Home Care - Private Contractors Payment,1180.80,0.00,COMMERCIAL SUPPLIER 
 30-06-2022,Adults,Home Support Services (Havering & Essex) Ltd,Home Care - Private Contractors Payment,1027.95,0.00,COMMERCIAL SUPPLIER 
 30-06-2022,Adults,Home Support Services (Havering & Essex) Ltd,Home Care - Private Contractors Payment,1112.25,0.00,COMMERCIAL SUPPLIER 
 30-06-2022,Adults,Home Support Services (Havering & Essex) Ltd,Home Care - Private Contractors Payment,738.66,0.00,COMMERCIAL SUPPLIER 
 30-06-2022,Adults,Home Support Services (Havering & Essex) Ltd,Home Care - Private Contractors Payment,1102.08,0.00,COMMERCIAL SUPPLIER 
 30-06-2022,Adults,Home Support Services (Havering & Essex) Ltd,Home Care - Private Contractors Payment,1102.08,0.00,COMMERCIAL SUPPLIER 
 30-06-2022,Adults,Home Support Services (Havering & Essex) Ltd,Home Care - Private Contractors Payment,710.78,0.00,COMMERCIAL SUPPLIER 
 30-06-2022,Adults,Home Support Services (Havering & Essex) Ltd,Home Care - Private Contractors Payment,1102.08,0.00,COMMERCIAL SUPPLIER 
 30-06-2022,Adults,Home Support Services (Havering & Essex) Ltd,Home Care - Private Contractors Payment,1102.08,0.00,COMMERCIAL SUPPLIER 
 30-06-2022,Adults,Home Support Services (Havering & Essex) Ltd,Home Care - Private Contractors Payment,1102.08,0.00,COMMERCIAL SUPPLIER 
 30-06-2022,Adults,Home Support Services (Havering & Essex) Ltd,Home Care - Private Contractors Payment,1102.08,0.00,COMMERCIAL SUPPLIER 
 30-06-2022,Adults,Home Support Services (Havering & Essex) Ltd,Home Care - Private Contractors Payment,897.41,0.00,COMMERCIAL SUPPLIER 
 30-06-2022,Adults,Home Support Services (Havering & Essex) Ltd,Home Care - Private Contractors Payment,953.82,0.00,COMMERCIAL SUPPLIER 
 30-06-2022,Adults,Home Support Services (Havering & Essex) Ltd,Home Care - Private Contractors Payment,1249.35,0.00,COMMERCIAL SUPPLIER 
 30-06-2022,Adults,Home Support Services (Havering & Essex) Ltd,Home Care - Private Contractors Payment,720.29,0.00,COMMERCIAL SUPPLIER 
 30-06-2022,Adults,Home Support Services (Havering & Essex) Ltd,Home Care - Private Contractors Payment,701.92,0.00,COMMERCIAL SUPPLIER 
 30-06-2022,Adults,Home Support Services (Havering & Essex) Ltd,Home Care - Private Contractors Payment,1015.16,0.00,COMMERCIAL SUPPLIER 
 30-06-2022,Adults,Home Support Services (Havering & Essex) Ltd,Home Care - Private Contractors Payment,1034.84,0.00,COMMERCIAL SUPPLIER 
 30-06-2022,Adults,Home Support Services (Havering & Essex) Ltd,Home Care - Private Contractors Payment,826.56,0.00,COMMERCIAL SUPPLIER 
 30-06-2022,Adults,Home Support Services (Havering & Essex) Ltd,Home Care - Private Contractors Payment,717.66,0.00,COMMERCIAL SUPPLIER 
 30-06-2022,Adults,Home Support Services (Havering & Essex) Ltd,Home Care - Private Contractors Payment,556.29,0.00,COMMERCIAL SUPPLIER 
 30-06-2022,Adults,Home Support Services (Havering & Essex) Ltd,Home Care - Private Contractors Payment,541.86,0.00,COMMERCIAL SUPPLIER 
 30-06-2022,Adults,Home Support Services (Havering & Essex) Ltd,Home Care - Private Contractors Payment,747.84,0.00,COMMERCIAL SUPPLIER 
 30-06-2022,Adults,Home Support Services (Havering & Essex) Ltd,Home Care - Private Contractors Payment,747.84,0.00,COMMERCIAL SUPPLIER 
 30-06-2022,Adults,Home Support Services (Havering & Essex) Ltd,Home Care - Private Contractors Payment,635.01,0.00,COMMERCIAL SUPPLIER 
 30-06-2022,Adults,Home Support Services (Havering & Essex) Ltd,Home Care - Private Contractors Payment,1107.33,0.00,COMMERCIAL SUPPLIER 
 30-06-2022,Adults,Home Support Services (Havering & Essex) Ltd,Home Care - Private Contractors Payment,1107.33,0.00,COMMERCIAL SUPPLIER 
 30-06-2022,Adults,Home Support Services (Havering & Essex) Ltd,Home Care - Private Contractors Payment,590.40,0.00,COMMERCIAL SUPPLIER 
 30-06-2022,Adults,Home Support Services (Havering & Essex) Ltd,Home Care - Private Contractors Payment,1092.24,0.00,COMMERCIAL SUPPLIER 
 30-06-2022,Adults,Home Support Services (Havering & Essex) Ltd,Home Care - Private Contractors Payment,1092.24,0.00,COMMERCIAL SUPPLIER 
 30-06-2022,Adults,Home Support Services (Havering & Essex) Ltd,Home Care - Private Contractors Payment,1102.08,0.00,COMMERCIAL SUPPLIER 
 30-06-2022,Adults,Home Support Services (Havering & Essex) Ltd,Home Care - Private Contractors Payment,557.93,0.00,COMMERCIAL SUPPLIER 
 30-06-2022,Adults,Home Support Services (Havering & Essex) Ltd,Home Care - Private Contractors Payment,1094.21,0.00,COMMERCIAL SUPPLIER 
 30-06-2022,Adults,Home Support Services (Havering & Essex) Ltd,Home Care - Private Contractors Payment,1094.21,0.00,COMMERCIAL SUPPLIER 
 30-06-2022,Adults,Home Support Services (Havering & Essex) Ltd,Home Care - Private Contractors Payment,826.56,0.00,COMMERCIAL SUPPLIER 
 01-06-2022,Chief Operating Officer,Matrix SCM Ltd,Agency Staff,2510.00,0.00,COMMERCIAL SUPPLIER 
 01-06-2022,Chief Operating Officer,Matrix SCM Ltd,Agency Staff,1815.25,0.00,COMMERCIAL SUPPLIER 
 01-06-2022,Chief Operating Officer,Matrix SCM Ltd,Agency Staff,2562.10,0.00,COMMERCIAL SUPPLIER 
 01-06-2022,Chief Operating Officer,Matrix SCM Ltd,Agency Staff,2731.70,0.00,COMMERCIAL SUPPLIER 
 01-06-2022,Chief Operating Officer,Matrix SCM Ltd,Agency Staff,2977.68,0.00,COMMERCIAL SUPPLIER 
 01-06-2022,Chief Operating Officer,Matrix SCM Ltd,Agency Staff,1229.85,0.00,COMMERCIAL SUPPLIER 
 01-06-2022,Chief Operating Officer,Matrix SCM Ltd,Agency Staff,559.46,0.00,COMMERCIAL SUPPLIER 
 01-06-2022,Chief Operating Officer,Matrix SCM Ltd,Agency Staff,568.80,0.00,COMMERCIAL SUPPLIER 
 01-06-2022,Chief Operating Officer,Matrix SCM Ltd,Agency Staff,568.80,0.00,COMMERCIAL SUPPLIER 
 01-06-2022,Chief Operating Officer,Matrix SCM Ltd,Agency Staff,568.80,0.00,COMMERCIAL SUPPLIER 
 01-06-2022,Chief Operating Officer,Matrix SCM Ltd,Agency Staff,2674.36,0.00,COMMERCIAL SUPPLIER 
 01-06-2022,Chief Operating Officer,Matrix SCM Ltd,Agency Staff,3265.10,0.00,COMMERCIAL SUPPLIER 
 01-06-2022,Chief Operating Officer,Matrix SCM Ltd,Agency Staff,4017.30,0.00,COMMERCIAL SUPPLIER 
 01-06-2022,Chief Operating Officer,Matrix SCM Ltd,Agency Staff,1220.15,0.00,COMMERCIAL SUPPLIER 
 01-06-2022,Chief Operating Officer,Matrix SCM Ltd,Agency Staff,2514.85,0.00,COMMERCIAL SUPPLIER 
 01-06-2022,Chief Operating Officer,Matrix SCM Ltd,Agency Staff,3369.45,0.00,COMMERCIAL SUPPLIER 
 01-06-2022,Chief Operating Officer,Matrix SCM Ltd,Agency Staff,1480.36,0.00,COMMERCIAL SUPPLIER 
 01-06-2022,Chief Operating Officer,Matrix SCM Ltd,Agency Staff,559.46,0.00,COMMERCIAL SUPPLIER 
 01-06-2022,Chief Operating Officer,Matrix SCM Ltd,Agency Staff,559.46,0.00,COMMERCIAL SUPPLIER 
 01-06-2022,Chief Operating Officer,Matrix SCM Ltd,Agency Staff,568.80,0.00,COMMERCIAL SUPPLIER 
 01-06-2022,Chief Operating Officer,Matrix SCM Ltd,Agency Staff,501.12,0.00,COMMERCIAL SUPPLIER 
 01-06-2022,Chief Operating Officer,Matrix SCM Ltd,Agency Staff,1252.50,0.00,COMMERCIAL SUPPLIER 
 01-06-2022,Chief Operating Officer,Matrix SCM Ltd,Agency Staff,1247.55,0.00,COMMERCIAL SUPPLIER 
 01-06-2022,Chief Operating Officer,Matrix SCM Ltd,Agency Staff,792.80,0.00,COMMERCIAL SUPPLIER 
 01-06-2022,Chief Operating Officer,Matrix SCM Ltd,Agency Staff,1581.12,0.00,COMMERCIAL SUPPLIER 
 01-06-2022,Chief Operating Officer,Matrix SCM Ltd,Agency Staff,1786.76,0.00,COMMERCIAL SUPPLIER 
 01-06-2022,Chief Operating Officer,Matrix SCM Ltd,Agency Staff,2645.88,0.00,COMMERCIAL SUPPLIER 
 01-06-2022,Chief Operating Officer,Matrix SCM Ltd,Agency Staff,2645.88,0.00,COMMERCIAL SUPPLIER 
 06-06-2022,Chief Operating Officer,Askews & Holts Library Services Ltd,"Books, Publications And Resources",520.29,0.00,COMMERCIAL SUPPLIER 
 06-06-2022,Chief Operating Officer,Havering Athletic Club,Arts And Leisure Costs,3500.00,0.00,NON COMMERCIAL SUPPLIER 
 07-06-2022,Chief Operating Officer,Penna Plc_a,Consultancy Fees,12331.00,0.00,COMMERCIAL SUPPLIER 
 07-06-2022,Chief Operating Officer,Penna Plc_a,Consultancy Fees,18343.50,0.00,COMMERCIAL SUPPLIER 
 07-06-2022,Chief Operating Officer,Penna Plc_a,Consultancy Fees,13629.00,0.00,COMMERCIAL SUPPLIER 
 08-06-2022,Chief Operating Officer,Law Morgan Ltd,Legal Fees,3200.40,0.00,COMMERCIAL SUPPLIER 
 08-06-2022,Chief Operating Officer,Law Morgan Ltd,Agency Staff,2094.84,0.00,COMMERCIAL SUPPLIER 
 08-06-2022,Chief Operating Officer,Hammond Clarke Ltd,Agency Staff,2000.00,0.00,COMMERCIAL SUPPLIER 
 08-06-2022,Chief Operating Officer,Hammond Clarke Ltd,Agency Staff,2000.00,0.00,COMMERCIAL SUPPLIER 
 08-06-2022,Chief Operating Officer,Hammond Clarke Ltd,Agency Staff,2000.00,0.00,COMMERCIAL SUPPLIER 
 08-06-2022,Chief Operating Officer,Hammond Clarke Ltd,Agency Staff,2500.00,0.00,COMMERCIAL SUPPLIER 
 08-06-2022,Chief Operating Officer,Hammond Clarke Ltd,Agency Staff,2500.00,0.00,COMMERCIAL SUPPLIER 
 08-06-2022,Chief Operating Officer,Hammond Clarke Ltd,Agency Staff,2000.00,0.00,COMMERCIAL SUPPLIER 
 08-06-2022,Chief Operating Officer,Hammond Clarke Ltd,Agency Staff,2500.00,0.00,COMMERCIAL SUPPLIER 
 08-06-2022,Chief Operating Officer,Hammond Clarke Ltd,Agency Staff,2500.00,0.00,COMMERCIAL SUPPLIER 
 08-06-2022,Chief Operating Officer,Hammond Clarke Ltd,Agency Staff,1500.00,0.00,COMMERCIAL SUPPLIER 
 08-06-2022,Chief Operating Officer,Penna Plc_a,Consultancy Fees,16596.50,0.00,COMMERCIAL SUPPLIER 
 08-06-2022,Chief Operating Officer,Bay Media Ltd,"Advertising, Publicity And Marketing",21878.00,0.00,COMMERCIAL SUPPLIER 
 08-06-2022,Chief Operating Officer,Matrix SCM Ltd,Agency Staff,1945.50,0.00,COMMERCIAL SUPPLIER 
 08-06-2022,Chief Operating Officer,Matrix SCM Ltd,Agency Staff,1110.27,0.00,COMMERCIAL SUPPLIER 
 08-06-2022,Chief Operating Officer,Matrix SCM Ltd,Agency Staff,1508.91,0.00,COMMERCIAL SUPPLIER 
 08-06-2022,Chief Operating Officer,Matrix SCM Ltd,Agency Staff,594.60,0.00,COMMERCIAL SUPPLIER 
 08-06-2022,Chief Operating Officer,Matrix SCM Ltd,Agency Staff,955.26,0.00,COMMERCIAL SUPPLIER 
 08-06-2022,Chief Operating Officer,Matrix SCM Ltd,Agency Staff,893.38,0.00,COMMERCIAL SUPPLIER 
 08-06-2022,Chief Operating Officer,Matrix SCM Ltd,Agency Staff,751.50,0.00,COMMERCIAL SUPPLIER 
 08-06-2022,Chief Operating Officer,Matrix SCM Ltd,Agency Staff,841.16,0.00,COMMERCIAL SUPPLIER 
 08-06-2022,Chief Operating Officer,Matrix SCM Ltd,Agency Staff,2005.77,0.00,COMMERCIAL SUPPLIER 
 08-06-2022,Chief Operating Officer,Matrix SCM Ltd,Agency Staff,1306.04,0.00,COMMERCIAL SUPPLIER 
 08-06-2022,Chief Operating Officer,Matrix SCM Ltd,Agency Staff,2410.38,0.00,COMMERCIAL SUPPLIER 
 08-06-2022,Chief Operating Officer,Matrix SCM Ltd,Agency Staff,732.09,0.00,COMMERCIAL SUPPLIER 
 08-06-2022,Chief Operating Officer,Matrix SCM Ltd,Agency Staff,856.72,0.00,COMMERCIAL SUPPLIER 
 08-06-2022,Chief Operating Officer,Matrix SCM Ltd,Agency Staff,856.72,0.00,COMMERCIAL SUPPLIER 
 08-06-2022,Chief Operating Officer,Matrix SCM Ltd,Agency Staff,1506.00,0.00,COMMERCIAL SUPPLIER 
 08-06-2022,Chief Operating Officer,Matrix SCM Ltd,Agency Staff,2233.26,0.00,COMMERCIAL SUPPLIER 
 08-06-2022,Chief Operating Officer,Matrix SCM Ltd,Agency Staff,1639.02,0.00,COMMERCIAL SUPPLIER 
 08-06-2022,Chief Operating Officer,Matrix SCM Ltd,Agency Staff,1089.15,0.00,COMMERCIAL SUPPLIER 
 08-06-2022,Chief Operating Officer,Valtech Ltd,Consultancy Fees,636.55,0.00,COMMERCIAL SUPPLIER 
 09-06-2022,Chief Operating Officer,Ignite Consulting Limited,Consultancy Fees,39293.75,0.00,COMMERCIAL SUPPLIER 
 09-06-2022,Chief Operating Officer,Citysprint (UK) Ltd,Postage And Courier Services,1716.08,0.00,COMMERCIAL SUPPLIER 
 09-06-2022,Chief Operating Officer,Siteimprove Ltd,Ict Software,13184.54,0.00,COMMERCIAL SUPPLIER 
 13-06-2022,Chief Operating Officer,Law Morgan Ltd,Agency Staff,1396.56,0.00,COMMERCIAL SUPPLIER 
 13-06-2022,Chief Operating Officer,Serco Ltd,Refuse Collection,691.82,0.00,COMMERCIAL SUPPLIER 
 14-06-2022,Chief Operating Officer,Westco Trading Ltd_a,Consultancy Fees,6030.00,0.00,COMMERCIAL SUPPLIER 
 14-06-2022,Chief Operating Officer,Westco Trading Ltd_a,Consultancy Fees,11557.68,0.00,COMMERCIAL SUPPLIER 
 14-06-2022,Chief Operating Officer,Westco Trading Ltd_a,Consultancy Fees,5670.00,0.00,COMMERCIAL SUPPLIER 
 14-06-2022,Chief Operating Officer,Lightin' Drama Group,Arts And Leisure Costs,1000.00,0.00,COMMERCIAL SUPPLIER 
 15-06-2022,Chief Operating Officer,Me & You Creative Ltd,Design And Photographic Costs,2776.00,0.00,COMMERCIAL SUPPLIER 
 15-06-2022,Chief Operating Officer,Matrix SCM Ltd,Agency Staff,2801.52,0.00,COMMERCIAL SUPPLIER 
 15-06-2022,Chief Operating Officer,Matrix SCM Ltd,Agency Staff,792.80,0.00,COMMERCIAL SUPPLIER 
 15-06-2022,Chief Operating Officer,Matrix SCM Ltd,Agency Staff,1581.12,0.00,COMMERCIAL SUPPLIER 
 15-06-2022,Chief Operating Officer,Matrix SCM Ltd,Agency Staff,2233.45,0.00,COMMERCIAL SUPPLIER 
 15-06-2022,Chief Operating Officer,Matrix SCM Ltd,Agency Staff,501.12,0.00,COMMERCIAL SUPPLIER 
 15-06-2022,Chief Operating Officer,Matrix SCM Ltd,Agency Staff,748.53,0.00,COMMERCIAL SUPPLIER 
 15-06-2022,Chief Operating Officer,Matrix SCM Ltd,Agency Staff,1247.55,0.00,COMMERCIAL SUPPLIER 
 15-06-2022,Chief Operating Officer,Matrix SCM Ltd,Agency Staff,1252.50,0.00,COMMERCIAL SUPPLIER 
 15-06-2022,Chief Operating Officer,Matrix SCM Ltd,Agency Staff,1229.85,0.00,COMMERCIAL SUPPLIER 
 15-06-2022,Chief Operating Officer,Matrix SCM Ltd,Agency Staff,737.91,0.00,COMMERCIAL SUPPLIER 
 15-06-2022,Chief Operating Officer,Matrix SCM Ltd,Agency Staff,1850.45,0.00,COMMERCIAL SUPPLIER 
 15-06-2022,Chief Operating Officer,Matrix SCM Ltd,Agency Staff,2514.85,0.00,COMMERCIAL SUPPLIER 
 15-06-2022,Chief Operating Officer,Matrix SCM Ltd,Agency Staff,568.80,0.00,COMMERCIAL SUPPLIER 
 15-06-2022,Chief Operating Officer,Matrix SCM Ltd,Agency Staff,568.80,0.00,COMMERCIAL SUPPLIER 
 15-06-2022,Chief Operating Officer,Matrix SCM Ltd,Agency Staff,559.46,0.00,COMMERCIAL SUPPLIER 
 15-06-2022,Chief Operating Officer,Matrix SCM Ltd,Agency Staff,501.12,0.00,COMMERCIAL SUPPLIER 
 15-06-2022,Chief Operating Officer,Matrix SCM Ltd,Agency Staff,568.80,0.00,COMMERCIAL SUPPLIER 
 15-06-2022,Chief Operating Officer,Matrix SCM Ltd,Agency Staff,559.46,0.00,COMMERCIAL SUPPLIER 
 15-06-2022,Chief Operating Officer,Matrix SCM Ltd,Agency Staff,559.46,0.00,COMMERCIAL SUPPLIER 
 15-06-2022,Chief Operating Officer,Matrix SCM Ltd,Agency Staff,568.80,0.00,COMMERCIAL SUPPLIER 
 15-06-2022,Chief Operating Officer,Matrix SCM Ltd,Agency Staff,3342.95,0.00,COMMERCIAL SUPPLIER 
 15-06-2022,Chief Operating Officer,Matrix SCM Ltd,Agency Staff,3265.10,0.00,COMMERCIAL SUPPLIER 
 15-06-2022,Chief Operating Officer,Matrix SCM Ltd,Agency Staff,4017.30,0.00,COMMERCIAL SUPPLIER 
 15-06-2022,Chief Operating Officer,Matrix SCM Ltd,Agency Staff,1220.15,0.00,COMMERCIAL SUPPLIER 
 15-06-2022,Chief Operating Officer,Matrix SCM Ltd,Agency Staff,856.72,0.00,COMMERCIAL SUPPLIER 
 15-06-2022,Chief Operating Officer,Matrix SCM Ltd,Agency Staff,1815.25,0.00,COMMERCIAL SUPPLIER 
 15-06-2022,Chief Operating Officer,Matrix SCM Ltd,Agency Staff,2731.70,0.00,COMMERCIAL SUPPLIER 
 15-06-2022,Chief Operating Officer,Matrix SCM Ltd,Agency Staff,2510.00,0.00,COMMERCIAL SUPPLIER 
 15-06-2022,Chief Operating Officer,Matrix SCM Ltd,Agency Staff,3722.10,0.00,COMMERCIAL SUPPLIER 
 15-06-2022,Chief Operating Officer,Matrix SCM Ltd,Agency Staff,1537.26,0.00,COMMERCIAL SUPPLIER 
 15-06-2022,Chief Operating Officer,Matrix SCM Ltd,Agency Staff,2562.10,0.00,COMMERCIAL SUPPLIER 
 16-06-2022,Chief Operating Officer,Law Morgan Ltd,Legal Fees,5120.64,0.00,COMMERCIAL SUPPLIER 
 16-06-2022,Chief Operating Officer,Law Morgan Ltd,Agency Staff,2327.60,0.00,COMMERCIAL SUPPLIER 
 16-06-2022,Chief Operating Officer,Our Community Hub (CS) Ltd,Ict Software,8462.19,0.00,COMMERCIAL SUPPLIER 
 20-06-2022,Chief Operating Officer,Askews & Holts Library Services Ltd,"Books, Publications And Resources",1422.48,0.00,COMMERCIAL SUPPLIER 
 20-06-2022,Chief Operating Officer,Askews & Holts Library Services Ltd,"Books, Publications And Resources",8358.14,0.00,COMMERCIAL SUPPLIER 
 20-06-2022,Chief Operating Officer,Askews & Holts Library Services Ltd,"Books, Publications And Resources",1481.35,0.00,COMMERCIAL SUPPLIER 
 20-06-2022,Chief Operating Officer,Askews & Holts Library Services Ltd,"Books, Publications And Resources",741.91,0.00,COMMERCIAL SUPPLIER 
 21-06-2022,Chief Operating Officer,SHA Disability Consultancy Ltd,Consultancy Fees,1565.00,0.00,COMMERCIAL SUPPLIER 
 22-06-2022,Chief Operating Officer,Purcell Architecture Limited,Consultancy Fees,550.00,0.00,COMMERCIAL SUPPLIER 
 22-06-2022,Chief Operating Officer,Matrix SCM Ltd,Agency Staff,2645.88,0.00,COMMERCIAL SUPPLIER 
 22-06-2022,Chief Operating Officer,Matrix SCM Ltd,Agency Staff,2233.45,0.00,COMMERCIAL SUPPLIER 
 22-06-2022,Chief Operating Officer,Matrix SCM Ltd,Agency Staff,2514.85,0.00,COMMERCIAL SUPPLIER 
 22-06-2022,Chief Operating Officer,Matrix SCM Ltd,Agency Staff,792.80,0.00,COMMERCIAL SUPPLIER 
 22-06-2022,Chief Operating Officer,Matrix SCM Ltd,Agency Staff,1581.12,0.00,COMMERCIAL SUPPLIER 
 22-06-2022,Chief Operating Officer,Matrix SCM Ltd,Agency Staff,3265.10,0.00,COMMERCIAL SUPPLIER 
 22-06-2022,Chief Operating Officer,Matrix SCM Ltd,Agency Staff,2674.36,0.00,COMMERCIAL SUPPLIER 
 22-06-2022,Chief Operating Officer,Matrix SCM Ltd,Agency Staff,4017.30,0.00,COMMERCIAL SUPPLIER 
 22-06-2022,Chief Operating Officer,Matrix SCM Ltd,Agency Staff,3116.00,0.00,COMMERCIAL SUPPLIER 
 22-06-2022,Chief Operating Officer,Matrix SCM Ltd,Agency Staff,976.12,0.00,COMMERCIAL SUPPLIER 
 22-06-2022,Chief Operating Officer,Matrix SCM Ltd,Agency Staff,529.30,0.00,COMMERCIAL SUPPLIER 
 22-06-2022,Chief Operating Officer,Matrix SCM Ltd,Agency Staff,559.46,0.00,COMMERCIAL SUPPLIER 
 22-06-2022,Chief Operating Officer,Matrix SCM Ltd,Agency Staff,559.46,0.00,COMMERCIAL SUPPLIER 
 22-06-2022,Chief Operating Officer,Matrix SCM Ltd,Agency Staff,568.80,0.00,COMMERCIAL SUPPLIER 
 22-06-2022,Chief Operating Officer,Matrix SCM Ltd,Agency Staff,559.46,0.00,COMMERCIAL SUPPLIER 
 22-06-2022,Chief Operating Officer,Matrix SCM Ltd,Agency Staff,568.80,0.00,COMMERCIAL SUPPLIER 
 22-06-2022,Chief Operating Officer,Matrix SCM Ltd,Agency Staff,501.12,0.00,COMMERCIAL SUPPLIER 
 22-06-2022,Chief Operating Officer,Matrix SCM Ltd,Agency Staff,1261.74,0.00,COMMERCIAL SUPPLIER 
 22-06-2022,Chief Operating Officer,Matrix SCM Ltd,Agency Staff,1002.00,0.00,COMMERCIAL SUPPLIER 
 22-06-2022,Chief Operating Officer,Matrix SCM Ltd,Agency Staff,998.04,0.00,COMMERCIAL SUPPLIER 
 22-06-2022,Chief Operating Officer,Matrix SCM Ltd,Agency Staff,501.12,0.00,COMMERCIAL SUPPLIER 
 22-06-2022,Chief Operating Officer,Matrix SCM Ltd,Agency Staff,1229.85,0.00,COMMERCIAL SUPPLIER 
 22-06-2022,Chief Operating Officer,Matrix SCM Ltd,Agency Staff,2510.00,0.00,COMMERCIAL SUPPLIER 
 22-06-2022,Chief Operating Officer,Matrix SCM Ltd,Agency Staff,1815.25,0.00,COMMERCIAL SUPPLIER 
 22-06-2022,Chief Operating Officer,Matrix SCM Ltd,Agency Staff,3722.10,0.00,COMMERCIAL SUPPLIER 
 22-06-2022,Chief Operating Officer,Matrix SCM Ltd,Agency Staff,2562.10,0.00,COMMERCIAL SUPPLIER 
 22-06-2022,Chief Operating Officer,Matrix SCM Ltd,Agency Staff,1092.68,0.00,COMMERCIAL SUPPLIER 
 22-06-2022,Chief Operating Officer,Lightin' Drama Group,Arts And Leisure Costs,700.00,0.00,COMMERCIAL SUPPLIER 
 23-06-2022,Chief Operating Officer,Full Event Production Ltd,Events,5450.00,0.00,COMMERCIAL SUPPLIER 
 23-06-2022,Chief Operating Officer,Full Event Production Ltd,Events,9248.00,0.00,COMMERCIAL SUPPLIER 
 24-06-2022,Chief Operating Officer,Serco Ltd,Refuse Collection,557.54,0.00,COMMERCIAL SUPPLIER 
 27-06-2022,Chief Operating Officer,Serco Ltd,Refuse Collection,623.81,0.00,COMMERCIAL SUPPLIER 
 27-06-2022,Chief Operating Officer,DBD The Havering Theatre Trust Ltd,Grants And Contributions,52352.00,0.00,COMMERCIAL SUPPLIER 
 28-06-2022,Chief Operating Officer,Law Morgan Ltd,Legal Fees,3200.40,0.00,COMMERCIAL SUPPLIER 
 28-06-2022,Chief Operating Officer,Law Morgan Ltd,Agency Staff,1396.56,0.00,COMMERCIAL SUPPLIER 
 28-06-2022,Chief Operating Officer,Havering Volunteer Centre,Arts And Leisure Costs,14068.00,0.00,NON COMMERCIAL SUPPLIER 
 29-06-2022,Chief Operating Officer,Spectrum Plastics,Printing,4504.00,0.00,COMMERCIAL SUPPLIER 
 29-06-2022,Chief Operating Officer,Spectrum Plastics,Printing,1774.00,0.00,COMMERCIAL SUPPLIER 
 29-06-2022,Chief Operating Officer,Spectrum Plastics,Printing,1967.00,0.00,COMMERCIAL SUPPLIER 
 29-06-2022,Chief Operating Officer,The Havering Theatre Trust Ltd,Arts And Leisure Costs,5000.00,0.00,COMMERCIAL SUPPLIER 
 29-06-2022,Chief Operating Officer,Matrix SCM Ltd,Agency Staff,2957.16,0.00,COMMERCIAL SUPPLIER 
 29-06-2022,Chief Operating Officer,Matrix SCM Ltd,Agency Staff,826.21,0.00,COMMERCIAL SUPPLIER 
 29-06-2022,Chief Operating Officer,Matrix SCM Ltd,Agency Staff,792.80,0.00,COMMERCIAL SUPPLIER 
 29-06-2022,Chief Operating Officer,Matrix SCM Ltd,Agency Staff,2233.45,0.00,COMMERCIAL SUPPLIER 
 29-06-2022,Chief Operating Officer,Matrix SCM Ltd,Agency Staff,1480.36,0.00,COMMERCIAL SUPPLIER 
 29-06-2022,Chief Operating Officer,Matrix SCM Ltd,Agency Staff,502.97,0.00,COMMERCIAL SUPPLIER 
 29-06-2022,Chief Operating Officer,Matrix SCM Ltd,Agency Staff,2055.12,0.00,COMMERCIAL SUPPLIER 
 29-06-2022,Chief Operating Officer,Matrix SCM Ltd,Agency Staff,501.12,0.00,COMMERCIAL SUPPLIER 
 29-06-2022,Chief Operating Officer,Matrix SCM Ltd,Agency Staff,574.99,0.00,COMMERCIAL SUPPLIER 
 29-06-2022,Chief Operating Officer,Matrix SCM Ltd,Agency Staff,568.80,0.00,COMMERCIAL SUPPLIER 
 29-06-2022,Chief Operating Officer,Matrix SCM Ltd,Agency Staff,568.80,0.00,COMMERCIAL SUPPLIER 
 29-06-2022,Chief Operating Officer,Matrix SCM Ltd,Agency Staff,501.12,0.00,COMMERCIAL SUPPLIER 
 29-06-2022,Chief Operating Officer,Matrix SCM Ltd,Agency Staff,1261.74,0.00,COMMERCIAL SUPPLIER 
 29-06-2022,Chief Operating Officer,Matrix SCM Ltd,Agency Staff,998.04,0.00,COMMERCIAL SUPPLIER 
 29-06-2022,Chief Operating Officer,Matrix SCM Ltd,Agency Staff,1252.50,0.00,COMMERCIAL SUPPLIER 
 29-06-2022,Chief Operating Officer,Matrix SCM Ltd,Agency Staff,1229.85,0.00,COMMERCIAL SUPPLIER 
 29-06-2022,Chief Operating Officer,Matrix SCM Ltd,Agency Staff,568.80,0.00,COMMERCIAL SUPPLIER 
 29-06-2022,Chief Operating Officer,Matrix SCM Ltd,Agency Staff,582.76,0.00,COMMERCIAL SUPPLIER 
 29-06-2022,Chief Operating Officer,Matrix SCM Ltd,Agency Staff,568.80,0.00,COMMERCIAL SUPPLIER 
 29-06-2022,Chief Operating Officer,Matrix SCM Ltd,Agency Staff,1220.15,0.00,COMMERCIAL SUPPLIER 
 29-06-2022,Chief Operating Officer,Matrix SCM Ltd,Agency Staff,3116.00,0.00,COMMERCIAL SUPPLIER 
 29-06-2022,Chief Operating Officer,Matrix SCM Ltd,Agency Staff,3265.10,0.00,COMMERCIAL SUPPLIER 
 29-06-2022,Chief Operating Officer,Matrix SCM Ltd,Agency Staff,3342.95,0.00,COMMERCIAL SUPPLIER 
 29-06-2022,Chief Operating Officer,Matrix SCM Ltd,Agency Staff,4112.20,0.00,COMMERCIAL SUPPLIER 
 29-06-2022,Chief Operating Officer,Matrix SCM Ltd,Agency Staff,856.72,0.00,COMMERCIAL SUPPLIER 
 29-06-2022,Chief Operating Officer,Matrix SCM Ltd,Agency Staff,856.72,0.00,COMMERCIAL SUPPLIER 
 29-06-2022,Chief Operating Officer,Matrix SCM Ltd,Agency Staff,2562.10,0.00,COMMERCIAL SUPPLIER 
 29-06-2022,Chief Operating Officer,Matrix SCM Ltd,Agency Staff,2510.00,0.00,COMMERCIAL SUPPLIER 
 29-06-2022,Chief Operating Officer,Matrix SCM Ltd,Agency Staff,1815.25,0.00,COMMERCIAL SUPPLIER 
 29-06-2022,Chief Operating Officer,Matrix SCM Ltd,Agency Staff,2731.70,0.00,COMMERCIAL SUPPLIER 
 30-06-2022,Chief Operating Officer,PRgloo Ltd,"Advertising, Publicity And Marketing",2500.00,0.00,COMMERCIAL SUPPLIER 
 30-06-2022,Chief Operating Officer,The Knowledge Academy Limited,Staff Development And Training,1000.00,0.00,COMMERCIAL SUPPLIER 
 30-06-2022,Chief Operating Officer,Bloom Procurement Services Ltd,Consultancy Fees,3000.00,0.00,COMMERCIAL SUPPLIER 
 30-06-2022,Chief Operating Officer,Westminster Philharmonic Orchestra,Arts And Leisure Costs,2650.00,0.00,COMMERCIAL SUPPLIER 
 01-06-2022,Childrens,Future Gateways Ltd,Professional Services - General,14400.00,0.00,COMMERCIAL SUPPLIER 
 01-06-2022,Childrens,Future Gateways Ltd,Professional Services - General,26400.00,0.00,COMMERCIAL SUPPLIER 
 01-06-2022,Childrens,Future Gateways Ltd,Professional Services - General,23000.00,0.00,COMMERCIAL SUPPLIER 
 01-06-2022,Childrens,Future Gateways Ltd,Professional Services - General,5120.00,0.00,COMMERCIAL SUPPLIER 
 01-06-2022,Childrens,Choice Teachers (South) Ltd,Agency Staff,685.75,0.00,COMMERCIAL SUPPLIER 
 01-06-2022,Childrens,Your Chapter Ltd ,Residential Placements - Private Contractors Payment,23571.43,0.00,COMMERCIAL SUPPLIER 
 01-06-2022,Childrens,Futures For Children Ltd,Fostering Agency Placements - Private Contractors Payment,3248.70,0.00,COMMERCIAL SUPPLIER 
 01-06-2022,Childrens,Futures For Children Ltd,Fostering Agency Placements - Private Contractors Payment,3216.21,0.00,COMMERCIAL SUPPLIER 
 01-06-2022,Childrens,Futures For Children Ltd,Fostering Agency Placements - Private Contractors Payment,7937.44,0.00,COMMERCIAL SUPPLIER 
 01-06-2022,Childrens,Highway Express Ltd,Client Transport,850.00,0.00,COMMERCIAL SUPPLIER 
 01-06-2022,Childrens,Highway Express Ltd,Client Transport,1125.00,0.00,COMMERCIAL SUPPLIER 
 01-06-2022,Childrens,Highway Express Ltd,Client Transport,1530.00,0.00,COMMERCIAL SUPPLIER 
 01-06-2022,Childrens,Highway Express Ltd,Client Transport,870.00,0.00,COMMERCIAL SUPPLIER 
 01-06-2022,Childrens,Highway Express Ltd,Client Transport,2570.50,0.00,COMMERCIAL SUPPLIER 
 01-06-2022,Childrens,Highway Express Ltd,Client Transport,651.60,0.00,COMMERCIAL SUPPLIER 
 01-06-2022,Childrens,Soaring Heights Care Ltd,Private Contractors Payment - Other,3299.29,0.00,COMMERCIAL SUPPLIER 
 01-06-2022,Childrens,Soaring Heights Care Ltd,Private Contractors Payment - Other,3299.29,0.00,COMMERCIAL SUPPLIER 
 01-06-2022,Childrens,Soaring Heights Care Ltd,Private Contractors Payment - Other,3875.00,0.00,COMMERCIAL SUPPLIER 
 01-06-2022,Childrens,Soaring Heights Care Ltd,Private Contractors Payment - Other,3321.43,0.00,COMMERCIAL SUPPLIER 
 01-06-2022,Childrens,Soaring Heights Care Ltd,Private Contractors Payment - Other,3299.29,0.00,COMMERCIAL SUPPLIER 
 01-06-2022,Childrens,Soaring Heights Care Ltd,Private Contractors Payment - Other,3299.29,0.00,COMMERCIAL SUPPLIER 
 01-06-2022,Childrens,Soaring Heights Care Ltd,Private Contractors Payment - Other,3321.43,0.00,COMMERCIAL SUPPLIER 
 01-06-2022,Childrens,Soaring Heights Care Ltd,Private Contractors Payment - Other,3321.43,0.00,COMMERCIAL SUPPLIER 
 01-06-2022,Childrens,Footsteps Care Homes Ltd_a,Residential Placements - Private Contractors Payment,21787.80,0.00,COMMERCIAL SUPPLIER 
 01-06-2022,Childrens,A Star Kids Nursery Ltd,Private Contractors Payment - Other,931.32,0.00,COMMERCIAL SUPPLIER 
 01-06-2022,Childrens,Bright Futures Nursery_a,Private Contractors Payment - Other,1396.98,0.00,COMMERCIAL SUPPLIER 
 01-06-2022,Childrens,Truly Scrumptious Early Years Nursery,Private Contractors Payment - Other,1164.15,0.00,COMMERCIAL SUPPLIER 
 01-06-2022,Childrens,Val Robinson t/a The Cottage Pre-School,Private Contractors Payment - Other,3352.75,0.00,COMMERCIAL SUPPLIER 
 01-06-2022,Childrens,Val Robinson t/a St Johns Pre-School,Private Contractors Payment - Other,1629.81,0.00,COMMERCIAL SUPPLIER 
 01-06-2022,Childrens,The Gaynes Park Nursery Ltd,Private Contractors Payment - Other,679.86,0.00,COMMERCIAL SUPPLIER 
 01-06-2022,Childrens,Brittons Daycare Ltd_a,Private Contractors Payment - Other,1629.81,0.00,COMMERCIAL SUPPLIER 
 01-06-2022,Childrens,Buddies Pre School Collier Row (Group),Private Contractors Payment - Other,698.49,0.00,COMMERCIAL SUPPLIER 
 01-06-2022,Childrens,Buddies Pre-School Harold Wood (Group),Private Contractors Payment - Other,651.93,0.00,COMMERCIAL SUPPLIER 
 01-06-2022,Childrens,Bumbles Playgroup,Private Contractors Payment - Other,1164.15,0.00,COMMERCIAL SUPPLIER 
 01-06-2022,Childrens,Cherubs Pre-School Elm Park,Private Contractors Payment - Other,884.76,0.00,COMMERCIAL SUPPLIER 
 01-06-2022,Childrens,Cherubs Preschool Hornchurch Methodist Church,Private Contractors Payment - Other,931.32,0.00,NON COMMERCIAL SUPPLIER 
 01-06-2022,Childrens,Cotton Buddies Ltd,Private Contractors Payment - Other,2793.96,0.00,COMMERCIAL SUPPLIER 
 01-06-2022,Childrens,Creative Kids Hornchurch,Private Contractors Payment - Other,698.49,0.00,COMMERCIAL SUPPLIER 
 01-06-2022,Childrens,Creative Kids,Private Contractors Payment - Other,1396.98,0.00,COMMERCIAL SUPPLIER 
 01-06-2022,Childrens,Edenberries Day Nursery and Pre Schoo Ltd,Private Contractors Payment - Other,1396.98,0.00,NON COMMERCIAL SUPPLIER 
 01-06-2022,Childrens,Aardvark Day Nursery Harold Court (Group),Private Contractors Payment - Other,1082.97,0.00,COMMERCIAL SUPPLIER 
 01-06-2022,Childrens,Elm Park Baptist Church Playgroup,Private Contractors Payment - Other,698.49,0.00,COMMERCIAL SUPPLIER 
 01-06-2022,Childrens,Explorers Educare Ltd,Private Contractors Payment - Other,1396.98,0.00,NON COMMERCIAL SUPPLIER 
 01-06-2022,Childrens,Fairy Tales Playgroup,Private Contractors Payment - Other,2377.97,0.00,COMMERCIAL SUPPLIER 
 01-06-2022,Childrens,FIG Playgroup & Playscheme,Private Contractors Payment - Other,2328.30,0.00,COMMERCIAL SUPPLIER 
 01-06-2022,Childrens,Maxvale Ltd T/A Fledgelings Hornchurch,Private Contractors Payment - Other,698.49,0.00,COMMERCIAL SUPPLIER 
 01-06-2022,Childrens,Maxvale Ltd T/A Fledgelings Romford,Private Contractors Payment - Other,1164.15,0.00,COMMERCIAL SUPPLIER 
 01-06-2022,Childrens,Georgie Porgy's Pre-School 1 (Group),Private Contractors Payment - Other,698.49,0.00,COMMERCIAL SUPPLIER 
 01-06-2022,Childrens,Georgie Porgy's Pre-School 2 (Group),Private Contractors Payment - Other,1164.15,0.00,COMMERCIAL SUPPLIER 
 01-06-2022,Childrens,Great Child Nursery & Pre-School,Private Contractors Payment - Other,2328.30,0.00,NON COMMERCIAL SUPPLIER 
 01-06-2022,Childrens,Star Bright Day Nursey Ltd,Private Contractors Payment - Other,8906.40,0.00,NON COMMERCIAL SUPPLIER 
 01-06-2022,Childrens,Harmony House Dagenham,Private Contractors Payment - Other,698.49,0.00,COMMERCIAL SUPPLIER 
 01-06-2022,Childrens,Ingrebourne Day Nursery,Private Contractors Payment - Other,2328.30,0.00,COMMERCIAL SUPPLIER 
 01-06-2022,Childrens,Ladybird Nursery School,Private Contractors Payment - Other,1396.98,0.00,COMMERCIAL SUPPLIER 
 01-06-2022,Childrens,Lawns Pre School,Private Contractors Payment - Other,1847.12,0.00,NON COMMERCIAL SUPPLIER 
 01-06-2022,Childrens,Abbs Cross Day Nursery Collier Row 3,Private Contractors Payment - Other,698.49,0.00,COMMERCIAL SUPPLIER 
 01-06-2022,Childrens,Little Market Day Nursery Ltd,Private Contractors Payment - Other,2793.96,0.00,COMMERCIAL SUPPLIER 
 01-06-2022,Childrens,Little Rascals Pre-School,Private Contractors Payment - Other,698.49,0.00,COMMERCIAL SUPPLIER 
 01-06-2022,Childrens,Little Robins Montessori Nursery,Private Contractors Payment - Other,859.68,0.00,NON COMMERCIAL SUPPLIER 
 01-06-2022,Childrens,Mary Poppins Day Nursery_a,Private Contractors Payment - Other,2095.47,0.00,COMMERCIAL SUPPLIER 
 01-06-2022,Childrens,Mulberry Bush Pre School,Private Contractors Payment - Other,1536.68,0.00,NON COMMERCIAL SUPPLIER 
 01-06-2022,Childrens,Mulberry Bush Pre-school,Private Contractors Payment - Other,1490.11,0.00,NON COMMERCIAL SUPPLIER 
 01-06-2022,Childrens,Abbs Cross Day Nursery_Mardyke 4 a,Private Contractors Payment - Other,1164.15,0.00,COMMERCIAL SUPPLIER 
 01-06-2022,Childrens,Nelmes Pre-School_a,Private Contractors Payment - Other,838.19,0.00,COMMERCIAL SUPPLIER 
 01-06-2022,Childrens,Nutkins Nursery,Private Contractors Payment - Other,698.49,0.00,COMMERCIAL SUPPLIER 
 01-06-2022,Childrens,Nutkins Nursery 2,Private Contractors Payment - Other,1164.15,0.00,COMMERCIAL SUPPLIER 
 01-06-2022,Childrens,Over The Rainbow Day Nursery,Private Contractors Payment - Other,1164.15,0.00,COMMERCIAL SUPPLIER 
 01-06-2022,Childrens,Parklanes Wykeham Childcare Ltd - Forest Row Centre,Private Contractors Payment - Other,931.32,0.00,COMMERCIAL SUPPLIER 
 01-06-2022,Childrens,Parklanes Wykeham Childcare Ltd_a,Private Contractors Payment - Other,2328.30,0.00,NON COMMERCIAL SUPPLIER 
